Workbook

Sheet ENERO
B4: REGISTRO DE LA LISTA DE VERIFICACION DE CIRUGIA SEGURA
B5: AÑO: U.E. 408 HOSPITAL DE ESPINAR - ENERO 2024 | E5: NO REGISTRA | F5: NO PRECEDE
C6: SI | D6: NO | E6: NR | F6: NP | G6: TOTAL
A7: ENTRADA | B7: PACIENTE CONFIRMA SU IDENTIDAD, EL SITIO QUIRUGICO, EL PROCEDIMIENTO Y CONSENTIMIENTO | C7: 81 | F7: 2 | G7: =SUM(C7:F7) -> 83
B8: SE HA MARCADO EL SITIO QUIRURGICO | C8: 59 | D8: 15 | E8: 1 | F8: 8 | G8: =SUM(C8:F8) -> 83 | I8: =SUM(C7,C8,C9,C10,D11,D12,C13,D14,C15) -> 548 | J8: =I8/$I$10 -> 0.8684627575
B9: SE COMPROBO LA DISPONIBILIDAD DE LOS EQUIPOS DE ANESTESIA Y LA MEDICACION ANESTESICA | C9: 82 | E9: 1 | G9: 83 | I9: =SUM(D7,D8,D9,D10,C11,C12,D13,C14,D15) -> 83 | J9: =I9/$I$10 -> 0.1315372425
B10: SE COLOCO EL PULXIOMETRO AL PACIENTE Y FUNCIONA | C10: 80 | D10: 2 | E10: 1 | G10: 83 | I10: =SUM(I8:I9) -> 631
B11: EL PACIENTE TIENE ALERGIAS | C11: 1 | D11: 82 | G11: 83
B12: VIA AEREA DIFICIL / RIESGO DE ASPIRACION | C12: 4 | D12: 79 | G12: 83
B13: HAY INSTRUMENTAL Y EQUIPO DISPONIBLE | C13: 10 | D13: 18 | E13: 55 | G13: 83
B14: RIESGO DE HEMORRAGIA MENOR A 500 ML | C14: 18 | D14: 64 | E14: 1 | G14: 83
B15: SE HA PREVISTO DISPONIBILIDAD DE COMPONENTE SANGUINEO EN BANCO DE SANGRE | C15: 11 | D15: 25 | E15: 47 | G15: 83
A16: PAUSA | B16: CONFIRMAR QUE TODOS LOS MIEMBROS DEL EQUIPO PROGRAMADOS SE HAYAN PRESENTADO POR SU NOMBRE | C16: 83 | G16: 83
B17: CONFIRMAR LA IDENTIDAD DEL PACIENTE, EL PROCEDIMIENTO Y EL SITIO QUIRUGICO | C17: 81 | E17: 2 | G17: 83
B18: CONFIRMAR SI TODOS LOS MIEMBROS DEL EQUIPO HAN CUMPLIDO CORRECTAMENTE CON EL PROTOCOLO DE AS | C18: 82 | E18: 1 | G18: 83
B19: SE HA ADMINISTRADO PROFILAXIS CON ANTIBIOTICOS EN LOS ULTIMOS 60 MINUTOS | C19: 59 | D19: 19 | E19: 3 | F19: 2 | G19: 83 | I19: =SUM(C16,C17,C18,C19,C20,,C22,D23,C24,D25,C26) -> 706 | J19: =I19/$I$21 -> 0.9363395225
B20: ¿CUALES SON LOS PASOS CRITICOS O INESPERADO? | C20: 52 | D20: 21 | E20: 10 | G20: 83 | I20: =SUM(D16,D17,D18,D19,D20,D21,D22,C23,D24,C25,D26) -> 48 | J20: =I20/$I$21 -> 0.06366047745
B21: ¿CUANTO DURARA LA OPERACIÓN? | C21: 81 | E21: 2 | G21: 83 | I21: =SUM(I19:I20) -> 754
B22: ¿CUANTO ES LA PERDIDA DE SALGRE PREVISTA? | C22: 79 | E22: 4 | G22: 83
B23: ¿PRESENTA EL PACIENTE ALGUN PROBLEMA ESPECIFICO? | C23: 6 | D23: 70 | E23: 7 | G23: 83
B24: ¿SE HA CONFIRMADO LA ESTERILIDAD DE ROPA, INSTRUMENTAL Y EQUIPOS? | C24: 83 | G24: 83
B25: ¿HAY DUDAS O PROBLEMAS RELACIONADOS CON ELLOS? | C25: 2 | D25: 79 | E25: 2 | G25: 83
B26: ¿PUEDEN VISUALIZARSE LAS IMÁGENES DIAGNOSTICADAS ESENCIALES? | C26: 38 | E26: 6 | F26: 39 | G26: 83
A27: SALIDA | B27: EL ENFERMERO CONFIRMA VERBALMENTE EL NOMBRE DEL PROCEDIMIENTO | C27: 83 | G27: 83
B28: EL RECUENTO DE INSTRUMENTOS, GASA Y AGUJAS | C28: 83 | G28: 83 | I28: =SUM(C27,C28,C29,C30,C31,D32) -> 274 | J28: =I28/$I$30 -> 0.7172774869
B29: EL ETIQUETADO DE LAS MUESTRAS (LECTURA DE LA ETIQUETA EN VOZ ALTA, INCLUIDO EL NOMBRE DEL PACIENTE | C29: 23 | D29: 23 | E29: 2 | F29: 35 | G29: 83 | I29: =SUM(D27,D28,D29,D30,D31,C32) -> 108 | J29: =I29/$I$30 -> 0.2827225131
B30: SI HAY PROBLEMAS QUE SE RESUELVE RELACIONADOS CON EL INSTRUMENTAL Y LOS EQUIPOS | C30: 2 | D30: 80 | E30: 1 | G30: 83 | I30: =SUM(I28:I29) -> 382
B31: (CIRUJANO, ANESTESIOLOGO, ENFERMERO) CUALES SON LOS ASPECTOS CRITICOS DE LA RECUPERACION Y EL TRAMITE | C31: 83 | G31: 83
B32: OBSERVACIONES | C32: 5 | E32: 77 | G32: 82
A33: FIRMA | B33: FIRMA DEL CIRUJANO | C33: 83 | G33: 83
B34: FIRMA DEL ANESTESIOLOGO | C34: 82 | E34: 1 | G34: 83
B35: FIRMA DE LA ENFERMERA | C35: 82 | E35: 1 | G35: 83 | I35: =SUM(C33,C34,C35,C36,C37,C38,C39) -> 568 | J35: =I35/$I$37 -> 1
B36: FIRMA DEL COORDINADOR | C36: 81 | E36: 2 | G36: 83 | I36: =SUM(D33,D34,D35,D36,D37,,D38,D39) -> 0 | J36: =I36/$I$37 -> 0
B37: NRO DE HISTORIA CLINICA | C37: 76 | E37: 7 | G37: 83 | I37: =SUM(I35:I36) -> 568
B38: NOMBRE Y APELLIDOS DEL PACIENTE | C38: 82 | E38: 1 | G38: 83
B39: FECHA | C39: 82 | E39: 1 | G39: 83
B45: PORCENTAJE DE CUMPLIMIENTO DE LA LISTA DE VERIFICACION DE CIRUGIA SEGURA
C51: ENTRADA | D51: (+) | E51: =J8 -> 0.8684627575
D52: (-) | E52: =J9 -> 0.1315372425
C53: PAUSA | D53: (+) | E53: =J19 -> 0.9363395225 | M53: Cumplimiento
D54: (-) | E54: =J20 -> 0.06366047745 | L54: Entrada | M54: =E51 -> 0.8684627575
C55: SALIDA | D55: (+) | E55: =J28 -> 0.7172774869 | L55: Pausa | M55: =E53 -> 0.9363395225
D56: (-) | E56: =J29 -> 0.2827225131 | L56: Salida | M56: =E55 -> 0.7172774869
C57: FIRMA | D57: (+) | E57: =J35 -> 1 | L57: Firmas | M57: =E57 -> 1
D58: (-) | E58: =J36 -> 0 | L58: Cumplimiento | M58: =AVERAGE(M54:M57) -> 0.8805199417
C59: CUMPLIMIENTO | E59: =M58 -> 0.8805199417

Sheet FEBRERO
B4: REGISTRO DE LA LISTA DE VERIFICACION DE CIRUGIA SEGURA
B5: AÑO: U.E. 408 HOSPITAL DE ESPINAR - FEBRERO 2024 | E5: NO REGISTRA | F5: NO PRECEDE
C6: SI | D6: NO | E6: NR | F6: NP | G6: TOTAL
A7: ENTRADA | B7: PACIENTE CONFIRMA SU IDENTIDAD, EL SITIO QUIRUGICO, EL PROCEDIMIENTO Y CONSENTIMIENTO | C7: 88 | E7: 3 | G7: =SUM(C7:F7) -> 91
B8: SE HA MARCADO EL SITIO QUIRURGICO | C8: 45 | D8: 20 | E8: 6 | F8: 20 | G8: =SUM(C8:F8) -> 91 | I8: =SUM(C7,C8,C9,C10,D11,D12,C13,D14,C15) -> 606 | J8: =I8/$I$10 -> 0.8911764706
B9: SE COMPROBO LA DISPONIBILIDAD DE LOS EQUIPOS DE ANESTESIA Y LA MEDICACION ANESTESICA | C9: 88 | E9: 3 | G9: 91 | I9: =SUM(D7,D8,D9,D10,C11,C12,D13,C14,D15) -> 74 | J9: =I9/$I$10 -> 0.1088235294
B10: SE COLOCO EL PULXIOMETRO AL PACIENTE Y FUNCIONA | C10: 88 | E10: 3 | G10: 91 | I10: =SUM(I8:I9) -> 680
B11: EL PACIENTE TIENE ALERGIAS | C11: 1 | D11: 89 | E11: 1 | G11: 91
B12: VIA AEREA DIFICIL / RIESGO DE ASPIRACION | C12: 11 | D12: 78 | E12: 2 | G12: 91
B13: HAY INSTRUMENTAL Y EQUIPO DISPONIBLE | C13: 30 | D13: 13 | E13: 48 | G13: 91
B14: RIESGO DE HEMORRAGIA MENOR A 500 ML | C14: 16 | D14: 71 | E14: 4 | G14: 91
B15: SE HA PREVISTO DISPONIBILIDAD DE COMPONENTE SANGUINEO EN BANCO DE SANGRE | C15: 29 | D15: 13 | E15: 49 | G15: 91
A16: PAUSA | B16: CONFIRMAR QUE TODOS LOS MIEMBROS DEL EQUIPO PROGRAMADOS SE HAYAN PRESENTADO POR SU NOMBRE | C16: 91 | G16: 91
B17: CONFIRMAR LA IDENTIDAD DEL PACIENTE, EL PROCEDIMIENTO Y EL SITIO QUIRUGICO | C17: 90 | E17: 1 | G17: 91
B18: CONFIRMAR SI TODOS LOS MIEMBROS DEL EQUIPO HAN CUMPLIDO CORRECTAMENTE CON EL PROTOCOLO DE AS | C18: 88 | E18: 3 | G18: 91
B19: SE HA ADMINISTRADO PROFILAXIS CON ANTIBIOTICOS EN LOS ULTIMOS 60 MINUTOS | C19: 74 | D19: 13 | E19: 2 | F19: 2 | G19: 91 | I19: =SUM(C16,C17,C18,C19,C20,,C22,D23,C24,D25,C26) -> 752 | J19: =I19/$I$21 -> 0.9137302552
B20: ¿CUALES SON LOS PASOS CRITICOS O INESPERADO? | C20: 39 | D20: 48 | E20: 4 | G20: 91 | I20: =SUM(D16,D17,D18,D19,D20,D21,D22,C23,D24,C25,D26) -> 71 | J20: =I20/$I$21 -> 0.08626974484
B21: ¿CUANTO DURARA LA OPERACIÓN? | C21: 88 | E21: 3 | G21: 91 | I21: =SUM(I19:I20) -> 823
B22: ¿CUANTO ES LA PERDIDA DE SALGRE PREVISTA? | C22: 85 | E22: 6 | G22: 91
B23: ¿PRESENTA EL PACIENTE ALGUN PROBLEMA ESPECIFICO? | C23: 4 | D23: 82 | E23: 5 | G23: 91
B24: ¿SE HA CONFIRMADO LA ESTERILIDAD DE ROPA, INSTRUMENTAL Y EQUIPOS? | C24: 91 | G24: 91
B25: ¿HAY DUDAS O PROBLEMAS RELACIONADOS CON ELLOS? | C25: 1 | D25: 84 | E25: 6 | G25: 91
B26: ¿PUEDEN VISUALIZARSE LAS IMÁGENES DIAGNOSTICADAS ESENCIALES? | C26: 28 | D26: 5 | E26: 17 | F26: 41 | G26: 91
A27: SALIDA | B27: EL ENFERMERO CONFIRMA VERBALMENTE EL NOMBRE DEL PROCEDIMIENTO | C27: 90 | E27: 1 | G27: 91
B28: EL RECUENTO DE INSTRUMENTOS, GASA Y AGUJAS | C28: 91 | G28: 91 | I28: =SUM(C27,C28,C29,C30,C31,D32) -> 301 | J28: =I28/$I$30 -> 0.70657277
B29: EL ETIQUETADO DE LAS MUESTRAS (LECTURA DE LA ETIQUETA EN VOZ ALTA, INCLUIDO EL NOMBRE DEL PACIENTE | C29: 29 | D29: 38 | E29: 3 | F29: 21 | G29: 91 | I29: =SUM(D27,D28,D29,D30,D31,C32) -> 125 | J29: =I29/$I$30 -> 0.29342723
B30: SI HAY PROBLEMAS QUE SE RESUELVE RELACIONADOS CON EL INSTRUMENTAL Y LOS EQUIPOS | C30: 1 | D30: 87 | E30: 3 | G30: 91 | I30: =SUM(I28:I29) -> 426
B31: (CIRUJANO, ANESTESIOLOGO, ENFERMERO) CUALES SON LOS ASPECTOS CRITICOS DE LA RECUPERACION Y EL TRAMITE | C31: 88 | E31: 3 | G31: 91
B32: OBSERVACIONES | D32: 2 | E32: 89 | G32: 91
A33: FIRMA | B33: FIRMA DEL CIRUJANO | C33: 91 | G33: 91
B34: FIRMA DEL ANESTESIOLOGO | C34: 90 | D34: 1 | G34: 91
B35: FIRMA DE LA ENFERMERA | C35: 90 | D35: 1 | G35: 91 | I35: =SUM(C33,C34,C35,C36,C37,C38,C39) -> 624 | J35: =I35/$I$37 -> 0.9795918367
B36: FIRMA DEL COORDINADOR | C36: 87 | D36: 4 | G36: 91 | I36: =SUM(D33,D34,D35,D36,D37,,D38,D39) -> 13 | J36: =I36/$I$37 -> 0.02040816327
B37: NRO DE HISTORIA CLINICA | C37: 86 | D37: 5 | G37: 91 | I37: =SUM(I35:I36) -> 637
B38: NOMBRE Y APELLIDOS DEL PACIENTE | C38: 90 | D38: 1 | G38: 91
B39: FECHA | C39: 90 | D39: 1 | G39: 91
B45: PORCENTAJE DE CUMPLIMIENTO DE LA LISTA DE VERIFICACION DE CIRUGIA SEGURA
C51: ENTRADA | D51: (+) | E51: =J8 -> 0.8911764706
D52: (-) | E52: =J9 -> 0.1088235294
C53: PAUSA | D53: (+) | E53: =J19 -> 0.9137302552 | M53: Cumplimiento
D54: (-) | E54: =J20 -> 0.08626974484 | L54: Entrada | M54: =E51 -> 0.8911764706
C55: SALIDA | D55: (+) | E55: =J28 -> 0.70657277 | L55: Pausa | M55: =E53 -> 0.9137302552
D56: (-) | E56: =J29 -> 0.29342723 | L56: Salida | M56: =E55 -> 0.70657277
C57: FIRMA | D57: (+) | E57: =J35 -> 0.9795918367 | L57: Firmas | M57: =E57 -> 0.9795918367
D58: (-) | E58: =J36 -> 0.02040816327 | L58: Cumplimiento | M58: =AVERAGE(M54:M57) -> 0.8727678331
C59: CUMPLIMIENTO | E59: =M58 -> 0.8727678331

Sheet MARZO
B4: REGISTRO DE LA LISTA DE VERIFICACION DE CIRUGIA SEGURA
B5: AÑO: U.E. 408 HOSPITAL DE ESPINAR -MARZO 2024 | E5: NO REGISTRA | F5: NO PRECEDE
C6: SI | D6: NO | E6: NR | F6: NP | G6: TOTAL
A7: ENTRADA | B7: PACIENTE CONFIRMA SU IDENTIDAD, EL SITIO QUIRUGICO, EL PROCEDIMIENTO Y CONSENTIMIENTO | C7: 79 | E7: 1 | G7: =SUM(C7:F7) -> 80
B8: SE HA MARCADO EL SITIO QUIRURGICO | C8: 38 | D8: 10 | E8: 6 | F8: 26 | G8: =SUM(C8:F8) -> 80 | I8: =SUM(C7,C8,C9,C10,D11,D12,C13,D14,C15) -> 540 | J8: =I8/$I$10 -> 0.945709282
B9: SE COMPROBO LA DISPONIBILIDAD DE LOS EQUIPOS DE ANESTESIA Y LA MEDICACION ANESTESICA | C9: 80 | G9: 80 | I9: =SUM(D7,D8,D9,D10,C11,C12,D13,C14,D15) -> 31 | J9: =I9/$I$10 -> 0.05429071804
B10: SE COLOCO EL PULXIOMETRO AL PACIENTE Y FUNCIONA | C10: 76 | D10: 1 | E10: 3 | G10: 80 | I10: =SUM(I8:I9) -> 571
B11: EL PACIENTE TIENE ALERGIAS | D11: 80 | G11: 80
B12: VIA AEREA DIFICIL / RIESGO DE ASPIRACION | C12: 6 | D12: 73 | E12: 1 | G12: 80
B13: HAY INSTRUMENTAL Y EQUIPO DISPONIBLE | C13: 21 | D13: 1 | E13: 58 | G13: 80
B14: RIESGO DE HEMORRAGIA MENOR A 500 ML | C14: 11 | D14: 68 | E14: 1 | G14: 80
B15: SE HA PREVISTO DISPONIBILIDAD DE COMPONENTE SANGUINEO EN BANCO DE SANGRE | C15: 25 | D15: 2 | E15: 53 | G15: 80
A16: PAUSA | B16: CONFIRMAR QUE TODOS LOS MIEMBROS DEL EQUIPO PROGRAMADOS SE HAYAN PRESENTADO POR SU NOMBRE | C16: 80 | G16: 80
B17: CONFIRMAR LA IDENTIDAD DEL PACIENTE, EL PROCEDIMIENTO Y EL SITIO QUIRUGICO | C17: 80 | G17: 80
B18: CONFIRMAR SI TODOS LOS MIEMBROS DEL EQUIPO HAN CUMPLIDO CORRECTAMENTE CON EL PROTOCOLO DE AS | C18: 78 | E18: 2 | G18: 80
B19: SE HA ADMINISTRADO PROFILAXIS CON ANTIBIOTICOS EN LOS ULTIMOS 60 MINUTOS | C19: 62 | D19: 14 | E19: 1 | F19: 3 | G19: 80 | I19: =SUM(C16,C17,C18,C19,C20,,C22,D23,C24,D25,C26) -> 664 | J19: =I19/$I$21 -> 0.9083447332
B20: ¿CUALES SON LOS PASOS CRITICOS O INESPERADO? | C20: 34 | D20: 41 | E20: 5 | G20: 80 | I20: =SUM(D16,D17,D18,D19,D20,D21,D22,C23,D24,C25,D26) -> 67 | J20: =I20/$I$21 -> 0.09165526676
B21: ¿CUANTO DURARA LA OPERACIÓN? | C21: 79 | E21: 1 | G21: 80 | I21: =SUM(I19:I20) -> 731
B22: ¿CUANTO ES LA PERDIDA DE SALGRE PREVISTA? | C22: 77 | E22: 3 | G22: 80
B23: ¿PRESENTA EL PACIENTE ALGUN PROBLEMA ESPECIFICO? | C23: 5 | D23: 74 | E23: 1 | G23: 80
B24: ¿SE HA CONFIRMADO LA ESTERILIDAD DE ROPA, INSTRUMENTAL Y EQUIPOS? | C24: 80 | G24: 80
B25: ¿HAY DUDAS O PROBLEMAS RELACIONADOS CON ELLOS? | D25: 75 | E25: 5 | G25: 80
B26: ¿PUEDEN VISUALIZARSE LAS IMÁGENES DIAGNOSTICADAS ESENCIALES? | C26: 24 | D26: 7 | E26: 9 | F26: 40 | G26: 80
A27: SALIDA | B27: EL ENFERMERO CONFIRMA VERBALMENTE EL NOMBRE DEL PROCEDIMIENTO | C27: 76 | E27: 4 | G27: 80
B28: EL RECUENTO DE INSTRUMENTOS, GASA Y AGUJAS | C28: 79 | E28: 1 | G28: 80 | I28: =SUM(C27,C28,C29,C30,C31,D32) -> 261 | J28: =I28/$I$30 -> 0.731092437
B29: EL ETIQUETADO DE LAS MUESTRAS (LECTURA DE LA ETIQUETA EN VOZ ALTA, INCLUIDO EL NOMBRE DEL PACIENTE | C29: 21 | D29: 19 | E29: 5 | F29: 35 | G29: 80 | I29: =SUM(D27,D28,D29,D30,D31,C32) -> 96 | J29: =I29/$I$30 -> 0.268907563
B30: SI HAY PROBLEMAS QUE SE RESUELVE RELACIONADOS CON EL INSTRUMENTAL Y LOS EQUIPOS | C30: 1 | D30: 76 | E30: 3 | G30: 80 | I30: =SUM(I28:I29) -> 357
B31: (CIRUJANO, ANESTESIOLOGO, ENFERMERO) CUALES SON LOS ASPECTOS CRITICOS DE LA RECUPERACION Y EL TRAMITE | C31: 75 | E31: 5 | G31: 80
B32: OBSERVACIONES | C32: 1 | D32: 9 | E32: 70 | G32: 80
A33: FIRMA | B33: FIRMA DEL CIRUJANO | C33: 80 | G33: 80
B34: FIRMA DEL ANESTESIOLOGO | C34: 79 | E34: 1 | G34: 80
B35: FIRMA DE LA ENFERMERA | C35: 80 | G35: 80 | I35: =SUM(C33,C34,C35,C36,C37,C38,C39) -> 551 | J35: =I35/$I$37 -> 1
B36: FIRMA DEL COORDINADOR | C36: 79 | E36: 1 | G36: 80 | I36: =SUM(D33,D34,D35,D36,D37,,D38,D39) -> 0 | J36: =I36/$I$37 -> 0
B37: NRO DE HISTORIA CLINICA | C37: 74 | E37: 6 | G37: 80 | I37: =SUM(I35:I36) -> 551
B38: NOMBRE Y APELLIDOS DEL PACIENTE | C38: 79 | E38: 1 | G38: 80
B39: FECHA | C39: 80 | G39: 80
B45: PORCENTAJE DE CUMPLIMIENTO DE LA LISTA DE VERIFICACION DE CIRUGIA SEGURA
C51: ENTRADA | D51: (+) | E51: =J8 -> 0.945709282
D52: (-) | E52: =J9 -> 0.05429071804
C53: PAUSA | D53: (+) | E53: =J19 -> 0.9083447332 | M53: Cumplimiento
D54: (-) | E54: =J20 -> 0.09165526676 | L54: Entrada | M54: =E51 -> 0.945709282
C55: SALIDA | D55: (+) | E55: =J28 -> 0.731092437 | L55: Pausa | M55: =E53 -> 0.9083447332
D56: (-) | E56: =J29 -> 0.268907563 | L56: Salida | M56: =E55 -> 0.731092437
C57: FIRMA | D57: (+) | E57: =J35 -> 1 | L57: Firmas | M57: =E57 -> 1
D58: (-) | E58: =J36 -> 0 | L58: Cumplimiento | M58: =AVERAGE(M54:M57) -> 0.896286613
C59: CUMPLIMIENTO | E59: =M58 -> 0.896286613

Sheet I TRIMESTRE 2024
B4: REGISTRO DE LA LISTA DE VERIFICACION DE CIRUGIA SEGURA
B5: AÑO: U.E.408 HOSPITAL DE ESPINAR I TRIMESTRE 2024 | E5: NO REGISTRA | F5: NO PRECEDE
C6: SI | D6: NO | E6: NR | F6: NP | G6: TOTAL
A7: ENTRADA | B7: PACIENTE CONFIRMA SU IDENTIDAD, EL SITIO QUIRUGICO, EL PROCEDIMIENTO Y CONSENTIMIENTO | C7: =+MARZO!C7+FEBRERO!C7+ENERO!C7 -> 248 | D7: =+MARZO!D7+FEBRERO!D7+ENERO!D7 -> 0 | E7: =+MARZO!E7+FEBRERO!E7+ENERO!E7 -> 4 | F7: =+MARZO!F7+FEBRERO!F7+ENERO!F7 -> 2 | G7: =SUM(C7:F7) -> 254
B8: SE HA MARCADO EL SITIO QUIRURGICO | C8: =+MARZO!C8+FEBRERO!C8+ENERO!C8 -> 142 | D8: =+MARZO!D8+FEBRERO!D8+ENERO!D8 -> 45 | E8: =+MARZO!E8+FEBRERO!E8+ENERO!E8 -> 13 | F8: =+MARZO!F8+FEBRERO!F8+ENERO!F8 -> 54 | G8: =SUM(C8:F8) -> 254 | I8: =SUM(C7,C8,C9,C10,D11,D12,C13,D14,C15) -> 1694 | J8: =I8/$I$10 -> 0.9001062699
B9: SE COMPROBO LA DISPONIBILIDAD DE LOS EQUIPOS DE ANESTESIA Y LA MEDICACION ANESTESICA | C9: =+MARZO!C9+FEBRERO!C9+ENERO!C9 -> 250 | D9: =+MARZO!D9+FEBRERO!D9+ENERO!D9 -> 0 | E9: =+MARZO!E9+FEBRERO!E9+ENERO!E9 -> 4 | F9: =+MARZO!F9+FEBRERO!F9+ENERO!F9 -> 0 | G9: 254 | I9: =SUM(D7,D8,D9,D10,C11,C12,D13,C14,D15) -> 188 | J9: =I9/$I$10 -> 0.09989373007
B10: SE COLOCO EL PULXIOMETRO AL PACIENTE Y FUNCIONA | C10: =+MARZO!C10+FEBRERO!C10+ENERO!C10 -> 244 | D10: =+MARZO!D10+FEBRERO!D10+ENERO!D10 -> 3 | E10: =+MARZO!E10+FEBRERO!E10+ENERO!E10 -> 7 | F10: =+MARZO!F10+FEBRERO!F10+ENERO!F10 -> 0 | G10: 254 | I10: =SUM(I8:I9) -> 1882
B11: EL PACIENTE TIENE ALERGIAS | C11: =+MARZO!C11+FEBRERO!C11+ENERO!C11 -> 2 | D11: =+MARZO!D11+FEBRERO!D11+ENERO!D11 -> 251 | E11: =+MARZO!E11+FEBRERO!E11+ENERO!E11 -> 1 | F11: =+MARZO!F11+FEBRERO!F11+ENERO!F11 -> 0 | G11: 254
B12: VIA AEREA DIFICIL / RIESGO DE ASPIRACION | C12: =+MARZO!C12+FEBRERO!C12+ENERO!C12 -> 21 | D12: =+MARZO!D12+FEBRERO!D12+ENERO!D12 -> 230 | E12: =+MARZO!E12+FEBRERO!E12+ENERO!E12 -> 3 | F12: =+MARZO!F12+FEBRERO!F12+ENERO!F12 -> 0 | G12: 254
B13: HAY INSTRUMENTAL Y EQUIPO DISPONIBLE | C13: =+MARZO!C13+FEBRERO!C13+ENERO!C13 -> 61 | D13: =+MARZO!D13+FEBRERO!D13+ENERO!D13 -> 32 | E13: =+MARZO!E13+FEBRERO!E13+ENERO!E13 -> 161 | F13: =+MARZO!F13+FEBRERO!F13+ENERO!F13 -> 0 | G13: 254
B14: RIESGO DE HEMORRAGIA MENOR A 500 ML | C14: =+MARZO!C14+FEBRERO!C14+ENERO!C14 -> 45 | D14: =+MARZO!D14+FEBRERO!D14+ENERO!D14 -> 203 | E14: =+MARZO!E14+FEBRERO!E14+ENERO!E14 -> 6 | F14: =+MARZO!F14+FEBRERO!F14+ENERO!F14 -> 0 | G14: 254
B15: SE HA PREVISTO DISPONIBILIDAD DE COMPONENTE SANGUINEO EN BANCO DE SANGRE | C15: =+MARZO!C15+FEBRERO!C15+ENERO!C15 -> 65 | D15: =+MARZO!D15+FEBRERO!D15+ENERO!D15 -> 40 | E15: =+MARZO!E15+FEBRERO!E15+ENERO!E15 -> 149 | F15: =+MARZO!F15+FEBRERO!F15+ENERO!F15 -> 0 | G15: 254
A16: PAUSA | B16: CONFIRMAR QUE TODOS LOS MIEMBROS DEL EQUIPO PROGRAMADOS SE HAYAN PRESENTADO POR SU NOMBRE | C16: =+MARZO!C16+FEBRERO!C16+ENERO!C16 -> 254 | D16: =+MARZO!D16+FEBRERO!D16+ENERO!D16 -> 0 | E16: =+MARZO!E16+FEBRERO!E16+ENERO!E16 -> 0 | F16: =+MARZO!F16+FEBRERO!F16+ENERO!F16 -> 0 | G16: 254
B17: CONFIRMAR LA IDENTIDAD DEL PACIENTE, EL PROCEDIMIENTO Y EL SITIO QUIRUGICO | C17: =+MARZO!C17+FEBRERO!C17+ENERO!C17 -> 251 | D17: =+MARZO!D17+FEBRERO!D17+ENERO!D17 -> 0 | E17: =+MARZO!E17+FEBRERO!E17+ENERO!E17 -> 3 | F17: =+MARZO!F17+FEBRERO!F17+ENERO!F17 -> 0 | G17: 254
B18: CONFIRMAR SI TODOS LOS MIEMBROS DEL EQUIPO HAN CUMPLIDO CORRECTAMENTE CON EL PROTOCOLO DE AS | C18: =+MARZO!C18+FEBRERO!C18+ENERO!C18 -> 248 | D18: =+MARZO!D18+FEBRERO!D18+ENERO!D18 -> 0 | E18: =+MARZO!E18+FEBRERO!E18+ENERO!E18 -> 6 | F18: =+MARZO!F18+FEBRERO!F18+ENERO!F18 -> 0 | G18: 254
B19: SE HA ADMINISTRADO PROFILAXIS CON ANTIBIOTICOS EN LOS ULTIMOS 60 MINUTOS | C19: =+MARZO!C19+FEBRERO!C19+ENERO!C19 -> 195 | D19: =+MARZO!D19+FEBRERO!D19+ENERO!D19 -> 46 | E19: =+MARZO!E19+FEBRERO!E19+ENERO!E19 -> 6 | F19: =+MARZO!F19+FEBRERO!F19+ENERO!F19 -> 7 | G19: 254 | I19: =SUM(C16,C17,C18,C19,C20,,C22,D23,C24,D25,C26) -> 2122 | J19: =I19/$I$21 -> 0.9194107452
B20: ¿CUALES SON LOS PASOS CRITICOS O INESPERADO? | C20: =+MARZO!C20+FEBRERO!C20+ENERO!C20 -> 125 | D20: =+MARZO!D20+FEBRERO!D20+ENERO!D20 -> 110 | E20: =+MARZO!E20+FEBRERO!E20+ENERO!E20 -> 19 | F20: =+MARZO!F20+FEBRERO!F20+ENERO!F20 -> 0 | G20: 254 | I20: =SUM(D16,D17,D18,D19,D20,D21,D22,C23,D24,C25,D26) -> 186 | J20: =I20/$I$21 -> 0.08058925477
B21: ¿CUANTO DURARA LA OPERACIÓN? | C21: =+MARZO!C21+FEBRERO!C21+ENERO!C21 -> 248 | D21: =+MARZO!D21+FEBRERO!D21+ENERO!D21 -> 0 | E21: =+MARZO!E21+FEBRERO!E21+ENERO!E21 -> 6 | F21: =+MARZO!F21+FEBRERO!F21+ENERO!F21 -> 0 | G21: 254 | I21: =SUM(I19:I20) -> 2308
B22: ¿CUANTO ES LA PERDIDA DE SALGRE PREVISTA? | C22: =+MARZO!C22+FEBRERO!C22+ENERO!C22 -> 241 | D22: =+MARZO!D22+FEBRERO!D22+ENERO!D22 -> 0 | E22: =+MARZO!E22+FEBRERO!E22+ENERO!E22 -> 13 | F22: =+MARZO!F22+FEBRERO!F22+ENERO!F22 -> 0 | G22: 254
B23: ¿PRESENTA EL PACIENTE ALGUN PROBLEMA ESPECIFICO? | C23: =+MARZO!C23+FEBRERO!C23+ENERO!C23 -> 15 | D23: =+MARZO!D23+FEBRERO!D23+ENERO!D23 -> 226 | E23: =+MARZO!E23+FEBRERO!E23+ENERO!E23 -> 13 | F23: =+MARZO!F23+FEBRERO!F23+ENERO!F23 -> 0 | G23: 254
B24: ¿SE HA CONFIRMADO LA ESTERILIDAD DE ROPA, INSTRUMENTAL Y EQUIPOS? | C24: =+MARZO!C24+FEBRERO!C24+ENERO!C24 -> 254 | D24: =+MARZO!D24+FEBRERO!D24+ENERO!D24 -> 0 | E24: =+MARZO!E24+FEBRERO!E24+ENERO!E24 -> 0 | F24: =+MARZO!F24+FEBRERO!F24+ENERO!F24 -> 0 | G24: 254
B25: ¿HAY DUDAS O PROBLEMAS RELACIONADOS CON ELLOS? | C25: =+MARZO!C25+FEBRERO!C25+ENERO!C25 -> 3 | D25: =+MARZO!D25+FEBRERO!D25+ENERO!D25 -> 238 | E25: =+MARZO!E25+FEBRERO!E25+ENERO!E25 -> 13 | F25: =+MARZO!F25+FEBRERO!F25+ENERO!F25 -> 0 | G25: 254
B26: ¿PUEDEN VISUALIZARSE LAS IMÁGENES DIAGNOSTICADAS ESENCIALES? | C26: =+MARZO!C26+FEBRERO!C26+ENERO!C26 -> 90 | D26: =+MARZO!D26+FEBRERO!D26+ENERO!D26 -> 12 | E26: =+MARZO!E26+FEBRERO!E26+ENERO!E26 -> 32 | F26: =+MARZO!F26+FEBRERO!F26+ENERO!F26 -> 120 | G26: 254
A27: SALIDA | B27: EL ENFERMERO CONFIRMA VERBALMENTE EL NOMBRE DEL PROCEDIMIENTO | C27: =+MARZO!C27+FEBRERO!C27+ENERO!C27 -> 249 | D27: =+MARZO!D27+FEBRERO!D27+ENERO!D27 -> 0 | E27: =+MARZO!E27+FEBRERO!E27+ENERO!E27 -> 5 | F27: =+MARZO!F27+FEBRERO!F27+ENERO!F27 -> 0 | G27: 254
B28: EL RECUENTO DE INSTRUMENTOS, GASA Y AGUJAS | C28: =+MARZO!C28+FEBRERO!C28+ENERO!C28 -> 253 | D28: =+MARZO!D28+FEBRERO!D28+ENERO!D28 -> 0 | E28: =+MARZO!E28+FEBRERO!E28+ENERO!E28 -> 1 | F28: =+MARZO!F28+FEBRERO!F28+ENERO!F28 -> 0 | G28: 254 | I28: =SUM(C27,C28,C29,C30,C31,D32) -> 836 | J28: =I28/$I$30 -> 0.7175965665
B29: EL ETIQUETADO DE LAS MUESTRAS (LECTURA DE LA ETIQUETA EN VOZ ALTA, INCLUIDO EL NOMBRE DEL PACIENTE | C29: =+MARZO!C29+FEBRERO!C29+ENERO!C29 -> 73 | D29: =+MARZO!D29+FEBRERO!D29+ENERO!D29 -> 80 | E29: =+MARZO!E29+FEBRERO!E29+ENERO!E29 -> 10 | F29: =+MARZO!F29+FEBRERO!F29+ENERO!F29 -> 91 | G29: 254 | I29: =SUM(D27,D28,D29,D30,D31,C32) -> 329 | J29: =I29/$I$30 -> 0.2824034335
B30: SI HAY PROBLEMAS QUE SE RESUELVE RELACIONADOS CON EL INSTRUMENTAL Y LOS EQUIPOS | C30: =+MARZO!C30+FEBRERO!C30+ENERO!C30 -> 4 | D30: =+MARZO!D30+FEBRERO!D30+ENERO!D30 -> 243 | E30: =+MARZO!E30+FEBRERO!E30+ENERO!E30 -> 7 | F30: =+MARZO!F30+FEBRERO!F30+ENERO!F30 -> 0 | G30: 254 | I30: =SUM(I28:I29) -> 1165
B31: (CIRUJANO, ANESTESIOLOGO, ENFERMERO) CUALES SON LOS ASPECTOS CRITICOS DE LA RECUPERACION Y EL TRAMITE | C31: =+MARZO!C31+FEBRERO!C31+ENERO!C31 -> 246 | D31: =+MARZO!D31+FEBRERO!D31+ENERO!D31 -> 0 | E31: =+MARZO!E31+FEBRERO!E31+ENERO!E31 -> 8 | F31: =+MARZO!F31+FEBRERO!F31+ENERO!F31 -> 0 | G31: 254
B32: OBSERVACIONES | C32: =+MARZO!C32+FEBRERO!C32+ENERO!C32 -> 6 | D32: =+MARZO!D32+FEBRERO!D32+ENERO!D32 -> 11 | E32: =+MARZO!E32+FEBRERO!E32+ENERO!E32 -> 236 | F32: =+MARZO!F32+FEBRERO!F32+ENERO!F32 -> 0 | G32: 253
A33: FIRMA | B33: FIRMA DEL CIRUJANO | C33: =+MARZO!C33+FEBRERO!C33+ENERO!C33 -> 254 | D33: =+MARZO!D33+FEBRERO!D33+ENERO!D33 -> 0 | E33: =+MARZO!E33+FEBRERO!E33+ENERO!E33 -> 0 | F33: =+MARZO!F33+FEBRERO!F33+ENERO!F33 -> 0 | G33: 254
B34: FIRMA DEL ANESTESIOLOGO | C34: =+MARZO!C34+FEBRERO!C34+ENERO!C34 -> 251 | D34: =+MARZO!D34+FEBRERO!D34+ENERO!D34 -> 1 | E34: =+MARZO!E34+FEBRERO!E34+ENERO!E34 -> 2 | F34: =+MARZO!F34+FEBRERO!F34+ENERO!F34 -> 0 | G34: 254
B35: FIRMA DE LA ENFERMERA | C35: =+MARZO!C35+FEBRERO!C35+ENERO!C35 -> 252 | D35: =+MARZO!D35+FEBRERO!D35+ENERO!D35 -> 1 | E35: =+MARZO!E35+FEBRERO!E35+ENERO!E35 -> 1 | F35: =+MARZO!F35+FEBRERO!F35+ENERO!F35 -> 0 | G35: 254 | I35: =SUM(C33,C34,C35,C36,C37,C38,C39) -> 1743 | J35: =I35/$I$37 -> 0.9925968109
B36: FIRMA DEL COORDINADOR | C36: =+MARZO!C36+FEBRERO!C36+ENERO!C36 -> 247 | D36: =+MARZO!D36+FEBRERO!D36+ENERO!D36 -> 4 | E36: =+MARZO!E36+FEBRERO!E36+ENERO!E36 -> 3 | F36: =+MARZO!F36+FEBRERO!F36+ENERO!F36 -> 0 | G36: 254 | I36: =SUM(D33,D34,D35,D36,D37,,D38,D39) -> 13 | J36: =I36/$I$37 -> 0.007403189066
B37: NRO DE HISTORIA CLINICA | C37: =+MARZO!C37+FEBRERO!C37+ENERO!C37 -> 236 | D37: =+MARZO!D37+FEBRERO!D37+ENERO!D37 -> 5 | E37: =+MARZO!E37+FEBRERO!E37+ENERO!E37 -> 13 | F37: =+MARZO!F37+FEBRERO!F37+ENERO!F37 -> 0 | G37: 254 | I37: =SUM(I35:I36) -> 1756
B38: NOMBRE Y APELLIDOS DEL PACIENTE | C38: =+MARZO!C38+FEBRERO!C38+ENERO!C38 -> 251 | D38: =+MARZO!D38+FEBRERO!D38+ENERO!D38 -> 1 | E38: =+MARZO!E38+FEBRERO!E38+ENERO!E38 -> 2 | F38: =+MARZO!F38+FEBRERO!F38+ENERO!F38 -> 0 | G38: 254
B39: FECHA | C39: =+MARZO!C39+FEBRERO!C39+ENERO!C39 -> 252 | D39: =+MARZO!D39+FEBRERO!D39+ENERO!D39 -> 1 | E39: =+MARZO!E39+FEBRERO!E39+ENERO!E39 -> 1 | F39: =+MARZO!F39+FEBRERO!F39+ENERO!F39 -> 0 | G39: 254
B45: PORCENTAJE DE CUMPLIMIENTO DE LA LISTA DE VERIFICACION DE CIRUGIA SEGURA
C51: ENTRADA | D51: (+) | E51: =J8 -> 0.9001062699
D52: (-) | E52: =J9 -> 0.09989373007
C53: PAUSA | D53: (+) | E53: =J19 -> 0.9194107452 | M53: Cumplimiento
D54: (-) | E54: =J20 -> 0.08058925477 | L54: Entrada | M54: =E51 -> 0.9001062699
C55: SALIDA | D55: (+) | E55: =J28 -> 0.7175965665 | L55: Pausa | M55: =E53 -> 0.9194107452
D56: (-) | E56: =J29 -> 0.2824034335 | L56: Salida | M56: =E55 -> 0.7175965665
C57: FIRMA | D57: (+) | E57: =J35 -> 0.9925968109 | L57: Firmas | M57: =E57 -> 0.9925968109
D58: (-) | E58: =J36 -> 0.007403189066 | L58: Cumplimiento | M58: =AVERAGE(M54:M57) -> 0.8824275982
C59: CUMPLIMIENTO | E59: =M58 -> 0.8824275982

Sheet ABRIL
B4: REGISTRO DE LA LISTA DE VERIFICACION DE CIRUGIA SEGURA
B5: AÑO: U.E. 408 HOSPITAL DE ESPINAR -ABRIL 2024 | E5: NO REGISTRA | F5: NO PRECEDE
C6: SI | D6: NO | E6: NR | F6: NP | G6: TOTAL
A7: ENTRADA | B7: PACIENTE CONFIRMA SU IDENTIDAD, EL SITIO QUIRUGICO, EL PROCEDIMIENTO Y CONSENTIMIENTO | C7: 82 | G7: =SUM(C7:F7) -> 82
B8: SE HA MARCADO EL SITIO QUIRURGICO | C8: 30 | D8: 18 | F8: 34 | G8: =SUM(C8:F8) -> 82 | I8: =SUM(C7,C8,C9,C10,D11,D12,C13,D14,C15) -> 569 | J8: =I8/$I$10 -> 0.9089456869
B9: SE COMPROBO LA DISPONIBILIDAD DE LOS EQUIPOS DE ANESTESIA Y LA MEDICACION ANESTESICA | C9: 82 | G9: 82 | I9: =SUM(D7,D8,D9,D10,C11,C12,D13,C14,D15) -> 57 | J9: =I9/$I$10 -> 0.0910543131
B10: SE COLOCO EL PULXIOMETRO AL PACIENTE Y FUNCIONA | C10: 80 | E10: 2 | G10: 82 | I10: =SUM(I8:I9) -> 626
B11: EL PACIENTE TIENE ALERGIAS | C11: 3 | D11: 79 | G11: 82
B12: VIA AEREA DIFICIL / RIESGO DE ASPIRACION | C12: 10 | D12: 72 | G12: 82
B13: HAY INSTRUMENTAL Y EQUIPO DISPONIBLE | C13: 40 | D13: 3 | E13: 39 | G13: 82
B14: RIESGO DE HEMORRAGIA MENOR A 500 ML | C14: 15 | D14: 64 | E14: 3 | G14: 82
B15: SE HA PREVISTO DISPONIBILIDAD DE COMPONENTE SANGUINEO EN BANCO DE SANGRE | C15: 40 | D15: 8 | E15: 34 | G15: 82
A16: PAUSA | B16: CONFIRMAR QUE TODOS LOS MIEMBROS DEL EQUIPO PROGRAMADOS SE HAYAN PRESENTADO POR SU NOMBRE | C16: 81 | E16: 1 | G16: 82
B17: CONFIRMAR LA IDENTIDAD DEL PACIENTE, EL PROCEDIMIENTO Y EL SITIO QUIRUGICO | C17: 82 | G17: 82
B18: CONFIRMAR SI TODOS LOS MIEMBROS DEL EQUIPO HAN CUMPLIDO CORRECTAMENTE CON EL PROTOCOLO DE AS | C18: 80 | E18: 2 | G18: 82
B19: SE HA ADMINISTRADO PROFILAXIS CON ANTIBIOTICOS EN LOS ULTIMOS 60 MINUTOS | C19: 61 | D19: 10 | E19: 6 | F19: 5 | G19: 82 | I19: =SUM(C16,C17,C18,C19,C20,,C22,D23,C24,D25,C26) -> 682 | J19: =I19/$I$21 -> 0.9253731343
B20: ¿CUALES SON LOS PASOS CRITICOS O INESPERADO? | C20: 47 | D20: 34 | E20: 1 | G20: 82 | I20: =SUM(D16,D17,D18,D19,D20,D21,D22,C23,D24,C25,D26) -> 55 | J20: =I20/$I$21 -> 0.07462686567
B21: ¿CUANTO DURARA LA OPERACIÓN? | C21: 81 | E21: 1 | G21: 82 | I21: =SUM(I19:I20) -> 737
B22: ¿CUANTO ES LA PERDIDA DE SALGRE PREVISTA? | C22: 79 | E22: 3 | G22: 82
B23: ¿PRESENTA EL PACIENTE ALGUN PROBLEMA ESPECIFICO? | C23: 11 | D23: 67 | E23: 4 | G23: 82
B24: ¿SE HA CONFIRMADO LA ESTERILIDAD DE ROPA, INSTRUMENTAL Y EQUIPOS? | C24: 82 | G24: 82
B25: ¿HAY DUDAS O PROBLEMAS RELACIONADOS CON ELLOS? | D25: 81 | E25: 1 | G25: 82
B26: ¿PUEDEN VISUALIZARSE LAS IMÁGENES DIAGNOSTICADAS ESENCIALES? | C26: 22 | E26: 8 | F26: 52 | G26: 82
A27: SALIDA | B27: EL ENFERMERO CONFIRMA VERBALMENTE EL NOMBRE DEL PROCEDIMIENTO | C27: 78 | E27: 4 | G27: 82
B28: EL RECUENTO DE INSTRUMENTOS, GASA Y AGUJAS | C28: 71 | E28: 11 | G28: 82 | I28: =SUM(C27,C28,C29,C30,C31,D32) -> 275 | J28: =I28/$I$30 -> 0.7372654155
B29: EL ETIQUETADO DE LAS MUESTRAS (LECTURA DE LA ETIQUETA EN VOZ ALTA, INCLUIDO EL NOMBRE DEL PACIENTE | C29: 22 | D29: 16 | E29: 5 | F29: 39 | G29: 82 | I29: =SUM(D27,D28,D29,D30,D31,C32) -> 98 | J29: =I29/$I$30 -> 0.2627345845
B30: SI HAY PROBLEMAS QUE SE RESUELVE RELACIONADOS CON EL INSTRUMENTAL Y LOS EQUIPOS | C30: 1 | D30: 81 | G30: 82 | I30: =SUM(I28:I29) -> 373
B31: (CIRUJANO, ANESTESIOLOGO, ENFERMERO) CUALES SON LOS ASPECTOS CRITICOS DE LA RECUPERACION Y EL TRAMITE | C31: 81 | E31: 1 | G31: 82
B32: OBSERVACIONES | C32: 1 | D32: 22 | E32: 59 | G32: 82
A33: FIRMA | B33: FIRMA DEL CIRUJANO | C33: 82 | G33: 82
B34: FIRMA DEL ANESTESIOLOGO | C34: 82 | G34: 82
B35: FIRMA DE LA ENFERMERA | C35: 82 | G35: 82 | I35: =SUM(C33,C34,C35,C36,C37,C38,C39) -> 567 | J35: =I35/$I$37 -> 0.987804878
B36: FIRMA DEL COORDINADOR | C36: 80 | D36: 2 | G36: 82 | I36: =SUM(D33,D34,D35,D36,D37,,D38,D39) -> 7 | J36: =I36/$I$37 -> 0.01219512195
B37: NRO DE HISTORIA CLINICA | C37: 79 | D37: 3 | G37: 82 | I37: =SUM(I35:I36) -> 574
B38: NOMBRE Y APELLIDOS DEL PACIENTE | C38: 81 | D38: 1 | G38: 82
B39: FECHA | C39: 81 | D39: 1 | G39: 82
B45: PORCENTAJE DE CUMPLIMIENTO DE LA LISTA DE VERIFICACION DE CIRUGIA SEGURA
C51: ENTRADA | D51: (+) | E51: =J8 -> 0.9089456869
D52: (-) | E52: =J9 -> 0.0910543131
C53: PAUSA | D53: (+) | E53: =J19 -> 0.9253731343 | M53: Cumplimiento
D54: (-) | E54: =J20 -> 0.07462686567 | L54: Entrada | M54: =E51 -> 0.9089456869
C55: SALIDA | D55: (+) | E55: =J28 -> 0.7372654155 | L55: Pausa | M55: =E53 -> 0.9253731343
D56: (-) | E56: =J29 -> 0.2627345845 | L56: Salida | M56: =E55 -> 0.7372654155
C57: FIRMA | D57: (+) | E57: =J35 -> 0.987804878 | L57: Firmas | M57: =E57 -> 0.987804878
D58: (-) | E58: =J36 -> 0.01219512195 | L58: Cumplimiento | M58: =AVERAGE(M54:M57) -> 0.8898472787
C59: CUMPLIMIENTO | E59: =M58 -> 0.8898472787

Sheet MAYO
B4: REGISTRO DE LA LISTA DE VERIFICACION DE CIRUGIA SEGURA
B5: AÑO: U.E.408 HOSPITAL DE ESPINAR MAYO - 2024 | E5: NO REGISTRA | F5: NO PRECEDE
C6: SI | D6: NO | E6: NR | F6: NP | G6: TOTAL
A7: ENTRADA | B7: PACIENTE CONFIRMA SU IDENTIDAD, EL SITIO QUIRUGICO, EL PROCEDIMIENTO Y CONSENTIMIENTO | C7: 53 | G7: =SUM(C7:F7) -> 53
B8: SE HA MARCADO EL SITIO QUIRURGICO | C8: 20 | D8: 14 | F8: 19 | G8: =SUM(C8:F8) -> 53 | I8: =SUM(C7,C8,C9,C10,D11,D12,C13,D14,C15) -> 356 | J8: =I8/$I$10 -> 0.8944723618
B9: SE COMPROBO LA DISPONIBILIDAD DE LOS EQUIPOS DE ANESTESIA Y LA MEDICACION ANESTESICA | C9: 53 | G9: 53 | I9: =SUM(D7,D8,D9,D10,C11,C12,D13,C14,D15) -> 42 | J9: =I9/$I$10 -> 0.1055276382
B10: SE COLOCO EL PULXIOMETRO AL PACIENTE Y FUNCIONA | C10: 53 | G10: 53 | I10: =SUM(I8:I9) -> 398
B11: EL PACIENTE TIENE ALERGIAS | D11: 53 | G11: 53
B12: VIA AEREA DIFICIL / RIESGO DE ASPIRACION | C12: 1 | D12: 51 | E12: 1 | G12: 53
B13: HAY INSTRUMENTAL Y EQUIPO DISPONIBLE | C13: 13 | D13: 5 | E13: 35 | G13: 53
B14: RIESGO DE HEMORRAGIA MENOR A 500 ML | C14: 16 | D14: 37 | G14: 53
B15: SE HA PREVISTO DISPONIBILIDAD DE COMPONENTE SANGUINEO EN BANCO DE SANGRE | C15: 23 | D15: 6 | E15: 24 | G15: 53
A16: PAUSA | B16: CONFIRMAR QUE TODOS LOS MIEMBROS DEL EQUIPO PROGRAMADOS SE HAYAN PRESENTADO POR SU NOMBRE | C16: 53 | G16: 53
B17: CONFIRMAR LA IDENTIDAD DEL PACIENTE, EL PROCEDIMIENTO Y EL SITIO QUIRUGICO | C17: 53 | G17: 53
B18: CONFIRMAR SI TODOS LOS MIEMBROS DEL EQUIPO HAN CUMPLIDO CORRECTAMENTE CON EL PROTOCOLO DE AS | C18: 52 | E18: 1 | G18: 53
B19: SE HA ADMINISTRADO PROFILAXIS CON ANTIBIOTICOS EN LOS ULTIMOS 60 MINUTOS | C19: 43 | D19: 6 | E19: 3 | F19: 1 | G19: 53 | I19: =SUM(C16,C17,C18,C19,C20,,C22,D23,C24,D25,C26) -> 433 | J19: =I19/$I$21 -> 0.9058577406
B20: ¿CUALES SON LOS PASOS CRITICOS O INESPERADO? | C20: 21 | D20: 31 | E20: 1 | G20: 53 | I20: =SUM(D16,D17,D18,D19,D20,D21,D22,C23,D24,C25,D26) -> 45 | J20: =I20/$I$21 -> 0.09414225941
B21: ¿CUANTO DURARA LA OPERACIÓN? | C21: 51 | E21: 2 | G21: 53 | I21: =SUM(I19:I20) -> 478
B22: ¿CUANTO ES LA PERDIDA DE SALGRE PREVISTA? | C22: 50 | E22: 3 | G22: 53
B23: ¿PRESENTA EL PACIENTE ALGUN PROBLEMA ESPECIFICO? | C23: 4 | D23: 47 | E23: 2 | G23: 53
B24: ¿SE HA CONFIRMADO LA ESTERILIDAD DE ROPA, INSTRUMENTAL Y EQUIPOS? | C24: 52 | E24: 1 | G24: 53
B25: ¿HAY DUDAS O PROBLEMAS RELACIONADOS CON ELLOS? | D25: 50 | E25: 3 | G25: 53
B26: ¿PUEDEN VISUALIZARSE LAS IMÁGENES DIAGNOSTICADAS ESENCIALES? | C26: 12 | D26: 4 | E26: 5 | F26: 32 | G26: 53
A27: SALIDA | B27: EL ENFERMERO CONFIRMA VERBALMENTE EL NOMBRE DEL PROCEDIMIENTO | C27: 53 | G27: 53
B28: EL RECUENTO DE INSTRUMENTOS, GASA Y AGUJAS | C28: 53 | G28: 53 | I28: =SUM(C27,C28,C29,C30,C31,D32) -> 126 | J28: =I28/$I$30 -> 0.5185185185
B29: EL ETIQUETADO DE LAS MUESTRAS (LECTURA DE LA ETIQUETA EN VOZ ALTA, INCLUIDO EL NOMBRE DEL PACIENTE | C29: 6 | D29: 15 | E29: 3 | F29: 29 | G29: 53 | I29: =SUM(D27,D28,D29,D30,D31,C32) -> 117 | J29: =I29/$I$30 -> 0.4814814815
B30: SI HAY PROBLEMAS QUE SE RESUELVE RELACIONADOS CON EL INSTRUMENTAL Y LOS EQUIPOS | D30: 53 | G30: 53 | I30: =SUM(I28:I29) -> 243
B31: (CIRUJANO, ANESTESIOLOGO, ENFERMERO) CUALES SON LOS ASPECTOS CRITICOS DE LA RECUPERACION Y EL TRAMITE | C31: 2 | D31: 49 | E31: 2 | G31: 53
B32: OBSERVACIONES | D32: 12 | E32: 41 | G32: 53
A33: FIRMA | B33: FIRMA DEL CIRUJANO | C33: 53 | G33: 53
B34: FIRMA DEL ANESTESIOLOGO | C34: 53 | G34: 53
B35: FIRMA DE LA ENFERMERA | C35: 53 | G35: 53 | I35: =SUM(C33,C34,C35,C36,C37,C38,C39) -> 370 | J35: =I35/$I$37 -> 0.9973045822
B36: FIRMA DEL COORDINADOR | C36: 53 | G36: 53 | I36: =SUM(D33,D34,D35,D36,D37,,D38,D39) -> 1 | J36: =I36/$I$37 -> 0.00269541779
B37: NRO DE HISTORIA CLINICA | C37: 52 | D37: 1 | G37: 53 | I37: =SUM(I35:I36) -> 371
B38: NOMBRE Y APELLIDOS DEL PACIENTE | C38: 53 | G38: 53
B39: FECHA | C39: 53 | G39: 53
B45: PORCENTAJE DE CUMPLIMIENTO DE LA LISTA DE VERIFICACION DE CIRUGIA SEGURA
C51: ENTRADA | D51: (+) | E51: =J8 -> 0.8944723618
D52: (-) | E52: =J9 -> 0.1055276382
C53: PAUSA | D53: (+) | E53: =J19 -> 0.9058577406 | M53: Cumplimiento
D54: (-) | E54: =J20 -> 0.09414225941 | L54: Entrada | M54: =E51 -> 0.8944723618
C55: SALIDA | D55: (+) | E55: =J28 -> 0.5185185185 | L55: Pausa | M55: =E53 -> 0.9058577406
D56: (-) | E56: =J29 -> 0.4814814815 | L56: Salida | M56: =E55 -> 0.5185185185
C57: FIRMA | D57: (+) | E57: =J35 -> 0.9973045822 | L57: Firmas | M57: =E57 -> 0.9973045822
D58: (-) | E58: =J36 -> 0.00269541779 | L58: Cumplimiento | M58: =AVERAGE(M54:M57) -> 0.8290383008
C59: CUMPLIMIENTO | E59: =M58 -> 0.8290383008

Sheet JUNIO
B4: REGISTRO DE LA LISTA DE VERIFICACION DE CIRUGIA SEGURA
B5: AÑO: U.E.408 HOSPITAL DE ESPINAR JUNIO - 2024 | E5: NO REGISTRA | F5: NO PRECEDE
C6: SI | D6: NO | E6: NR | F6: NP | G6: TOTAL
A7: ENTRADA | B7: PACIENTE CONFIRMA SU IDENTIDAD, EL SITIO QUIRUGICO, EL PROCEDIMIENTO Y CONSENTIMIENTO | C7: 53 | G7: =SUM(C7:F7) -> 53
B8: SE HA MARCADO EL SITIO QUIRURGICO | C8: 26 | D8: 18 | F8: 9 | G8: =SUM(C8:F8) -> 53 | I8: =SUM(C7,C8,C9,C10,D11,D12,C13,D14,C15) -> 389 | J8: =I8/$I$10 -> 0.9025522042
B9: SE COMPROBO LA DISPONIBILIDAD DE LOS EQUIPOS DE ANESTESIA Y LA MEDICACION ANESTESICA | C9: 52 | E9: 1 | G9: 53 | I9: =SUM(D7,D8,D9,D10,C11,C12,D13,C14,D15) -> 42 | J9: =I9/$I$10 -> 0.09744779582
B10: SE COLOCO EL PULXIOMETRO AL PACIENTE Y FUNCIONA | C10: 53 | G10: 53 | I10: =SUM(I8:I9) -> 431
B11: EL PACIENTE TIENE ALERGIAS | C11: 0 | D11: 53 | G11: 53
B12: VIA AEREA DIFICIL / RIESGO DE ASPIRACION | C12: 7 | D12: 46 | G12: 53
B13: HAY INSTRUMENTAL Y EQUIPO DISPONIBLE | C13: 32 | D13: 2 | E13: 19 | G13: 53
B14: RIESGO DE HEMORRAGIA MENOR A 500 ML | C14: 11 | D14: 42 | G14: 53
B15: SE HA PREVISTO DISPONIBILIDAD DE COMPONENTE SANGUINEO EN BANCO DE SANGRE | C15: 32 | D15: 4 | E15: 17 | G15: 53
A16: PAUSA | B16: CONFIRMAR QUE TODOS LOS MIEMBROS DEL EQUIPO PROGRAMADOS SE HAYAN PRESENTADO POR SU NOMBRE | C16: 53 | G16: 53
B17: CONFIRMAR LA IDENTIDAD DEL PACIENTE, EL PROCEDIMIENTO Y EL SITIO QUIRUGICO | C17: 53 | G17: 53
B18: CONFIRMAR SI TODOS LOS MIEMBROS DEL EQUIPO HAN CUMPLIDO CORRECTAMENTE CON EL PROTOCOLO DE AS | C18: 53 | G18: 53
B19: SE HA ADMINISTRADO PROFILAXIS CON ANTIBIOTICOS EN LOS ULTIMOS 60 MINUTOS | C19: 43 | D19: 7 | F19: 3 | G19: 53 | I19: =SUM(C16,C17,C18,C19,C20,,C22,D23,C24,D25,C26) -> 445 | J19: =I19/$I$21 -> 0.9008097166
B20: ¿CUALES SON LOS PASOS CRITICOS O INESPERADO? | C20: 23 | D20: 30 | G20: 53 | I20: =SUM(D16,D17,D18,D19,D20,D21,D22,C23,D24,C25,D26) -> 49 | J20: =I20/$I$21 -> 0.0991902834
B21: ¿CUANTO DURARA LA OPERACIÓN? | C21: 53 | G21: 53 | I21: =SUM(I19:I20) -> 494
B22: ¿CUANTO ES LA PERDIDA DE SALGRE PREVISTA? | C22: 52 | E22: 1 | G22: 53
B23: ¿PRESENTA EL PACIENTE ALGUN PROBLEMA ESPECIFICO? | C23: 2 | D23: 49 | E23: 2 | G23: 53
B24: ¿SE HA CONFIRMADO LA ESTERILIDAD DE ROPA, INSTRUMENTAL Y EQUIPOS? | C24: 53 | G24: 53
B25: ¿HAY DUDAS O PROBLEMAS RELACIONADOS CON ELLOS? | D25: 53 | G25: 53
B26: ¿PUEDEN VISUALIZARSE LAS IMÁGENES DIAGNOSTICADAS ESENCIALES? | C26: 13 | D26: 10 | E26: 3 | F26: 27 | G26: 53
A27: SALIDA | B27: EL ENFERMERO CONFIRMA VERBALMENTE EL NOMBRE DEL PROCEDIMIENTO | C27: 53 | G27: 53
B28: EL RECUENTO DE INSTRUMENTOS, GASA Y AGUJAS | C28: 53 | G28: 53 | I28: =SUM(C27,C28,C29,C30,C31,D32) -> 148 | J28: =I28/$I$30 -> 0.5421245421
B29: EL ETIQUETADO DE LAS MUESTRAS (LECTURA DE LA ETIQUETA EN VOZ ALTA, INCLUIDO EL NOMBRE DEL PACIENTE | C29: 13 | D29: 18 | E29: 1 | F29: 21 | G29: 53 | I29: =SUM(D27,D28,D29,D30,D31,C32) -> 125 | J29: =I29/$I$30 -> 0.4578754579
B30: SI HAY PROBLEMAS QUE SE RESUELVE RELACIONADOS CON EL INSTRUMENTAL Y LOS EQUIPOS | D30: 53 | G30: 53 | I30: =SUM(I28:I29) -> 273
B31: (CIRUJANO, ANESTESIOLOGO, ENFERMERO) CUALES SON LOS ASPECTOS CRITICOS DE LA RECUPERACION Y EL TRAMITE | C31: 4 | D31: 49 | G31: 53
B32: OBSERVACIONES | C32: 5 | D32: 25 | E32: 23 | G32: 53
A33: FIRMA | B33: FIRMA DEL CIRUJANO | C33: 53 | G33: 53
B34: FIRMA DEL ANESTESIOLOGO | C34: 53 | G34: 53
B35: FIRMA DE LA ENFERMERA | C35: 53 | G35: 53 | I35: =SUM(C33,C34,C35,C36,C37,C38,C39) -> 370 | J35: =I35/$I$37 -> 0.9973045822
B36: FIRMA DEL COORDINADOR | C36: 53 | G36: 53 | I36: =SUM(D33,D34,D35,D36,D37,,D38,D39) -> 1 | J36: =I36/$I$37 -> 0.00269541779
B37: NRO DE HISTORIA CLINICA | C37: 53 | G37: 53 | I37: =SUM(I35:I36) -> 371
B38: NOMBRE Y APELLIDOS DEL PACIENTE | C38: 53 | G38: 53
B39: FECHA | C39: 52 | D39: 1 | G39: 53
B45: PORCENTAJE DE CUMPLIMIENTO DE LA LISTA DE VERIFICACION DE CIRUGIA SEGURA
C51: ENTRADA | D51: (+) | E51: =J8 -> 0.9025522042
D52: (-) | E52: =J9 -> 0.09744779582
C53: PAUSA | D53: (+) | E53: =J19 -> 0.9008097166 | M53: Cumplimiento
D54: (-) | E54: =J20 -> 0.0991902834 | L54: Entrada | M54: =E51 -> 0.9025522042
C55: SALIDA | D55: (+) | E55: =J28 -> 0.5421245421 | L55: Pausa | M55: =E53 -> 0.9008097166
D56: (-) | E56: =J29 -> 0.4578754579 | L56: Salida | M56: =E55 -> 0.5421245421
C57: FIRMA | D57: (+) | E57: =J35 -> 0.9973045822 | L57: Firmas | M57: =E57 -> 0.9973045822
D58: (-) | E58: =J36 -> 0.00269541779 | L58: Cumplimiento | M58: =AVERAGE(M54:M57) -> 0.8356977613
C59: CUMPLIMIENTO | E59: =M58 -> 0.8356977613

Sheet II TRIMESTRE 2024
B4: REGISTRO DE LA LISTA DE VERIFICACION DE CIRUGIA SEGURA
B5: AÑO: U.E.408 HOSPITAL DE ESPINAR - II TRIMESTRE 2024 | E5: NO REGISTRA | F5: NO PRECEDE
C6: SI | D6: NO | E6: NR | F6: NP | G6: TOTAL
A7: ENTRADA | B7: PACIENTE CONFIRMA SU IDENTIDAD, EL SITIO QUIRUGICO, EL PROCEDIMIENTO Y CONSENTIMIENTO | C7: =+ABRIL!C7+MAYO!C7+JUNIO!C7 -> 188 | D7: =+ABRIL!D7+MAYO!D7+JUNIO!D7 -> 0 | E7: =+ABRIL!E7+MAYO!E7+JUNIO!E7 -> 0 | F7: =+ABRIL!F7+MAYO!F7+JUNIO!F7 -> 0 | G7: =SUM(C7:F7) -> 188
B8: SE HA MARCADO EL SITIO QUIRURGICO | C8: =+ABRIL!C8+MAYO!C8+JUNIO!C8 -> 76 | D8: =+ABRIL!D8+MAYO!D8+JUNIO!D8 -> 50 | E8: =+ABRIL!E8+MAYO!E8+JUNIO!E8 -> 0 | F8: =+ABRIL!F8+MAYO!F8+JUNIO!F8 -> 62 | G8: 188 | I8: =SUM(C7,C8,C9,C10,D11,D12,C13,D14,C15) -> 1314 | J8: =I8/$I$10 -> 0.9030927835
B9: SE COMPROBO LA DISPONIBILIDAD DE LOS EQUIPOS DE ANESTESIA Y LA MEDICACION ANESTESICA | C9: =+ABRIL!C9+MAYO!C9+JUNIO!C9 -> 187 | D9: =+ABRIL!D9+MAYO!D9+JUNIO!D9 -> 0 | E9: =+ABRIL!E9+MAYO!E9+JUNIO!E9 -> 1 | F9: =+ABRIL!F9+MAYO!F9+JUNIO!F9 -> 0 | G9: 188 | I9: =SUM(D7,D8,D9,D10,C11,C12,D13,C14,D15) -> 141 | J9: =I9/$I$10 -> 0.09690721649
B10: SE COLOCO EL PULXIOMETRO AL PACIENTE Y FUNCIONA | C10: =+ABRIL!C10+MAYO!C10+JUNIO!C10 -> 186 | D10: =+ABRIL!D10+MAYO!D10+JUNIO!D10 -> 0 | E10: =+ABRIL!E10+MAYO!E10+JUNIO!E10 -> 2 | F10: =+ABRIL!F10+MAYO!F10+JUNIO!F10 -> 0 | G10: 188 | I10: =SUM(I8:I9) -> 1455
B11: EL PACIENTE TIENE ALERGIAS | C11: =+ABRIL!C11+MAYO!C11+JUNIO!C11 -> 3 | D11: =+ABRIL!D11+MAYO!D11+JUNIO!D11 -> 185 | E11: =+ABRIL!E11+MAYO!E11+JUNIO!E11 -> 0 | F11: =+ABRIL!F11+MAYO!F11+JUNIO!F11 -> 0 | G11: 188
B12: VIA AEREA DIFICIL / RIESGO DE ASPIRACION | C12: =+ABRIL!C12+MAYO!C12+JUNIO!C12 -> 18 | D12: =+ABRIL!D12+MAYO!D12+JUNIO!D12 -> 169 | E12: =+ABRIL!E12+MAYO!E12+JUNIO!E12 -> 1 | F12: =+ABRIL!F12+MAYO!F12+JUNIO!F12 -> 0 | G12: 188
B13: HAY INSTRUMENTAL Y EQUIPO DISPONIBLE | C13: =+ABRIL!C13+MAYO!C13+JUNIO!C13 -> 85 | D13: =+ABRIL!D13+MAYO!D13+JUNIO!D13 -> 10 | E13: =+ABRIL!E13+MAYO!E13+JUNIO!E13 -> 93 | F13: =+ABRIL!F13+MAYO!F13+JUNIO!F13 -> 0 | G13: 188
B14: RIESGO DE HEMORRAGIA MENOR A 500 ML | C14: =+ABRIL!C14+MAYO!C14+JUNIO!C14 -> 42 | D14: =+ABRIL!D14+MAYO!D14+JUNIO!D14 -> 143 | E14: =+ABRIL!E14+MAYO!E14+JUNIO!E14 -> 3 | F14: =+ABRIL!F14+MAYO!F14+JUNIO!F14 -> 0 | G14: 188
B15: SE HA PREVISTO DISPONIBILIDAD DE COMPONENTE SANGUINEO EN BANCO DE SANGRE | C15: =+ABRIL!C15+MAYO!C15+JUNIO!C15 -> 95 | D15: =+ABRIL!D15+MAYO!D15+JUNIO!D15 -> 18 | E15: =+ABRIL!E15+MAYO!E15+JUNIO!E15 -> 75 | F15: =+ABRIL!F15+MAYO!F15+JUNIO!F15 -> 0 | G15: 188
A16: PAUSA | B16: CONFIRMAR QUE TODOS LOS MIEMBROS DEL EQUIPO PROGRAMADOS SE HAYAN PRESENTADO POR SU NOMBRE | C16: =+ABRIL!C16+MAYO!C16+JUNIO!C16 -> 187 | D16: =+ABRIL!D16+MAYO!D16+JUNIO!D16 -> 0 | E16: =+ABRIL!E16+MAYO!E16+JUNIO!E16 -> 1 | F16: =+ABRIL!F16+MAYO!F16+JUNIO!F16 -> 0 | G16: 188
B17: CONFIRMAR LA IDENTIDAD DEL PACIENTE, EL PROCEDIMIENTO Y EL SITIO QUIRUGICO | C17: =+ABRIL!C17+MAYO!C17+JUNIO!C17 -> 188 | D17: =+ABRIL!D17+MAYO!D17+JUNIO!D17 -> 0 | E17: =+ABRIL!E17+MAYO!E17+JUNIO!E17 -> 0 | F17: =+ABRIL!F17+MAYO!F17+JUNIO!F17 -> 0 | G17: 188
B18: CONFIRMAR SI TODOS LOS MIEMBROS DEL EQUIPO HAN CUMPLIDO CORRECTAMENTE CON EL PROTOCOLO DE AS | C18: =+ABRIL!C18+MAYO!C18+JUNIO!C18 -> 185 | D18: =+ABRIL!D18+MAYO!D18+JUNIO!D18 -> 0 | E18: =+ABRIL!E18+MAYO!E18+JUNIO!E18 -> 3 | F18: =+ABRIL!F18+MAYO!F18+JUNIO!F18 -> 0 | G18: 188
B19: SE HA ADMINISTRADO PROFILAXIS CON ANTIBIOTICOS EN LOS ULTIMOS 60 MINUTOS | C19: =+ABRIL!C19+MAYO!C19+JUNIO!C19 -> 147 | D19: =+ABRIL!D19+MAYO!D19+JUNIO!D19 -> 23 | E19: =+ABRIL!E19+MAYO!E19+JUNIO!E19 -> 9 | F19: =+ABRIL!F19+MAYO!F19+JUNIO!F19 -> 9 | G19: 188 | I19: =SUM(C16,C17,C18,C19,C20,,C22,D23,C24,D25,C26) -> 1560 | J19: =I19/$I$21 -> 0.9128145114
B20: ¿CUALES SON LOS PASOS CRITICOS O INESPERADO? | C20: =+ABRIL!C20+MAYO!C20+JUNIO!C20 -> 91 | D20: =+ABRIL!D20+MAYO!D20+JUNIO!D20 -> 95 | E20: =+ABRIL!E20+MAYO!E20+JUNIO!E20 -> 2 | F20: =+ABRIL!F20+MAYO!F20+JUNIO!F20 -> 0 | G20: 188 | I20: =SUM(D16,D17,D18,D19,D20,D21,D22,C23,D24,C25,D26) -> 149 | J20: =I20/$I$21 -> 0.08718548859
B21: ¿CUANTO DURARA LA OPERACIÓN? | C21: =+ABRIL!C21+MAYO!C21+JUNIO!C21 -> 185 | D21: =+ABRIL!D21+MAYO!D21+JUNIO!D21 -> 0 | E21: =+ABRIL!E21+MAYO!E21+JUNIO!E21 -> 3 | F21: =+ABRIL!F21+MAYO!F21+JUNIO!F21 -> 0 | G21: 188 | I21: =SUM(I19:I20) -> 1709
B22: ¿CUANTO ES LA PERDIDA DE SALGRE PREVISTA? | C22: =+ABRIL!C22+MAYO!C22+JUNIO!C22 -> 181 | D22: =+ABRIL!D22+MAYO!D22+JUNIO!D22 -> 0 | E22: =+ABRIL!E22+MAYO!E22+JUNIO!E22 -> 7 | F22: =+ABRIL!F22+MAYO!F22+JUNIO!F22 -> 0 | G22: 188
B23: ¿PRESENTA EL PACIENTE ALGUN PROBLEMA ESPECIFICO? | C23: =+ABRIL!C23+MAYO!C23+JUNIO!C23 -> 17 | D23: =+ABRIL!D23+MAYO!D23+JUNIO!D23 -> 163 | E23: =+ABRIL!E23+MAYO!E23+JUNIO!E23 -> 8 | F23: =+ABRIL!F23+MAYO!F23+JUNIO!F23 -> 0 | G23: 188
B24: ¿SE HA CONFIRMADO LA ESTERILIDAD DE ROPA, INSTRUMENTAL Y EQUIPOS? | C24: =+ABRIL!C24+MAYO!C24+JUNIO!C24 -> 187 | D24: =+ABRIL!D24+MAYO!D24+JUNIO!D24 -> 0 | E24: =+ABRIL!E24+MAYO!E24+JUNIO!E24 -> 1 | F24: =+ABRIL!F24+MAYO!F24+JUNIO!F24 -> 0 | G24: 188
B25: ¿HAY DUDAS O PROBLEMAS RELACIONADOS CON ELLOS? | C25: =+ABRIL!C25+MAYO!C25+JUNIO!C25 -> 0 | D25: =+ABRIL!D25+MAYO!D25+JUNIO!D25 -> 184 | E25: =+ABRIL!E25+MAYO!E25+JUNIO!E25 -> 4 | F25: =+ABRIL!F25+MAYO!F25+JUNIO!F25 -> 0 | G25: 188
B26: ¿PUEDEN VISUALIZARSE LAS IMÁGENES DIAGNOSTICADAS ESENCIALES? | C26: =+ABRIL!C26+MAYO!C26+JUNIO!C26 -> 47 | D26: =+ABRIL!D26+MAYO!D26+JUNIO!D26 -> 14 | E26: =+ABRIL!E26+MAYO!E26+JUNIO!E26 -> 16 | F26: =+ABRIL!F26+MAYO!F26+JUNIO!F26 -> 111 | G26: 188
A27: SALIDA | B27: EL ENFERMERO CONFIRMA VERBALMENTE EL NOMBRE DEL PROCEDIMIENTO | C27: =+ABRIL!C27+MAYO!C27+JUNIO!C27 -> 184 | D27: =+ABRIL!D27+MAYO!D27+JUNIO!D27 -> 0 | E27: =+ABRIL!E27+MAYO!E27+JUNIO!E27 -> 4 | F27: =+ABRIL!F27+MAYO!F27+JUNIO!F27 -> 0 | G27: 188
B28: EL RECUENTO DE INSTRUMENTOS, GASA Y AGUJAS | C28: =+ABRIL!C28+MAYO!C28+JUNIO!C28 -> 177 | D28: =+ABRIL!D28+MAYO!D28+JUNIO!D28 -> 0 | E28: =+ABRIL!E28+MAYO!E28+JUNIO!E28 -> 11 | F28: =+ABRIL!F28+MAYO!F28+JUNIO!F28 -> 0 | G28: 188 | I28: =SUM(C27,C28,C29,C30,C31,D32) -> 549 | J28: =I28/$I$30 -> 0.6175478065
B29: EL ETIQUETADO DE LAS MUESTRAS (LECTURA DE LA ETIQUETA EN VOZ ALTA, INCLUIDO EL NOMBRE DEL PACIENTE | C29: =+ABRIL!C29+MAYO!C29+JUNIO!C29 -> 41 | D29: =+ABRIL!D29+MAYO!D29+JUNIO!D29 -> 49 | E29: =+ABRIL!E29+MAYO!E29+JUNIO!E29 -> 9 | F29: =+ABRIL!F29+MAYO!F29+JUNIO!F29 -> 89 | G29: 188 | I29: =SUM(D27,D28,D29,D30,D31,C32) -> 340 | J29: =I29/$I$30 -> 0.3824521935
B30: SI HAY PROBLEMAS QUE SE RESUELVE RELACIONADOS CON EL INSTRUMENTAL Y LOS EQUIPOS | C30: =+ABRIL!C30+MAYO!C30+JUNIO!C30 -> 1 | D30: =+ABRIL!D30+MAYO!D30+JUNIO!D30 -> 187 | E30: =+ABRIL!E30+MAYO!E30+JUNIO!E30 -> 0 | F30: =+ABRIL!F30+MAYO!F30+JUNIO!F30 -> 0 | G30: 188 | I30: =SUM(I28:I29) -> 889
B31: (CIRUJANO, ANESTESIOLOGO, ENFERMERO) CUALES SON LOS ASPECTOS CRITICOS DE LA RECUPERACION Y EL TRAMITE | C31: =+ABRIL!C31+MAYO!C31+JUNIO!C31 -> 87 | D31: =+ABRIL!D31+MAYO!D31+JUNIO!D31 -> 98 | E31: =+ABRIL!E31+MAYO!E31+JUNIO!E31 -> 3 | F31: =+ABRIL!F31+MAYO!F31+JUNIO!F31 -> 0 | G31: 188
B32: OBSERVACIONES | C32: =+ABRIL!C32+MAYO!C32+JUNIO!C32 -> 6 | D32: =+ABRIL!D32+MAYO!D32+JUNIO!D32 -> 59 | E32: =+ABRIL!E32+MAYO!E32+JUNIO!E32 -> 123 | F32: =+ABRIL!F32+MAYO!F32+JUNIO!F32 -> 0 | G32: 188
A33: FIRMA | B33: FIRMA DEL CIRUJANO | C33: =+ABRIL!C33+MAYO!C33+JUNIO!C33 -> 188 | D33: =+ABRIL!D33+MAYO!D33+JUNIO!D33 -> 0 | E33: =+ABRIL!E33+MAYO!E33+JUNIO!E33 -> 0 | F33: =+ABRIL!F33+MAYO!F33+JUNIO!F33 -> 0 | G33: 188
B34: FIRMA DEL ANESTESIOLOGO | C34: =+ABRIL!C34+MAYO!C34+JUNIO!C34 -> 188 | D34: =+ABRIL!D34+MAYO!D34+JUNIO!D34 -> 0 | E34: =+ABRIL!E34+MAYO!E34+JUNIO!E34 -> 0 | F34: =+ABRIL!F34+MAYO!F34+JUNIO!F34 -> 0 | G34: 188
B35: FIRMA DE LA ENFERMERA | C35: =+ABRIL!C35+MAYO!C35+JUNIO!C35 -> 188 | D35: =+ABRIL!D35+MAYO!D35+JUNIO!D35 -> 0 | E35: =+ABRIL!E35+MAYO!E35+JUNIO!E35 -> 0 | F35: =+ABRIL!F35+MAYO!F35+JUNIO!F35 -> 0 | G35: 188 | I35: =SUM(C33,C34,C35,C36,C37,C38,C39) -> 1307 | J35: =I35/$I$37 -> 0.9931610942
B36: FIRMA DEL COORDINADOR | C36: =+ABRIL!C36+MAYO!C36+JUNIO!C36 -> 186 | D36: =+ABRIL!D36+MAYO!D36+JUNIO!D36 -> 2 | E36: =+ABRIL!E36+MAYO!E36+JUNIO!E36 -> 0 | F36: =+ABRIL!F36+MAYO!F36+JUNIO!F36 -> 0 | G36: 188 | I36: =SUM(D33,D34,D35,D36,D37,,D38,D39) -> 9 | J36: =I36/$I$37 -> 0.006838905775
B37: NRO DE HISTORIA CLINICA | C37: =+ABRIL!C37+MAYO!C37+JUNIO!C37 -> 184 | D37: =+ABRIL!D37+MAYO!D37+JUNIO!D37 -> 4 | E37: =+ABRIL!E37+MAYO!E37+JUNIO!E37 -> 0 | F37: =+ABRIL!F37+MAYO!F37+JUNIO!F37 -> 0 | G37: 188 | I37: =SUM(I35:I36) -> 1316
B38: NOMBRE Y APELLIDOS DEL PACIENTE | C38: =+ABRIL!C38+MAYO!C38+JUNIO!C38 -> 187 | D38: =+ABRIL!D38+MAYO!D38+JUNIO!D38 -> 1 | E38: =+ABRIL!E38+MAYO!E38+JUNIO!E38 -> 0 | F38: =+ABRIL!F38+MAYO!F38+JUNIO!F38 -> 0 | G38: 188
B39: FECHA | C39: =+ABRIL!C39+MAYO!C39+JUNIO!C39 -> 186 | D39: =+ABRIL!D39+MAYO!D39+JUNIO!D39 -> 2 | E39: =+ABRIL!E39+MAYO!E39+JUNIO!E39 -> 0 | F39: =+ABRIL!F39+MAYO!F39+JUNIO!F39 -> 0 | G39: 188
B45: PORCENTAJE DE CUMPLIMIENTO DE LA LISTA DE VERIFICACION DE CIRUGIA SEGURA
C51: ENTRADA | D51: (+) | E51: =J8 -> 0.9030927835
D52: (-) | E52: =J9 -> 0.09690721649
C53: PAUSA | D53: (+) | E53: =J19 -> 0.9128145114 | M53: Cumplimiento
D54: (-) | E54: =J20 -> 0.08718548859 | L54: Entrada | M54: =E51 -> 0.9030927835
C55: SALIDA | D55: (+) | E55: =J28 -> 0.6175478065 | L55: Pausa | M55: =E53 -> 0.9128145114
D56: (-) | E56: =J29 -> 0.3824521935 | L56: Salida | M56: =E55 -> 0.6175478065
C57: FIRMA | D57: (+) | E57: =J35 -> 0.9931610942 | L57: Firmas | M57: =E57 -> 0.9931610942
D58: (-) | E58: =J36 -> 0.006838905775 | L58: Cumplimiento | M58: =AVERAGE(M54:M57) -> 0.8566540489
C59: CUMPLIMIENTO | E59: =M58 -> 0.8566540489

Sheet JULIO
B4: REGISTRO DE LA LISTA DE VERIFICACION DE CIRUGIA SEGURA
B5: AÑO: U.E.408 HOSPITAL DE ESPINAR JULIO - 2023 | E5: NO REGISTRA | F5: NO PRECEDE
C6: SI | D6: NO | E6: NR | F6: NP | G6: TOTAL
A7: ENTRADA | B7: PACIENTE CONFIRMA SU IDENTIDAD, EL SITIO QUIRUGICO, EL PROCEDIMIENTO Y CONSENTIMIENTO | G7: =SUM(C7:F7) -> 0
B8: SE HA MARCADO EL SITIO QUIRURGICO | C8: 54 | D8: 23 | G8: =SUM(C8:F8) -> 77 | I8: =SUM(C7,C8,C9,C10,D11,D12,C13,D14,C15) -> 411 | J8: =I8/$I$10 -> 0.7784090909
B9: SE COMPROBO LA DISPONIBILIDAD DE LOS EQUIPOS DE ANESTESIA Y LA MEDICACION ANESTESICA | C9: 77 | G9: 77 | I9: =SUM(D7,D8,D9,D10,C11,C12,D13,C14,D15) -> 117 | J9: =I9/$I$10 -> 0.2215909091
B10: SE COLOCO EL PULXIOMETRO AL PACIENTE Y FUNCIONA | C10: 70 | D10: 6 | E10: 1 | G10: 77 | I10: =SUM(I8:I9) -> 528
B11: EL PACIENTE TIENE ALERGIAS | C11: 17 | D11: 60 | G11: 77
B12: VIA AEREA DIFICIL / RIESGO DE ASPIRACION | C12: 8 | D12: 65 | E12: 4 | G12: 77
B13: HAY INSTRUMENTAL Y EQUIPO DISPONIBLE | C13: 19 | D13: 24 | E13: 34 | G13: 77
B14: RIESGO DE HEMORRAGIA MENOR A 500 ML | C14: 15 | D14: 53 | E14: 9 | G14: 77
B15: SE HA PREVISTO DISPONIBILIDAD DE COMPONENTE SANGUINEO EN BANCO DE SANGRE | C15: 13 | D15: 24 | E15: 40 | G15: 77
A16: PAUSA | B16: CONFIRMAR QUE TODOS LOS MIEMBROS DEL EQUIPO PROGRAMADOS SE HAYAN PRESENTADO POR SU NOMBRE | C16: 77 | G16: 77
B17: CONFIRMAR LA IDENTIDAD DEL PACIENTE, EL PROCEDIMIENTO Y EL SITIO QUIRUGICO | C17: 75 | D17: 2 | G17: 77
B18: CONFIRMAR SI TODOS LOS MIEMBROS DEL EQUIPO HAN CUMPLIDO CORRECTAMENTE CON EL PROTOCOLO DE AS | C18: 77 | G18: 77
B19: SE HA ADMINISTRADO PROFILAXIS CON ANTIBIOTICOS EN LOS ULTIMOS 60 MINUTOS | C19: 77 | G19: 77 | I19: =SUM(C16,C17,C18,C19,C20,,C22,D23,C24,D25,C26) -> 658 | J19: =I19/$I$21 -> 0.928067701
B20: ¿CUALES SON LOS PASOS CRITICOS O INESPERADO? | C20: 71 | D20: 1 | E20: 1 | F20: 4 | G20: 77 | I20: =SUM(D16,D17,D18,D19,D20,D21,D22,C23,D24,C25,D26) -> 51 | J20: =I20/$I$21 -> 0.07193229901
B21: ¿CUANTO DURARA LA OPERACIÓN? | C21: 75 | D21: 2 | G21: 77 | I21: =SUM(I19:I20) -> 709
B22: ¿CUANTO ES LA PERDIDA DE SALGRE PREVISTA? | C22: 68 | D22: 8 | E22: 1 | G22: 77
B23: ¿PRESENTA EL PACIENTE ALGUN PROBLEMA ESPECIFICO? | C23: 15 | D23: 62 | G23: 77
B24: ¿SE HA CONFIRMADO LA ESTERILIDAD DE ROPA, INSTRUMENTAL Y EQUIPOS? | C24: 65 | D24: 10 | E24: 2 | G24: 77
B25: ¿HAY DUDAS O PROBLEMAS RELACIONADOS CON ELLOS? | C25: 7 | D25: 64 | E25: 6 | G25: 77
B26: ¿PUEDEN VISUALIZARSE LAS IMÁGENES DIAGNOSTICADAS ESENCIALES? | C26: 22 | D26: 6 | E26: 49 | G26: 77
A27: SALIDA | B27: EL ENFERMERO CONFIRMA VERBALMENTE EL NOMBRE DEL PROCEDIMIENTO | C27: 77 | G27: 77
B28: EL RECUENTO DE INSTRUMENTOS, GASA Y AGUJAS | C28: 76 | E28: 1 | G28: 77 | I28: =SUM(C27,C28,C29,C30,C31,D32) -> 254 | J28: =I28/$I$30 -> 0.671957672
B29: EL ETIQUETADO DE LAS MUESTRAS (LECTURA DE LA ETIQUETA EN VOZ ALTA, INCLUIDO EL NOMBRE DEL PACIENTE | C29: 9 | D29: 48 | E29: 7 | G29: 64 | I29: =SUM(D27,D28,D29,D30,D31,C32) -> 124 | J29: =I29/$I$30 -> 0.328042328
B30: SI HAY PROBLEMAS QUE SE RESUELVE RELACIONADOS CON EL INSTRUMENTAL Y LOS EQUIPOS | C30: 5 | D30: 71 | E30: 1 | G30: 77 | I30: =SUM(I28:I29) -> 378
B31: (CIRUJANO, ANESTESIOLOGO, ENFERMERO) CUALES SON LOS ASPECTOS CRITICOS DE LA RECUPERACION Y EL TRAMITE | C31: 64 | D31: 3 | E31: 9 | F31: 1 | G31: 77
B32: OBSERVACIONES | C32: 2 | D32: 23 | E32: 52 | G32: 77
A33: FIRMA | B33: FIRMA DEL CIRUJANO | C33: 77 | G33: 77
B34: FIRMA DEL ANESTESIOLOGO | C34: 77 | G34: 77
B35: FIRMA DE LA ENFERMERA | C35: 77 | G35: 77 | I35: =SUM(C33,C34,C35,C36,C37,C38,C39) -> 538 | J35: =I35/$I$37 -> 0.9981447124
B36: FIRMA DEL COORDINADOR | C36: 77 | G36: 77 | I36: =SUM(D33,D34,D35,D36,D37,,D38,D39) -> 1 | J36: =I36/$I$37 -> 0.00185528757
B37: NRO DE HISTORIA CLINICA | C37: 76 | D37: 1 | G37: 77 | I37: =SUM(I35:I36) -> 539
B38: NOMBRE Y APELLIDOS DEL PACIENTE | C38: 77 | G38: 77
B39: FECHA | C39: 77 | G39: 77
B45: PORCENTAJE DE CUMPLIMIENTO DE LA LISTA DE VERIFICACION DE CIRUGIA SEGURA
C51: ENTRADA | D51: (+) | E51: =J8 -> 0.7784090909
D52: (-) | E52: =J9 -> 0.2215909091
C53: PAUSA | D53: (+) | E53: =J19 -> 0.928067701 | M53: Cumplimiento
D54: (-) | E54: =J20 -> 0.07193229901 | L54: Entrada | M54: =E51 -> 0.7784090909
C55: SALIDA | D55: (+) | E55: =J28 -> 0.671957672 | L55: Pausa | M55: =E53 -> 0.928067701
D56: (-) | E56: =J29 -> 0.328042328 | L56: Salida | M56: =E55 -> 0.671957672
C57: FIRMA | D57: (+) | E57: =J35 -> 0.9981447124 | L57: Firmas | M57: =E57 -> 0.9981447124
D58: (-) | E58: =J36 -> 0.00185528757 | L58: Cumplimiento | M58: =AVERAGE(M54:M57) -> 0.8441447941
C59: CUMPLIMIENTO | E59: =M58 -> 0.8441447941

Sheet AGOSTO
B4: REGISTRO DE LA LISTA DE VERIFICACION DE CIRUGIA SEGURA
B5: AÑO: U.E.408 HOSPITAL DE ESPINAR AGOSTO - 2023 | E5: NO REGISTRA | F5: NO PRECEDE
C6: SI | D6: NO | E6: NR | F6: NP | G6: TOTAL
A7: ENTRADA | B7: PACIENTE CONFIRMA SU IDENTIDAD, EL SITIO QUIRUGICO, EL PROCEDIMIENTO Y CONSENTIMIENTO | C7: 92 | D7: 1 | G7: =SUM(C7:F7) -> 93
B8: SE HA MARCADO EL SITIO QUIRURGICO | C8: 67 | D8: 26 | G8: =SUM(C8:F8) -> 93 | I8: =SUM(C7,C8,C9,C10,D11,D12,C13,D14,C15) -> 610 | J8: =I8/$I$10 -> 0.7287933094
B9: SE COMPROBO LA DISPONIBILIDAD DE LOS EQUIPOS DE ANESTESIA Y LA MEDICACION ANESTESICA | C9: 92 | D9: 1 | G9: 93 | I9: =SUM(D7,D8,D9,D10,C11,C12,D13,C14,D15) -> 227 | J9: =I9/$I$10 -> 0.2712066906
B10: SE COLOCO EL PULXIOMETRO AL PACIENTE Y FUNCIONA | C10: 85 | D10: 8 | G10: 93 | I10: =SUM(I8:I9) -> 837
B11: EL PACIENTE TIENE ALERGIAS | C11: 11 | D11: 82 | G11: 93
B12: VIA AEREA DIFICIL / RIESGO DE ASPIRACION | C12: 10 | D12: 83 | G12: 93
B13: HAY INSTRUMENTAL Y EQUIPO DISPONIBLE | C13: 24 | D13: 69 | G13: 93
B14: RIESGO DE HEMORRAGIA MENOR A 500 ML | C14: 26 | D14: 67 | G14: 93
B15: SE HA PREVISTO DISPONIBILIDAD DE COMPONENTE SANGUINEO EN BANCO DE SANGRE | C15: 18 | D15: 75 | G15: 93
A16: PAUSA | B16: CONFIRMAR QUE TODOS LOS MIEMBROS DEL EQUIPO PROGRAMADOS SE HAYAN PRESENTADO POR SU NOMBRE | C16: 93 | G16: 93
B17: CONFIRMAR LA IDENTIDAD DEL PACIENTE, EL PROCEDIMIENTO Y EL SITIO QUIRUGICO | C17: 93 | G17: 93
B18: CONFIRMAR SI TODOS LOS MIEMBROS DEL EQUIPO HAN CUMPLIDO CORRECTAMENTE CON EL PROTOCOLO DE AS | C18: 92 | D18: 1 | G18: 93
B19: SE HA ADMINISTRADO PROFILAXIS CON ANTIBIOTICOS EN LOS ULTIMOS 60 MINUTOS | C19: 88 | D19: 1 | F19: 4 | G19: 93 | I19: =SUM(C16,C17,C18,C19,C20,,C22,D23,C24,D25,C26) -> 830 | J19: =I19/$I$21 -> 0.9730363423
B20: ¿CUALES SON LOS PASOS CRITICOS O INESPERADO? | C20: 89 | D20: 2 | E20: 2 | G20: 93 | I20: =SUM(D16,D17,D18,D19,D20,D21,D22,C23,D24,C25,D26) -> 23 | J20: =I20/$I$21 -> 0.02696365768
B21: ¿CUANTO DURARA LA OPERACIÓN? | C21: 93 | G21: 93 | I21: =SUM(I19:I20) -> 853
B22: ¿CUANTO ES LA PERDIDA DE SALGRE PREVISTA? | C22: 89 | D22: 3 | E22: 1 | G22: 93
B23: ¿PRESENTA EL PACIENTE ALGUN PROBLEMA ESPECIFICO? | C23: 9 | D23: 84 | G23: 93
B24: ¿SE HA CONFIRMADO LA ESTERILIDAD DE ROPA, INSTRUMENTAL Y EQUIPOS? | C24: 86 | D24: 6 | F24: 1 | G24: 93
B25: ¿HAY DUDAS O PROBLEMAS RELACIONADOS CON ELLOS? | D25: 91 | E25: 1 | F25: 1 | G25: 93
B26: ¿PUEDEN VISUALIZARSE LAS IMÁGENES DIAGNOSTICADAS ESENCIALES? | C26: 25 | D26: 1 | E26: 2 | F26: 65 | G26: 93
A27: SALIDA | B27: EL ENFERMERO CONFIRMA VERBALMENTE EL NOMBRE DEL PROCEDIMIENTO | C27: 93 | G27: 93
B28: EL RECUENTO DE INSTRUMENTOS, GASA Y AGUJAS | C28: 90 | D28: 2 | G28: 92 | I28: =SUM(C27,C28,C29,C30,C31,D32) -> 285 | J28: =I28/$I$30 -> 0.6263736264
B29: EL ETIQUETADO DE LAS MUESTRAS (LECTURA DE LA ETIQUETA EN VOZ ALTA, INCLUIDO EL NOMBRE DEL PACIENTE | C29: 12 | D29: 65 | F29: 16 | G29: 93 | I29: =SUM(D27,D28,D29,D30,D31,C32) -> 170 | J29: =I29/$I$30 -> 0.3736263736
B30: SI HAY PROBLEMAS QUE SE RESUELVE RELACIONADOS CON EL INSTRUMENTAL Y LOS EQUIPOS | C30: 10 | D30: 82 | F30: 1 | G30: 93 | I30: =SUM(I28:I29) -> 455
B31: (CIRUJANO, ANESTESIOLOGO, ENFERMERO) CUALES SON LOS ASPECTOS CRITICOS DE LA RECUPERACION Y EL TRAMITE | C31: 75 | D31: 16 | E31: 2 | G31: 93
B32: OBSERVACIONES | C32: 5 | D32: 5 | E32: 83 | G32: 93
A33: FIRMA | B33: FIRMA DEL CIRUJANO | C33: 93 | G33: 93
B34: FIRMA DEL ANESTESIOLOGO | C34: 92 | D34: 1 | G34: 93
B35: FIRMA DE LA ENFERMERA | C35: 89 | D35: 4 | G35: 93 | I35: =SUM(C33,C34,C35,C36,C37,C38,C39) -> 644 | J35: =I35/$I$37 -> 0.9892473118
B36: FIRMA DEL COORDINADOR | C36: 93 | G36: 93 | I36: =SUM(D33,D34,D35,D36,D37,,D38,D39) -> 7 | J36: =I36/$I$37 -> 0.01075268817
B37: NRO DE HISTORIA CLINICA | C37: 92 | D37: 1 | G37: 93 | I37: =SUM(I35:I36) -> 651
B38: NOMBRE Y APELLIDOS DEL PACIENTE | C38: 92 | D38: 1 | G38: 93
B39: FECHA | C39: 93 | G39: 93
B45: PORCENTAJE DE CUMPLIMIENTO DE LA LISTA DE VERIFICACION DE CIRUGIA SEGURA
C51: ENTRADA | D51: (+) | E51: =J8 -> 0.7287933094
D52: (-) | E52: =J9 -> 0.2712066906
C53: PAUSA | D53: (+) | E53: =J19 -> 0.9730363423 | M53: Cumplimiento
D54: (-) | E54: =J20 -> 0.02696365768 | L54: Entrada | M54: =E51 -> 0.7287933094
C55: SALIDA | D55: (+) | E55: =J28 -> 0.6263736264 | L55: Pausa | M55: =E53 -> 0.9730363423
D56: (-) | E56: =J29 -> 0.3736263736 | L56: Salida | M56: =E55 -> 0.6263736264
C57: FIRMA | D57: (+) | E57: =J35 -> 0.9892473118 | L57: Firmas | M57: =E57 -> 0.9892473118
D58: (-) | E58: =J36 -> 0.01075268817 | L58: Cumplimiento | M58: =AVERAGE(M54:M57) -> 0.8293626475
C59: CUMPLIMIENTO | E59: =M58 -> 0.8293626475

Sheet SETIEMBRE
B4: REGISTRO DE LA LISTA DE VERIFICACION DE CIRUGIA SEGURA
B5: AÑO: U.E.408 HOSPITAL DE ESPINAR SEPTIEMBRE - 2023 | E5: NO REGISTRA | F5: NO PRECEDE
C6: SI | D6: NO | E6: NR | F6: NP | G6: TOTAL
A7: ENTRADA | B7: PACIENTE CONFIRMA SU IDENTIDAD, EL SITIO QUIRUGICO, EL PROCEDIMIENTO Y CONSENTIMIENTO | C7: 78 | G7: =SUM(C7:F7) -> 78
B8: SE HA MARCADO EL SITIO QUIRURGICO | C8: 59 | D8: 19 | G8: =SUM(C8:F8) -> 78 | I8: =SUM(C7,C8,C9,C10,D11,D12,C13,D14,C15) -> 519 | J8: =I8/$I$10 -> 0.7393162393
B9: SE COMPROBO LA DISPONIBILIDAD DE LOS EQUIPOS DE ANESTESIA Y LA MEDICACION ANESTESICA | C9: 76 | D9: 2 | G9: 78 | I9: =SUM(D7,D8,D9,D10,C11,C12,D13,C14,D15) -> 183 | J9: =I9/$I$10 -> 0.2606837607
B10: SE COLOCO EL PULXIOMETRO AL PACIENTE Y FUNCIONA | C10: 76 | D10: 2 | G10: 78 | I10: =SUM(I8:I9) -> 702
B11: EL PACIENTE TIENE ALERGIAS | C11: 18 | D11: 60 | G11: 78
B12: VIA AEREA DIFICIL / RIESGO DE ASPIRACION | C12: 1 | D12: 77 | G12: 78
B13: HAY INSTRUMENTAL Y EQUIPO DISPONIBLE | C13: 12 | D13: 66 | G13: 78
B14: RIESGO DE HEMORRAGIA MENOR A 500 ML | C14: 7 | D14: 71 | G14: 78
B15: SE HA PREVISTO DISPONIBILIDAD DE COMPONENTE SANGUINEO EN BANCO DE SANGRE | C15: 10 | D15: 68 | G15: 78
A16: PAUSA | B16: CONFIRMAR QUE TODOS LOS MIEMBROS DEL EQUIPO PROGRAMADOS SE HAYAN PRESENTADO POR SU NOMBRE | C16: 78 | G16: 78
B17: CONFIRMAR LA IDENTIDAD DEL PACIENTE, EL PROCEDIMIENTO Y EL SITIO QUIRUGICO | C17: 78 | G17: 78
B18: CONFIRMAR SI TODOS LOS MIEMBROS DEL EQUIPO HAN CUMPLIDO CORRECTAMENTE CON EL PROTOCOLO DE AS | C18: 78 | G18: 78
B19: SE HA ADMINISTRADO PROFILAXIS CON ANTIBIOTICOS EN LOS ULTIMOS 60 MINUTOS | C19: 77 | F19: 1 | G19: 78 | I19: =SUM(C16,C17,C18,C19,C20,,C22,D23,C24,D25,C26) -> 678 | J19: =I19/$I$21 -> 0.9338842975
B20: ¿CUALES SON LOS PASOS CRITICOS O INESPERADO? | C20: 77 | D20: 1 | G20: 78 | I20: =SUM(D16,D17,D18,D19,D20,D21,D22,C23,D24,C25,D26) -> 48 | J20: =I20/$I$21 -> 0.06611570248
B21: ¿CUANTO DURARA LA OPERACIÓN? | C21: 77 | D21: 1 | G21: 78 | I21: =SUM(I19:I20) -> 726
B22: ¿CUANTO ES LA PERDIDA DE SALGRE PREVISTA? | C22: 67 | D22: 11 | G22: 78
B23: ¿PRESENTA EL PACIENTE ALGUN PROBLEMA ESPECIFICO? | C23: 13 | D23: 65 | G23: 78
B24: ¿SE HA CONFIRMADO LA ESTERILIDAD DE ROPA, INSTRUMENTAL Y EQUIPOS? | C24: 67 | D24: 11 | G24: 78
B25: ¿HAY DUDAS O PROBLEMAS RELACIONADOS CON ELLOS? | C25: 10 | D25: 68 | G25: 78
B26: ¿PUEDEN VISUALIZARSE LAS IMÁGENES DIAGNOSTICADAS ESENCIALES? | C26: 23 | D26: 1 | F26: 54 | G26: 78
A27: SALIDA | B27: EL ENFERMERO CONFIRMA VERBALMENTE EL NOMBRE DEL PROCEDIMIENTO | C27: 78 | G27: 78
B28: EL RECUENTO DE INSTRUMENTOS, GASA Y AGUJAS | C28: 77 | D28: 1 | G28: 78 | I28: =SUM(C27,C28,C29,C30,C31,D32) -> 246 | J28: =I28/$I$30 -> 0.640625
B29: EL ETIQUETADO DE LAS MUESTRAS (LECTURA DE LA ETIQUETA EN VOZ ALTA, INCLUIDO EL NOMBRE DEL PACIENTE | C29: 13 | D29: 55 | F29: 10 | G29: 78 | I29: =SUM(D27,D28,D29,D30,D31,C32) -> 138 | J29: =I29/$I$30 -> 0.359375
B30: SI HAY PROBLEMAS QUE SE RESUELVE RELACIONADOS CON EL INSTRUMENTAL Y LOS EQUIPOS | C30: 7 | D30: 71 | G30: 78 | I30: =SUM(I28:I29) -> 384
B31: (CIRUJANO, ANESTESIOLOGO, ENFERMERO) CUALES SON LOS ASPECTOS CRITICOS DE LA RECUPERACION Y EL TRAMITE | C31: 70 | D31: 7 | E31: 1 | G31: 78
B32: OBSERVACIONES | C32: 4 | D32: 1 | E32: 73 | G32: 78
A33: FIRMA | B33: FIRMA DEL CIRUJANO | C33: 76 | D33: 2 | G33: 78
B34: FIRMA DEL ANESTESIOLOGO | C34: 77 | D34: 1 | G34: 78
B35: FIRMA DE LA ENFERMERA | C35: 78 | G35: 78 | I35: =SUM(C33,C34,C35,C36,C37,C38,C39) -> 543 | J35: =I35/$I$37 -> 0.9945054945
B36: FIRMA DEL COORDINADOR | C36: 78 | G36: 78 | I36: =SUM(D33,D34,D35,D36,D37,,D38,D39) -> 3 | J36: =I36/$I$37 -> 0.005494505495
B37: NRO DE HISTORIA CLINICA | C37: 78 | G37: 78 | I37: =SUM(I35:I36) -> 546
B38: NOMBRE Y APELLIDOS DEL PACIENTE | C38: 78 | G38: 78
B39: FECHA | C39: 78 | G39: 78
B45: PORCENTAJE DE CUMPLIMIENTO DE LA LISTA DE VERIFICACION DE CIRUGIA SEGURA
C51: ENTRADA | D51: (+) | E51: =J8 -> 0.7393162393
D52: (-) | E52: =J9 -> 0.2606837607
C53: PAUSA | D53: (+) | E53: =J19 -> 0.9338842975 | M53: Cumplimiento
D54: (-) | E54: =J20 -> 0.06611570248 | L54: Entrada | M54: =E51 -> 0.7393162393
C55: SALIDA | D55: (+) | E55: =J28 -> 0.640625 | L55: Pausa | M55: =E53 -> 0.9338842975
D56: (-) | E56: =J29 -> 0.359375 | L56: Salida | M56: =E55 -> 0.640625
C57: FIRMA | D57: (+) | E57: =J35 -> 0.9945054945 | L57: Firmas | M57: =E57 -> 0.9945054945
D58: (-) | E58: =J36 -> 0.005494505495 | L58: Cumplimiento | M58: =AVERAGE(M54:M57) -> 0.8270827578
C59: CUMPLIMIENTO | E59: =M58 -> 0.8270827578

Sheet III TRIMESTRE 2024
B4: REGISTRO DE LA LISTA DE VERIFICACION DE CIRUGIA SEGURA
B5: AÑO: U.E.408 HOSPITAL DE ESPINAR III TRIMESTRE- 2023 | E5: NO REGISTRA | F5: NO PRECEDE
C6: SI | D6: NO | E6: NR | F6: NP | G6: TOTAL
A7: ENTRADA | B7: PACIENTE CONFIRMA SU IDENTIDAD, EL SITIO QUIRUGICO, EL PROCEDIMIENTO Y CONSENTIMIENTO | C7: =+JULIO!C7+AGOSTO!C7+SETIEMBRE!C7 -> 170 | D7: =+JULIO!D7+AGOSTO!D7+SETIEMBRE!D7 -> 1 | E7: =+JULIO!E7+AGOSTO!E7+SETIEMBRE!E7 -> 0 | F7: =+JULIO!F7+AGOSTO!F7+SETIEMBRE!F7 -> 0 | G7: =SUM(C7:F7) -> 171
B8: SE HA MARCADO EL SITIO QUIRURGICO | C8: =+JULIO!C8+AGOSTO!C8+SETIEMBRE!C8 -> 180 | D8: =+JULIO!D8+AGOSTO!D8+SETIEMBRE!D8 -> 68 | E8: =+JULIO!E8+AGOSTO!E8+SETIEMBRE!E8 -> 0 | F8: =+JULIO!F8+AGOSTO!F8+SETIEMBRE!F8 -> 0 | G8: 248 | I8: =SUM(C7,C8,C9,C10,D11,D12,C13,D14,C15) -> 1540 | J8: =I8/$I$10 -> 0.7450411224
B9: SE COMPROBO LA DISPONIBILIDAD DE LOS EQUIPOS DE ANESTESIA Y LA MEDICACION ANESTESICA | C9: =+JULIO!C9+AGOSTO!C9+SETIEMBRE!C9 -> 245 | D9: =+JULIO!D9+AGOSTO!D9+SETIEMBRE!D9 -> 3 | E9: =+JULIO!E9+AGOSTO!E9+SETIEMBRE!E9 -> 0 | F9: =+JULIO!F9+AGOSTO!F9+SETIEMBRE!F9 -> 0 | G9: 248 | I9: =SUM(D7,D8,D9,D10,C11,C12,D13,C14,D15) -> 527 | J9: =I9/$I$10 -> 0.2549588776
B10: SE COLOCO EL PULXIOMETRO AL PACIENTE Y FUNCIONA | C10: =+JULIO!C10+AGOSTO!C10+SETIEMBRE!C10 -> 231 | D10: =+JULIO!D10+AGOSTO!D10+SETIEMBRE!D10 -> 16 | E10: =+JULIO!E10+AGOSTO!E10+SETIEMBRE!E10 -> 1 | F10: =+JULIO!F10+AGOSTO!F10+SETIEMBRE!F10 -> 0 | G10: 248 | I10: =SUM(I8:I9) -> 2067
B11: EL PACIENTE TIENE ALERGIAS | C11: =+JULIO!C11+AGOSTO!C11+SETIEMBRE!C11 -> 46 | D11: =+JULIO!D11+AGOSTO!D11+SETIEMBRE!D11 -> 202 | E11: =+JULIO!E11+AGOSTO!E11+SETIEMBRE!E11 -> 0 | F11: =+JULIO!F11+AGOSTO!F11+SETIEMBRE!F11 -> 0 | G11: 248
B12: VIA AEREA DIFICIL / RIESGO DE ASPIRACION | C12: =+JULIO!C12+AGOSTO!C12+SETIEMBRE!C12 -> 19 | D12: =+JULIO!D12+AGOSTO!D12+SETIEMBRE!D12 -> 225 | E12: =+JULIO!E12+AGOSTO!E12+SETIEMBRE!E12 -> 4 | F12: =+JULIO!F12+AGOSTO!F12+SETIEMBRE!F12 -> 0 | G12: 248
B13: HAY INSTRUMENTAL Y EQUIPO DISPONIBLE | C13: =+JULIO!C13+AGOSTO!C13+SETIEMBRE!C13 -> 55 | D13: =+JULIO!D13+AGOSTO!D13+SETIEMBRE!D13 -> 159 | E13: =+JULIO!E13+AGOSTO!E13+SETIEMBRE!E13 -> 34 | F13: =+JULIO!F13+AGOSTO!F13+SETIEMBRE!F13 -> 0 | G13: 248
B14: RIESGO DE HEMORRAGIA MENOR A 500 ML | C14: =+JULIO!C14+AGOSTO!C14+SETIEMBRE!C14 -> 48 | D14: =+JULIO!D14+AGOSTO!D14+SETIEMBRE!D14 -> 191 | E14: =+JULIO!E14+AGOSTO!E14+SETIEMBRE!E14 -> 9 | F14: =+JULIO!F14+AGOSTO!F14+SETIEMBRE!F14 -> 0 | G14: 248
B15: SE HA PREVISTO DISPONIBILIDAD DE COMPONENTE SANGUINEO EN BANCO DE SANGRE | C15: =+JULIO!C15+AGOSTO!C15+SETIEMBRE!C15 -> 41 | D15: =+JULIO!D15+AGOSTO!D15+SETIEMBRE!D15 -> 167 | E15: =+JULIO!E15+AGOSTO!E15+SETIEMBRE!E15 -> 40 | F15: =+JULIO!F15+AGOSTO!F15+SETIEMBRE!F15 -> 0 | G15: 248
A16: PAUSA | B16: CONFIRMAR QUE TODOS LOS MIEMBROS DEL EQUIPO PROGRAMADOS SE HAYAN PRESENTADO POR SU NOMBRE | C16: =+JULIO!C16+AGOSTO!C16+SETIEMBRE!C16 -> 248 | D16: =+JULIO!D16+AGOSTO!D16+SETIEMBRE!D16 -> 0 | E16: =+JULIO!E16+AGOSTO!E16+SETIEMBRE!E16 -> 0 | F16: =+JULIO!F16+AGOSTO!F16+SETIEMBRE!F16 -> 0 | G16: 248
B17: CONFIRMAR LA IDENTIDAD DEL PACIENTE, EL PROCEDIMIENTO Y EL SITIO QUIRUGICO | C17: =+JULIO!C17+AGOSTO!C17+SETIEMBRE!C17 -> 246 | D17: =+JULIO!D17+AGOSTO!D17+SETIEMBRE!D17 -> 2 | E17: =+JULIO!E17+AGOSTO!E17+SETIEMBRE!E17 -> 0 | F17: =+JULIO!F17+AGOSTO!F17+SETIEMBRE!F17 -> 0 | G17: 248
B18: CONFIRMAR SI TODOS LOS MIEMBROS DEL EQUIPO HAN CUMPLIDO CORRECTAMENTE CON EL PROTOCOLO DE AS | C18: =+JULIO!C18+AGOSTO!C18+SETIEMBRE!C18 -> 247 | D18: =+JULIO!D18+AGOSTO!D18+SETIEMBRE!D18 -> 1 | E18: =+JULIO!E18+AGOSTO!E18+SETIEMBRE!E18 -> 0 | F18: =+JULIO!F18+AGOSTO!F18+SETIEMBRE!F18 -> 0 | G18: 248
B19: SE HA ADMINISTRADO PROFILAXIS CON ANTIBIOTICOS EN LOS ULTIMOS 60 MINUTOS | C19: =+JULIO!C19+AGOSTO!C19+SETIEMBRE!C19 -> 242 | D19: =+JULIO!D19+AGOSTO!D19+SETIEMBRE!D19 -> 1 | E19: =+JULIO!E19+AGOSTO!E19+SETIEMBRE!E19 -> 0 | F19: =+JULIO!F19+AGOSTO!F19+SETIEMBRE!F19 -> 5 | G19: 248 | I19: =SUM(C16,C17,C18,C19,C20,,C22,D23,C24,D25,C26) -> 2166 | J19: =I19/$I$21 -> 0.9466783217
B20: ¿CUALES SON LOS PASOS CRITICOS O INESPERADO? | C20: =+JULIO!C20+AGOSTO!C20+SETIEMBRE!C20 -> 237 | D20: =+JULIO!D20+AGOSTO!D20+SETIEMBRE!D20 -> 4 | E20: =+JULIO!E20+AGOSTO!E20+SETIEMBRE!E20 -> 3 | F20: =+JULIO!F20+AGOSTO!F20+SETIEMBRE!F20 -> 4 | G20: 248 | I20: =SUM(D16,D17,D18,D19,D20,D21,D22,C23,D24,C25,D26) -> 122 | J20: =I20/$I$21 -> 0.05332167832
B21: ¿CUANTO DURARA LA OPERACIÓN? | C21: =+JULIO!C21+AGOSTO!C21+SETIEMBRE!C21 -> 245 | D21: =+JULIO!D21+AGOSTO!D21+SETIEMBRE!D21 -> 3 | E21: =+JULIO!E21+AGOSTO!E21+SETIEMBRE!E21 -> 0 | F21: =+JULIO!F21+AGOSTO!F21+SETIEMBRE!F21 -> 0 | G21: 248 | I21: =SUM(I19:I20) -> 2288
B22: ¿CUANTO ES LA PERDIDA DE SALGRE PREVISTA? | C22: =+JULIO!C22+AGOSTO!C22+SETIEMBRE!C22 -> 224 | D22: =+JULIO!D22+AGOSTO!D22+SETIEMBRE!D22 -> 22 | E22: =+JULIO!E22+AGOSTO!E22+SETIEMBRE!E22 -> 2 | F22: =+JULIO!F22+AGOSTO!F22+SETIEMBRE!F22 -> 0 | G22: 248
B23: ¿PRESENTA EL PACIENTE ALGUN PROBLEMA ESPECIFICO? | C23: =+JULIO!C23+AGOSTO!C23+SETIEMBRE!C23 -> 37 | D23: =+JULIO!D23+AGOSTO!D23+SETIEMBRE!D23 -> 211 | E23: =+JULIO!E23+AGOSTO!E23+SETIEMBRE!E23 -> 0 | F23: =+JULIO!F23+AGOSTO!F23+SETIEMBRE!F23 -> 0 | G23: 248
B24: ¿SE HA CONFIRMADO LA ESTERILIDAD DE ROPA, INSTRUMENTAL Y EQUIPOS? | C24: =+JULIO!C24+AGOSTO!C24+SETIEMBRE!C24 -> 218 | D24: =+JULIO!D24+AGOSTO!D24+SETIEMBRE!D24 -> 27 | E24: =+JULIO!E24+AGOSTO!E24+SETIEMBRE!E24 -> 2 | F24: =+JULIO!F24+AGOSTO!F24+SETIEMBRE!F24 -> 1 | G24: 248
B25: ¿HAY DUDAS O PROBLEMAS RELACIONADOS CON ELLOS? | C25: =+JULIO!C25+AGOSTO!C25+SETIEMBRE!C25 -> 17 | D25: =+JULIO!D25+AGOSTO!D25+SETIEMBRE!D25 -> 223 | E25: =+JULIO!E25+AGOSTO!E25+SETIEMBRE!E25 -> 7 | F25: =+JULIO!F25+AGOSTO!F25+SETIEMBRE!F25 -> 1 | G25: 248
B26: ¿PUEDEN VISUALIZARSE LAS IMÁGENES DIAGNOSTICADAS ESENCIALES? | C26: =+JULIO!C26+AGOSTO!C26+SETIEMBRE!C26 -> 70 | D26: =+JULIO!D26+AGOSTO!D26+SETIEMBRE!D26 -> 8 | E26: =+JULIO!E26+AGOSTO!E26+SETIEMBRE!E26 -> 51 | F26: =+JULIO!F26+AGOSTO!F26+SETIEMBRE!F26 -> 119 | G26: 248
A27: SALIDA | B27: EL ENFERMERO CONFIRMA VERBALMENTE EL NOMBRE DEL PROCEDIMIENTO | C27: =+JULIO!C27+AGOSTO!C27+SETIEMBRE!C27 -> 248 | D27: =+JULIO!D27+AGOSTO!D27+SETIEMBRE!D27 -> 0 | E27: =+JULIO!E27+AGOSTO!E27+SETIEMBRE!E27 -> 0 | F27: =+JULIO!F27+AGOSTO!F27+SETIEMBRE!F27 -> 0 | G27: 248
B28: EL RECUENTO DE INSTRUMENTOS, GASA Y AGUJAS | C28: =+JULIO!C28+AGOSTO!C28+SETIEMBRE!C28 -> 243 | D28: =+JULIO!D28+AGOSTO!D28+SETIEMBRE!D28 -> 3 | E28: =+JULIO!E28+AGOSTO!E28+SETIEMBRE!E28 -> 1 | F28: =+JULIO!F28+AGOSTO!F28+SETIEMBRE!F28 -> 0 | G28: 247 | I28: =SUM(C27,C28,C29,C30,C31,D32) -> 785 | J28: =I28/$I$30 -> 0.6450287592
B29: EL ETIQUETADO DE LAS MUESTRAS (LECTURA DE LA ETIQUETA EN VOZ ALTA, INCLUIDO EL NOMBRE DEL PACIENTE | C29: =+JULIO!C29+AGOSTO!C29+SETIEMBRE!C29 -> 34 | D29: =+JULIO!D29+AGOSTO!D29+SETIEMBRE!D29 -> 168 | E29: =+JULIO!E29+AGOSTO!E29+SETIEMBRE!E29 -> 7 | F29: =+JULIO!F29+AGOSTO!F29+SETIEMBRE!F29 -> 26 | G29: 235 | I29: =SUM(D27,D28,D29,D30,D31,C32) -> 432 | J29: =I29/$I$30 -> 0.3549712408
B30: SI HAY PROBLEMAS QUE SE RESUELVE RELACIONADOS CON EL INSTRUMENTAL Y LOS EQUIPOS | C30: =+JULIO!C30+AGOSTO!C30+SETIEMBRE!C30 -> 22 | D30: =+JULIO!D30+AGOSTO!D30+SETIEMBRE!D30 -> 224 | E30: =+JULIO!E30+AGOSTO!E30+SETIEMBRE!E30 -> 1 | F30: =+JULIO!F30+AGOSTO!F30+SETIEMBRE!F30 -> 1 | G30: 248 | I30: =SUM(I28:I29) -> 1217
B31: (CIRUJANO, ANESTESIOLOGO, ENFERMERO) CUALES SON LOS ASPECTOS CRITICOS DE LA RECUPERACION Y EL TRAMITE | C31: =+JULIO!C31+AGOSTO!C31+SETIEMBRE!C31 -> 209 | D31: =+JULIO!D31+AGOSTO!D31+SETIEMBRE!D31 -> 26 | E31: =+JULIO!E31+AGOSTO!E31+SETIEMBRE!E31 -> 12 | F31: =+JULIO!F31+AGOSTO!F31+SETIEMBRE!F31 -> 1 | G31: 248
B32: OBSERVACIONES | C32: =+JULIO!C32+AGOSTO!C32+SETIEMBRE!C32 -> 11 | D32: =+JULIO!D32+AGOSTO!D32+SETIEMBRE!D32 -> 29 | E32: =+JULIO!E32+AGOSTO!E32+SETIEMBRE!E32 -> 208 | F32: =+JULIO!F32+AGOSTO!F32+SETIEMBRE!F32 -> 0 | G32: 248
A33: FIRMA | B33: FIRMA DEL CIRUJANO | C33: =+JULIO!C33+AGOSTO!C33+SETIEMBRE!C33 -> 246 | D33: =+JULIO!D33+AGOSTO!D33+SETIEMBRE!D33 -> 2 | E33: =+JULIO!E33+AGOSTO!E33+SETIEMBRE!E33 -> 0 | F33: =+JULIO!F33+AGOSTO!F33+SETIEMBRE!F33 -> 0 | G33: 248
B34: FIRMA DEL ANESTESIOLOGO | C34: =+JULIO!C34+AGOSTO!C34+SETIEMBRE!C34 -> 246 | D34: =+JULIO!D34+AGOSTO!D34+SETIEMBRE!D34 -> 2 | E34: =+JULIO!E34+AGOSTO!E34+SETIEMBRE!E34 -> 0 | F34: =+JULIO!F34+AGOSTO!F34+SETIEMBRE!F34 -> 0 | G34: 248
B35: FIRMA DE LA ENFERMERA | C35: =+JULIO!C35+AGOSTO!C35+SETIEMBRE!C35 -> 244 | D35: =+JULIO!D35+AGOSTO!D35+SETIEMBRE!D35 -> 4 | E35: =+JULIO!E35+AGOSTO!E35+SETIEMBRE!E35 -> 0 | F35: =+JULIO!F35+AGOSTO!F35+SETIEMBRE!F35 -> 0 | G35: 248 | I35: =SUM(C33,C34,C35,C36,C37,C38,C39) -> 1725 | J35: =I35/$I$37 -> 0.9936635945
B36: FIRMA DEL COORDINADOR | C36: =+JULIO!C36+AGOSTO!C36+SETIEMBRE!C36 -> 248 | D36: =+JULIO!D36+AGOSTO!D36+SETIEMBRE!D36 -> 0 | E36: =+JULIO!E36+AGOSTO!E36+SETIEMBRE!E36 -> 0 | F36: =+JULIO!F36+AGOSTO!F36+SETIEMBRE!F36 -> 0 | G36: 248 | I36: =SUM(D33,D34,D35,D36,D37,,D38,D39) -> 11 | J36: =I36/$I$37 -> 0.00633640553
B37: NRO DE HISTORIA CLINICA | C37: =+JULIO!C37+AGOSTO!C37+SETIEMBRE!C37 -> 246 | D37: =+JULIO!D37+AGOSTO!D37+SETIEMBRE!D37 -> 2 | E37: =+JULIO!E37+AGOSTO!E37+SETIEMBRE!E37 -> 0 | F37: =+JULIO!F37+AGOSTO!F37+SETIEMBRE!F37 -> 0 | G37: 248 | I37: =SUM(I35:I36) -> 1736
B38: NOMBRE Y APELLIDOS DEL PACIENTE | C38: =+JULIO!C38+AGOSTO!C38+SETIEMBRE!C38 -> 247 | D38: =+JULIO!D38+AGOSTO!D38+SETIEMBRE!D38 -> 1 | E38: =+JULIO!E38+AGOSTO!E38+SETIEMBRE!E38 -> 0 | F38: =+JULIO!F38+AGOSTO!F38+SETIEMBRE!F38 -> 0 | G38: 248
B39: FECHA | C39: =+JULIO!C39+AGOSTO!C39+SETIEMBRE!C39 -> 248 | D39: =+JULIO!D39+AGOSTO!D39+SETIEMBRE!D39 -> 0 | E39: =+JULIO!E39+AGOSTO!E39+SETIEMBRE!E39 -> 0 | F39: =+JULIO!F39+AGOSTO!F39+SETIEMBRE!F39 -> 0 | G39: 248
B45: PORCENTAJE DE CUMPLIMIENTO DE LA LISTA DE VERIFICACION DE CIRUGIA SEGURA
C51: ENTRADA | D51: (+) | E51: =J8 -> 0.7450411224
D52: (-) | E52: =J9 -> 0.2549588776
C53: PAUSA | D53: (+) | E53: =J19 -> 0.9466783217 | M53: Cumplimiento
D54: (-) | E54: =J20 -> 0.05332167832 | L54: Entrada | M54: =E51 -> 0.7450411224
C55: SALIDA | D55: (+) | E55: =J28 -> 0.6450287592 | L55: Pausa | M55: =E53 -> 0.9466783217
D56: (-) | E56: =J29 -> 0.3549712408 | L56: Salida | M56: =E55 -> 0.6450287592
C57: FIRMA | D57: (+) | E57: =J35 -> 0.9936635945 | L57: Firmas | M57: =E57 -> 0.9936635945
D58: (-) | E58: =J36 -> 0.00633640553 | L58: Cumplimiento | M58: =AVERAGE(M54:M57) -> 0.8326029494
C59: CUMPLIMIENTO | E59: =M58 -> 0.8326029494

Sheet OCTUBRE
B4: REGISTRO DE LA LISTA DE VERIFICACION DE CIRUGIA SEGURA
B5: AÑO: U.E.408 HOSPITAL DE ESPINAR OCTUBRE - 2023 | E5: NO REGISTRA | F5: NO PRECEDE
C6: SI | D6: NO | E6: NR | F6: NP | G6: TOTAL
A7: ENTRADA | B7: PACIENTE CONFIRMA SU IDENTIDAD, EL SITIO QUIRUGICO, EL PROCEDIMIENTO Y CONSENTIMIENTO | C7: 71 | G7: =SUM(C7:F7) -> 71
B8: SE HA MARCADO EL SITIO QUIRURGICO | C8: 52 | D8: 19 | G8: =SUM(C8:F8) -> 71 | I8: =SUM(C7,C8,C9,C10,D11,D12,C13,D14,C15) -> 487 | J8: =I8/$I$10 -> 0.7621283255
B9: SE COMPROBO LA DISPONIBILIDAD DE LOS EQUIPOS DE ANESTESIA Y LA MEDICACION ANESTESICA | C9: 71 | G9: 71 | I9: =SUM(D7,D8,D9,D10,C11,C12,D13,C14,D15) -> 152 | J9: =I9/$I$10 -> 0.2378716745
B10: SE COLOCO EL PULXIOMETRO AL PACIENTE Y FUNCIONA | C10: 70 | D10: 1 | G10: 71 | I10: =SUM(I8:I9) -> 639
B11: EL PACIENTE TIENE ALERGIAS | C11: 19 | D11: 52 | G11: 71
B12: VIA AEREA DIFICIL / RIESGO DE ASPIRACION | C12: 8 | D12: 63 | G12: 71
B13: HAY INSTRUMENTAL Y EQUIPO DISPONIBLE | C13: 27 | D13: 44 | G13: 71
B14: RIESGO DE HEMORRAGIA MENOR A 500 ML | C14: 8 | D14: 63 | G14: 71
B15: SE HA PREVISTO DISPONIBILIDAD DE COMPONENTE SANGUINEO EN BANCO DE SANGRE | C15: 18 | D15: 53 | G15: 71
A16: PAUSA | B16: CONFIRMAR QUE TODOS LOS MIEMBROS DEL EQUIPO PROGRAMADOS SE HAYAN PRESENTADO POR SU NOMBRE | C16: 71 | G16: 71
B17: CONFIRMAR LA IDENTIDAD DEL PACIENTE, EL PROCEDIMIENTO Y EL SITIO QUIRUGICO | C17: 71 | G17: 71
B18: CONFIRMAR SI TODOS LOS MIEMBROS DEL EQUIPO HAN CUMPLIDO CORRECTAMENTE CON EL PROTOCOLO DE AS | C18: 71 | G18: 71
B19: SE HA ADMINISTRADO PROFILAXIS CON ANTIBIOTICOS EN LOS ULTIMOS 60 MINUTOS | C19: 71 | G19: 71 | I19: =SUM(C16,C17,C18,C19,C20,,C22,D23,C24,D25,C26) -> 643 | J19: =I19/$I$21 -> 0.9772036474
B20: ¿CUALES SON LOS PASOS CRITICOS O INESPERADO? | C20: 70 | D20: 1 | G20: 71 | I20: =SUM(D16,D17,D18,D19,D20,D21,D22,C23,D24,C25,D26) -> 15 | J20: =I20/$I$21 -> 0.02279635258
B21: ¿CUANTO DURARA LA OPERACIÓN? | C21: 71 | G21: 71 | I21: =SUM(I19:I20) -> 658
B22: ¿CUANTO ES LA PERDIDA DE SALGRE PREVISTA? | C22: 71 | G22: 71
B23: ¿PRESENTA EL PACIENTE ALGUN PROBLEMA ESPECIFICO? | C23: 5 | D23: 71 | G23: 76
B24: ¿SE HA CONFIRMADO LA ESTERILIDAD DE ROPA, INSTRUMENTAL Y EQUIPOS? | C24: 66 | D24: 5 | G24: 71
B25: ¿HAY DUDAS O PROBLEMAS RELACIONADOS CON ELLOS? | C25: 2 | D25: 68 | F25: 1 | G25: 71
B26: ¿PUEDEN VISUALIZARSE LAS IMÁGENES DIAGNOSTICADAS ESENCIALES? | C26: 13 | D26: 2 | F26: 56 | G26: 71
A27: SALIDA | B27: EL ENFERMERO CONFIRMA VERBALMENTE EL NOMBRE DEL PROCEDIMIENTO | C27: 71 | G27: 71
B28: EL RECUENTO DE INSTRUMENTOS, GASA Y AGUJAS | C28: 71 | G28: 71 | I28: =SUM(C27,C28,C29,C30,C31,D32) -> 232 | J28: =I28/$I$30 -> 0.6480446927
B29: EL ETIQUETADO DE LAS MUESTRAS (LECTURA DE LA ETIQUETA EN VOZ ALTA, INCLUIDO EL NOMBRE DEL PACIENTE | C29: 9 | D29: 49 | F29: 13 | G29: 71 | I29: =SUM(D27,D28,D29,D30,D31,C32) -> 126 | J29: =I29/$I$30 -> 0.3519553073
B30: SI HAY PROBLEMAS QUE SE RESUELVE RELACIONADOS CON EL INSTRUMENTAL Y LOS EQUIPOS | C30: 1 | D30: 69 | F30: 1 | G30: 71 | I30: =SUM(I28:I29) -> 358
B31: (CIRUJANO, ANESTESIOLOGO, ENFERMERO) CUALES SON LOS ASPECTOS CRITICOS DE LA RECUPERACION Y EL TRAMITE | C31: 62 | D31: 8 | F31: 1 | G31: 71
B32: OBSERVACIONES | D32: 18 | E32: 53 | G32: 71
A33: FIRMA | B33: FIRMA DEL CIRUJANO | C33: 70 | D33: 1 | G33: 71
B34: FIRMA DEL ANESTESIOLOGO | C34: 70 | D34: 1 | G34: 71
B35: FIRMA DE LA ENFERMERA | C35: 71 | G35: 71 | I35: =SUM(C33,C34,C35,C36,C37,C38,C39) -> 495 | J35: =I35/$I$37 -> 0.9959758551
B36: FIRMA DEL COORDINADOR | C36: 71 | G36: 71 | I36: =SUM(D33,D34,D35,D36,D37,,D38,D39) -> 2 | J36: =I36/$I$37 -> 0.004024144869
B37: NRO DE HISTORIA CLINICA | C37: 71 | G37: 71 | I37: =SUM(I35:I36) -> 497
B38: NOMBRE Y APELLIDOS DEL PACIENTE | C38: 71 | G38: 71
B39: FECHA | C39: 71 | G39: 71
B45: PORCENTAJE DE CUMPLIMIENTO DE LA LISTA DE VERIFICACION DE CIRUGIA SEGURA
C51: ENTRADA | D51: (+) | E51: =J8 -> 0.7621283255
D52: (-) | E52: =J9 -> 0.2378716745
C53: PAUSA | D53: (+) | E53: =J19 -> 0.9772036474 | M53: Cumplimiento
D54: (-) | E54: =J20 -> 0.02279635258 | L54: Entrada | M54: =E51 -> 0.7621283255
C55: SALIDA | D55: (+) | E55: =J28 -> 0.6480446927 | L55: Pausa | M55: =E53 -> 0.9772036474
D56: (-) | E56: =J29 -> 0.3519553073 | L56: Salida | M56: =E55 -> 0.6480446927
C57: FIRMA | D57: (+) | E57: =J35 -> 0.9959758551 | L57: Firmas | M57: =E57 -> 0.9959758551
D58: (-) | E58: =J36 -> 0.004024144869 | L58: Cumplimiento | M58: =AVERAGE(M54:M57) -> 0.8458381302
C59: CUMPLIMIENTO | E59: =M58 -> 0.8458381302

Sheet NOVIEMBRE
B4: REGISTRO DE LA LISTA DE VERIFICACION DE CIRUGIA SEGURA
B5: AÑO: U.E.408 HOSPITAL DE ESPINAR NOVIEMBRE - 2023 | E5: NO REGISTRA | F5: NO PRECEDE
C6: SI | D6: NO | E6: NR | F6: NP | G6: TOTAL
A7: ENTRADA | B7: PACIENTE CONFIRMA SU IDENTIDAD, EL SITIO QUIRUGICO, EL PROCEDIMIENTO Y CONSENTIMIENTO | C7: 66 | G7: =SUM(C7:F7) -> 66
B8: SE HA MARCADO EL SITIO QUIRURGICO | C8: 52 | D8: 14 | G8: =SUM(C8:F8) -> 66 | I8: =SUM(C7,C8,C9,C10,D11,D12,C13,D14,C15) -> 409 | J8: =I8/$I$10 -> 0.8051181102
B9: SE COMPROBO LA DISPONIBILIDAD DE LOS EQUIPOS DE ANESTESIA Y LA MEDICACION ANESTESICA | C9: 65 | E9: 1 | G9: 66 | I9: =SUM(D7,D8,D9,D10,C11,C12,D13,C14,D15) -> 99 | J9: =I9/$I$10 -> 0.1948818898
B10: SE COLOCO EL PULXIOMETRO AL PACIENTE Y FUNCIONA | C10: 59 | D10: 6 | E10: 1 | G10: 66 | I10: =SUM(I8:I9) -> 508
B11: EL PACIENTE TIENE ALERGIAS | C11: 10 | D11: 56 | G11: 66
B12: VIA AEREA DIFICIL / RIESGO DE ASPIRACION | C12: 6 | D12: 51 | E12: 9 | G12: 66
B13: HAY INSTRUMENTAL Y EQUIPO DISPONIBLE | C13: 9 | D13: 25 | E13: 32 | G13: 66
B14: RIESGO DE HEMORRAGIA MENOR A 500 ML | C14: 14 | D14: 42 | E14: 10 | G14: 66
B15: SE HA PREVISTO DISPONIBILIDAD DE COMPONENTE SANGUINEO EN BANCO DE SANGRE | C15: 9 | D15: 24 | E15: 33 | G15: 66
A16: PAUSA | B16: CONFIRMAR QUE TODOS LOS MIEMBROS DEL EQUIPO PROGRAMADOS SE HAYAN PRESENTADO POR SU NOMBRE | C16: 66 | G16: 66
B17: CONFIRMAR LA IDENTIDAD DEL PACIENTE, EL PROCEDIMIENTO Y EL SITIO QUIRUGICO | C17: 66 | G17: 66
B18: CONFIRMAR SI TODOS LOS MIEMBROS DEL EQUIPO HAN CUMPLIDO CORRECTAMENTE CON EL PROTOCOLO DE AS | C18: 66 | G18: 66
B19: SE HA ADMINISTRADO PROFILAXIS CON ANTIBIOTICOS EN LOS ULTIMOS 60 MINUTOS | C19: 58 | D19: 8 | G19: 66 | I19: =SUM(C16,C17,C18,C19,C20,,C22,D23,C24,D25,C26) -> 549 | J19: =I19/$I$21 -> 0.9498269896
B20: ¿CUALES SON LOS PASOS CRITICOS O INESPERADO? | C20: 55 | D20: 1 | E20: 10 | G20: 66 | I20: =SUM(D16,D17,D18,D19,D20,D21,D22,C23,D24,C25,D26) -> 29 | J20: =I20/$I$21 -> 0.05017301038
B21: ¿CUANTO DURARA LA OPERACIÓN? | C21: 65 | D21: 1 | G21: 66 | I21: =SUM(I19:I20) -> 578
B22: ¿CUANTO ES LA PERDIDA DE SALGRE PREVISTA? | C22: 64 | D22: 2 | G22: 66
B23: ¿PRESENTA EL PACIENTE ALGUN PROBLEMA ESPECIFICO? | C23: 9 | D23: 53 | E23: 4 | G23: 66
B24: ¿SE HA CONFIRMADO LA ESTERILIDAD DE ROPA, INSTRUMENTAL Y EQUIPOS? | C24: 58 | D24: 3 | E24: 5 | G24: 66
B25: ¿HAY DUDAS O PROBLEMAS RELACIONADOS CON ELLOS? | C25: 4 | D25: 55 | E25: 6 | G25: 65
B26: ¿PUEDEN VISUALIZARSE LAS IMÁGENES DIAGNOSTICADAS ESENCIALES? | C26: 8 | D26: 1 | E26: 13 | F26: 44 | G26: 66
A27: SALIDA | B27: EL ENFERMERO CONFIRMA VERBALMENTE EL NOMBRE DEL PROCEDIMIENTO | C27: 66 | G27: 66
B28: EL RECUENTO DE INSTRUMENTOS, GASA Y AGUJAS | C28: 65 | D28: 1 | G28: 66 | I28: =SUM(C27,C28,C29,C30,C31,D32) -> 202 | J28: =I28/$I$30 -> 0.6392405063
B29: EL ETIQUETADO DE LAS MUESTRAS (LECTURA DE LA ETIQUETA EN VOZ ALTA, INCLUIDO EL NOMBRE DEL PACIENTE | C29: 12 | D29: 39 | E29: 5 | F29: 10 | G29: 66 | I29: =SUM(D27,D28,D29,D30,D31,C32) -> 114 | J29: =I29/$I$30 -> 0.3607594937
B30: SI HAY PROBLEMAS QUE SE RESUELVE RELACIONADOS CON EL INSTRUMENTAL Y LOS EQUIPOS | C30: 2 | D30: 58 | E30: 3 | F30: 3 | G30: 66 | I30: =SUM(I28:I29) -> 316
B31: (CIRUJANO, ANESTESIOLOGO, ENFERMERO) CUALES SON LOS ASPECTOS CRITICOS DE LA RECUPERACION Y EL TRAMITE | C31: 55 | D31: 3 | E31: 8 | G31: 66
B32: OBSERVACIONES | C32: 13 | D32: 2 | E32: 51 | G32: 66
A33: FIRMA | B33: FIRMA DEL CIRUJANO | C33: 65 | D33: 1 | G33: 66
B34: FIRMA DEL ANESTESIOLOGO | C34: 66 | G34: 66
B35: FIRMA DE LA ENFERMERA | C35: 66 | G35: 66 | I35: =SUM(C33,C34,C35,C36,C37,C38,C39) -> 461 | J35: =I35/$I$37 -> 0.9978354978
B36: FIRMA DEL COORDINADOR | C36: 66 | G36: 66 | I36: =SUM(D33,D34,D35,D36,D37,,D38,D39) -> 1 | J36: =I36/$I$37 -> 0.002164502165
B37: NRO DE HISTORIA CLINICA | C37: 66 | G37: 66 | I37: =SUM(I35:I36) -> 462
B38: NOMBRE Y APELLIDOS DEL PACIENTE | C38: 66 | G38: 66
B39: FECHA | C39: 66 | G39: 66
B45: PORCENTAJE DE CUMPLIMIENTO DE LA LISTA DE VERIFICACION DE CIRUGIA SEGURA
C51: ENTRADA | D51: (+) | E51: =J8 -> 0.8051181102
D52: (-) | E52: =J9 -> 0.1948818898
C53: PAUSA | D53: (+) | E53: =J19 -> 0.9498269896 | M53: Cumplimiento
D54: (-) | E54: =J20 -> 0.05017301038 | L54: Entrada | M54: =E51 -> 0.8051181102
C55: SALIDA | D55: (+) | E55: =J28 -> 0.6392405063 | L55: Pausa | M55: =E53 -> 0.9498269896
D56: (-) | E56: =J29 -> 0.3607594937 | L56: Salida | M56: =E55 -> 0.6392405063
C57: FIRMA | D57: (+) | E57: =J35 -> 0.9978354978 | L57: Firmas | M57: =E57 -> 0.9978354978
D58: (-) | E58: =J36 -> 0.002164502165 | L58: Cumplimiento | M58: =AVERAGE(M54:M57) -> 0.848005276
C59: CUMPLIMIENTO | E59: =M58 -> 0.848005276

Sheet DICIEMBRE
B4: REGISTRO DE LA LISTA DE VERIFICACION DE CIRUGIA SEGURA
B5: AÑO: U.E.408 HOSPITAL DE ESPINAR DICIEMBRE - 2023 | E5: NO REGISTRA | F5: NO PRECEDE
C6: SI | D6: NO | E6: NR | F6: NP | G6: TOTAL
A7: ENTRADA | B7: PACIENTE CONFIRMA SU IDENTIDAD, EL SITIO QUIRUGICO, EL PROCEDIMIENTO Y CONSENTIMIENTO | C7: 74 | G7: =SUM(C7:F7) -> 74
B8: SE HA MARCADO EL SITIO QUIRURGICO | C8: 51 | D8: 23 | G8: =SUM(C8:F8) -> 74 | I8: =SUM(C7,C8,C9,C10,D11,D12,C13,D14,C15) -> 475 | J8: =I8/$I$10 -> 0.8246527778
B9: SE COMPROBO LA DISPONIBILIDAD DE LOS EQUIPOS DE ANESTESIA Y LA MEDICACION ANESTESICA | C9: 74 | G9: 74 | I9: =SUM(D7,D8,D9,D10,C11,C12,D13,C14,D15) -> 101 | J9: =I9/$I$10 -> 0.1753472222
B10: SE COLOCO EL PULXIOMETRO AL PACIENTE Y FUNCIONA | C10: 74 | G10: 74 | I10: =SUM(I8:I9) -> 576
B11: EL PACIENTE TIENE ALERGIAS | C11: 7 | D11: 67 | G11: 74
B12: VIA AEREA DIFICIL / RIESGO DE ASPIRACION | C12: 5 | D12: 67 | E12: 2 | G12: 74
B13: HAY INSTRUMENTAL Y EQUIPO DISPONIBLE | C13: 4 | D13: 36 | E13: 34 | G13: 74
B14: RIESGO DE HEMORRAGIA MENOR A 500 ML | D14: 63 | E14: 11 | G14: 74
B15: SE HA PREVISTO DISPONIBILIDAD DE COMPONENTE SANGUINEO EN BANCO DE SANGRE | C15: 1 | D15: 30 | E15: 43 | G15: 74
A16: PAUSA | B16: CONFIRMAR QUE TODOS LOS MIEMBROS DEL EQUIPO PROGRAMADOS SE HAYAN PRESENTADO POR SU NOMBRE | C16: 74 | G16: 74
B17: CONFIRMAR LA IDENTIDAD DEL PACIENTE, EL PROCEDIMIENTO Y EL SITIO QUIRUGICO | C17: 74 | G17: 74
B18: CONFIRMAR SI TODOS LOS MIEMBROS DEL EQUIPO HAN CUMPLIDO CORRECTAMENTE CON EL PROTOCOLO DE AS | C18: 73 | F18: 1 | G18: 74
B19: SE HA ADMINISTRADO PROFILAXIS CON ANTIBIOTICOS EN LOS ULTIMOS 60 MINUTOS | C19: 63 | D19: 5 | E19: 5 | F19: 1 | G19: 74 | I19: =SUM(C16,C17,C18,C19,C20,,C22,D23,C24,D25,C26) -> 636 | J19: =I19/$I$21 -> 0.9506726457
B20: ¿CUALES SON LOS PASOS CRITICOS O INESPERADO? | C20: 71 | D20: 3 | G20: 74 | I20: =SUM(D16,D17,D18,D19,D20,D21,D22,C23,D24,C25,D26) -> 33 | J20: =I20/$I$21 -> 0.04932735426
B21: ¿CUANTO DURARA LA OPERACIÓN? | C21: 72 | E21: 2 | G21: 74 | I21: =SUM(I19:I20) -> 669
B22: ¿CUANTO ES LA PERDIDA DE SALGRE PREVISTA? | C22: 71 | D22: 2 | E22: 1 | G22: 74
B23: ¿PRESENTA EL PACIENTE ALGUN PROBLEMA ESPECIFICO? | C23: 8 | D23: 65 | E23: 1 | G23: 74
B24: ¿SE HA CONFIRMADO LA ESTERILIDAD DE ROPA, INSTRUMENTAL Y EQUIPOS? | C24: 61 | D24: 11 | E24: 1 | F24: 1 | G24: 74
B25: ¿HAY DUDAS O PROBLEMAS RELACIONADOS CON ELLOS? | C25: 1 | D25: 72 | E25: 1 | G25: 74
B26: ¿PUEDEN VISUALIZARSE LAS IMÁGENES DIAGNOSTICADAS ESENCIALES? | C26: 12 | D26: 3 | E26: 2 | F26: 57 | G26: 74
A27: SALIDA | B27: EL ENFERMERO CONFIRMA VERBALMENTE EL NOMBRE DEL PROCEDIMIENTO | C27: 74 | G27: 74
B28: EL RECUENTO DE INSTRUMENTOS, GASA Y AGUJAS | C28: 74 | G28: 74 | I28: =SUM(C27,C28,C29,C30,C31,D32) -> 287 | J28: =I28/$I$30 -> 0.7229219144
B29: EL ETIQUETADO DE LAS MUESTRAS (LECTURA DE LA ETIQUETA EN VOZ ALTA, INCLUIDO EL NOMBRE DEL PACIENTE | C29: 26 | D29: 34 | E29: 4 | F29: 10 | G29: 74 | I29: =SUM(D27,D28,D29,D30,D31,C32) -> 110 | J29: =I29/$I$30 -> 0.2770780856
B30: SI HAY PROBLEMAS QUE SE RESUELVE RELACIONADOS CON EL INSTRUMENTAL Y LOS EQUIPOS | C30: 4 | D30: 69 | F30: 1 | G30: 74 | I30: =SUM(I28:I29) -> 397
B31: (CIRUJANO, ANESTESIOLOGO, ENFERMERO) CUALES SON LOS ASPECTOS CRITICOS DE LA RECUPERACION Y EL TRAMITE | C31: 68 | D31: 4 | E31: 2 | G31: 74
B32: OBSERVACIONES | C32: 3 | D32: 41 | E32: 30 | G32: 74
A33: FIRMA | B33: FIRMA DEL CIRUJANO | C33: 74 | G33: 74
B34: FIRMA DEL ANESTESIOLOGO | C34: 74 | G34: 74
B35: FIRMA DE LA ENFERMERA | C35: 74 | G35: 74 | I35: =SUM(C33,C34,C35,C36,C37,C38,C39) -> 518 | J35: =I35/$I$37 -> 1
B36: FIRMA DEL COORDINADOR | C36: 74 | G36: 74 | I36: =SUM(D33,D34,D35,D36,D37,,D38,D39) -> 0 | J36: =I36/$I$37 -> 0
B37: NRO DE HISTORIA CLINICA | C37: 74 | G37: 74 | I37: =SUM(I35:I36) -> 518
B38: NOMBRE Y APELLIDOS DEL PACIENTE | C38: 74 | G38: 74
B39: FECHA | C39: 74 | G39: 74
B45: PORCENTAJE DE CUMPLIMIENTO DE LA LISTA DE VERIFICACION DE CIRUGIA SEGURA
C51: ENTRADA | D51: (+) | E51: =J8 -> 0.8246527778
D52: (-) | E52: =J9 -> 0.1753472222
C53: PAUSA | D53: (+) | E53: =J19 -> 0.9506726457 | M53: Cumplimiento
D54: (-) | E54: =J20 -> 0.04932735426 | L54: Entrada | M54: =E51 -> 0.8246527778
C55: SALIDA | D55: (+) | E55: =J28 -> 0.7229219144 | L55: Pausa | M55: =E53 -> 0.9506726457
D56: (-) | E56: =J29 -> 0.2770780856 | L56: Salida | M56: =E55 -> 0.7229219144
C57: FIRMA | D57: (+) | E57: =J35 -> 1 | L57: Firmas | M57: =E57 -> 1
D58: (-) | E58: =J36 -> 0 | L58: Cumplimiento | M58: =AVERAGE(M54:M57) -> 0.8745618345
C59: CUMPLIMIENTO | E59: =M58 -> 0.8745618345

Sheet IV TRIMESTRE 2023
B4: REGISTRO DE LA LISTA DE VERIFICACION DE CIRUGIA SEGURA
B5: AÑO: U.E.408 HOSPITAL DE ESPINAR IV TRIMESTRE - 2023 | E5: NO REGISTRA | F5: NO PRECEDE
C6: SI | D6: NO | E6: NR | F6: NP | G6: TOTAL
A7: ENTRADA | B7: PACIENTE CONFIRMA SU IDENTIDAD, EL SITIO QUIRUGICO, EL PROCEDIMIENTO Y CONSENTIMIENTO | C7: =+OCTUBRE!C7+NOVIEMBRE!C7+DICIEMBRE!C7 -> 211 | D7: =+OCTUBRE!D7+NOVIEMBRE!D7+DICIEMBRE!D7 -> 0 | E7: =+OCTUBRE!E7+NOVIEMBRE!E7+DICIEMBRE!E7 -> 0 | F7: =+OCTUBRE!F7+NOVIEMBRE!F7+DICIEMBRE!F7 -> 0 | G7: =SUM(C7:F7) -> 211
B8: SE HA MARCADO EL SITIO QUIRURGICO | C8: =+OCTUBRE!C8+NOVIEMBRE!C8+DICIEMBRE!C8 -> 155 | D8: =+OCTUBRE!D8+NOVIEMBRE!D8+DICIEMBRE!D8 -> 56 | E8: =+OCTUBRE!E8+NOVIEMBRE!E8+DICIEMBRE!E8 -> 0 | F8: =+OCTUBRE!F8+NOVIEMBRE!F8+DICIEMBRE!F8 -> 0 | G8: 211 | I8: =SUM(C7,C8,C9,C10,D11,D12,C13,D14,C15) -> 1371 | J8: =I8/$I$10 -> 0.7957051654
B9: SE COMPROBO LA DISPONIBILIDAD DE LOS EQUIPOS DE ANESTESIA Y LA MEDICACION ANESTESICA | C9: =+OCTUBRE!C9+NOVIEMBRE!C9+DICIEMBRE!C9 -> 210 | D9: =+OCTUBRE!D9+NOVIEMBRE!D9+DICIEMBRE!D9 -> 0 | E9: =+OCTUBRE!E9+NOVIEMBRE!E9+DICIEMBRE!E9 -> 1 | F9: =+OCTUBRE!F9+NOVIEMBRE!F9+DICIEMBRE!F9 -> 0 | G9: 211 | I9: =SUM(D7,D8,D9,D10,C11,C12,D13,C14,D15) -> 352 | J9: =I9/$I$10 -> 0.2042948346
B10: SE COLOCO EL PULXIOMETRO AL PACIENTE Y FUNCIONA | C10: =+OCTUBRE!C10+NOVIEMBRE!C10+DICIEMBRE!C10 -> 203 | D10: =+OCTUBRE!D10+NOVIEMBRE!D10+DICIEMBRE!D10 -> 7 | E10: =+OCTUBRE!E10+NOVIEMBRE!E10+DICIEMBRE!E10 -> 1 | F10: =+OCTUBRE!F10+NOVIEMBRE!F10+DICIEMBRE!F10 -> 0 | G10: 211 | I10: =SUM(I8:I9) -> 1723
B11: EL PACIENTE TIENE ALERGIAS | C11: =+OCTUBRE!C11+NOVIEMBRE!C11+DICIEMBRE!C11 -> 36 | D11: =+OCTUBRE!D11+NOVIEMBRE!D11+DICIEMBRE!D11 -> 175 | E11: =+OCTUBRE!E11+NOVIEMBRE!E11+DICIEMBRE!E11 -> 0 | F11: =+OCTUBRE!F11+NOVIEMBRE!F11+DICIEMBRE!F11 -> 0 | G11: 211
B12: VIA AEREA DIFICIL / RIESGO DE ASPIRACION | C12: =+OCTUBRE!C12+NOVIEMBRE!C12+DICIEMBRE!C12 -> 19 | D12: =+OCTUBRE!D12+NOVIEMBRE!D12+DICIEMBRE!D12 -> 181 | E12: =+OCTUBRE!E12+NOVIEMBRE!E12+DICIEMBRE!E12 -> 11 | F12: =+OCTUBRE!F12+NOVIEMBRE!F12+DICIEMBRE!F12 -> 0 | G12: 211
B13: HAY INSTRUMENTAL Y EQUIPO DISPONIBLE | C13: =+OCTUBRE!C13+NOVIEMBRE!C13+DICIEMBRE!C13 -> 40 | D13: =+OCTUBRE!D13+NOVIEMBRE!D13+DICIEMBRE!D13 -> 105 | E13: =+OCTUBRE!E13+NOVIEMBRE!E13+DICIEMBRE!E13 -> 66 | F13: =+OCTUBRE!F13+NOVIEMBRE!F13+DICIEMBRE!F13 -> 0 | G13: 211
B14: RIESGO DE HEMORRAGIA MENOR A 500 ML | C14: =+OCTUBRE!C14+NOVIEMBRE!C14+DICIEMBRE!C14 -> 22 | D14: =+OCTUBRE!D14+NOVIEMBRE!D14+DICIEMBRE!D14 -> 168 | E14: =+OCTUBRE!E14+NOVIEMBRE!E14+DICIEMBRE!E14 -> 21 | F14: =+OCTUBRE!F14+NOVIEMBRE!F14+DICIEMBRE!F14 -> 0 | G14: 211
B15: SE HA PREVISTO DISPONIBILIDAD DE COMPONENTE SANGUINEO EN BANCO DE SANGRE | C15: =+OCTUBRE!C15+NOVIEMBRE!C15+DICIEMBRE!C15 -> 28 | D15: =+OCTUBRE!D15+NOVIEMBRE!D15+DICIEMBRE!D15 -> 107 | E15: =+OCTUBRE!E15+NOVIEMBRE!E15+DICIEMBRE!E15 -> 76 | F15: =+OCTUBRE!F15+NOVIEMBRE!F15+DICIEMBRE!F15 -> 0 | G15: 211
A16: PAUSA | B16: CONFIRMAR QUE TODOS LOS MIEMBROS DEL EQUIPO PROGRAMADOS SE HAYAN PRESENTADO POR SU NOMBRE | C16: =+OCTUBRE!C16+NOVIEMBRE!C16+DICIEMBRE!C16 -> 211 | D16: =+OCTUBRE!D16+NOVIEMBRE!D16+DICIEMBRE!D16 -> 0 | E16: =+OCTUBRE!E16+NOVIEMBRE!E16+DICIEMBRE!E16 -> 0 | F16: =+OCTUBRE!F16+NOVIEMBRE!F16+DICIEMBRE!F16 -> 0 | G16: 211
B17: CONFIRMAR LA IDENTIDAD DEL PACIENTE, EL PROCEDIMIENTO Y EL SITIO QUIRUGICO | C17: =+OCTUBRE!C17+NOVIEMBRE!C17+DICIEMBRE!C17 -> 211 | D17: =+OCTUBRE!D17+NOVIEMBRE!D17+DICIEMBRE!D17 -> 0 | E17: =+OCTUBRE!E17+NOVIEMBRE!E17+DICIEMBRE!E17 -> 0 | F17: =+OCTUBRE!F17+NOVIEMBRE!F17+DICIEMBRE!F17 -> 0 | G17: 211
B18: CONFIRMAR SI TODOS LOS MIEMBROS DEL EQUIPO HAN CUMPLIDO CORRECTAMENTE CON EL PROTOCOLO DE AS | C18: =+OCTUBRE!C18+NOVIEMBRE!C18+DICIEMBRE!C18 -> 210 | D18: =+OCTUBRE!D18+NOVIEMBRE!D18+DICIEMBRE!D18 -> 0 | E18: =+OCTUBRE!E18+NOVIEMBRE!E18+DICIEMBRE!E18 -> 0 | F18: =+OCTUBRE!F18+NOVIEMBRE!F18+DICIEMBRE!F18 -> 1 | G18: 211
B19: SE HA ADMINISTRADO PROFILAXIS CON ANTIBIOTICOS EN LOS ULTIMOS 60 MINUTOS | C19: =+OCTUBRE!C19+NOVIEMBRE!C19+DICIEMBRE!C19 -> 192 | D19: =+OCTUBRE!D19+NOVIEMBRE!D19+DICIEMBRE!D19 -> 13 | E19: =+OCTUBRE!E19+NOVIEMBRE!E19+DICIEMBRE!E19 -> 5 | F19: =+OCTUBRE!F19+NOVIEMBRE!F19+DICIEMBRE!F19 -> 1 | G19: 211 | I19: =SUM(C16,C17,C18,C19,C20,,C22,D23,C24,D25,C26) -> 1828 | J19: =I19/$I$21 -> 0.9595800525
B20: ¿CUALES SON LOS PASOS CRITICOS O INESPERADO? | C20: =+OCTUBRE!C20+NOVIEMBRE!C20+DICIEMBRE!C20 -> 196 | D20: =+OCTUBRE!D20+NOVIEMBRE!D20+DICIEMBRE!D20 -> 5 | E20: =+OCTUBRE!E20+NOVIEMBRE!E20+DICIEMBRE!E20 -> 10 | F20: =+OCTUBRE!F20+NOVIEMBRE!F20+DICIEMBRE!F20 -> 0 | G20: 211 | I20: =SUM(D16,D17,D18,D19,D20,D21,D22,C23,D24,C25,D26) -> 77 | J20: =I20/$I$21 -> 0.04041994751
B21: ¿CUANTO DURARA LA OPERACIÓN? | C21: =+OCTUBRE!C21+NOVIEMBRE!C21+DICIEMBRE!C21 -> 208 | D21: =+OCTUBRE!D21+NOVIEMBRE!D21+DICIEMBRE!D21 -> 1 | E21: =+OCTUBRE!E21+NOVIEMBRE!E21+DICIEMBRE!E21 -> 2 | F21: =+OCTUBRE!F21+NOVIEMBRE!F21+DICIEMBRE!F21 -> 0 | G21: 211 | I21: =SUM(I19:I20) -> 1905
B22: ¿CUANTO ES LA PERDIDA DE SALGRE PREVISTA? | C22: =+OCTUBRE!C22+NOVIEMBRE!C22+DICIEMBRE!C22 -> 206 | D22: =+OCTUBRE!D22+NOVIEMBRE!D22+DICIEMBRE!D22 -> 4 | E22: =+OCTUBRE!E22+NOVIEMBRE!E22+DICIEMBRE!E22 -> 1 | F22: =+OCTUBRE!F22+NOVIEMBRE!F22+DICIEMBRE!F22 -> 0 | G22: 211
B23: ¿PRESENTA EL PACIENTE ALGUN PROBLEMA ESPECIFICO? | C23: =+OCTUBRE!C23+NOVIEMBRE!C23+DICIEMBRE!C23 -> 22 | D23: =+OCTUBRE!D23+NOVIEMBRE!D23+DICIEMBRE!D23 -> 189 | E23: =+OCTUBRE!E23+NOVIEMBRE!E23+DICIEMBRE!E23 -> 5 | F23: =+OCTUBRE!F23+NOVIEMBRE!F23+DICIEMBRE!F23 -> 0 | G23: 216
B24: ¿SE HA CONFIRMADO LA ESTERILIDAD DE ROPA, INSTRUMENTAL Y EQUIPOS? | C24: =+OCTUBRE!C24+NOVIEMBRE!C24+DICIEMBRE!C24 -> 185 | D24: =+OCTUBRE!D24+NOVIEMBRE!D24+DICIEMBRE!D24 -> 19 | E24: =+OCTUBRE!E24+NOVIEMBRE!E24+DICIEMBRE!E24 -> 6 | F24: =+OCTUBRE!F24+NOVIEMBRE!F24+DICIEMBRE!F24 -> 1 | G24: 211
B25: ¿HAY DUDAS O PROBLEMAS RELACIONADOS CON ELLOS? | C25: =+OCTUBRE!C25+NOVIEMBRE!C25+DICIEMBRE!C25 -> 7 | D25: =+OCTUBRE!D25+NOVIEMBRE!D25+DICIEMBRE!D25 -> 195 | E25: =+OCTUBRE!E25+NOVIEMBRE!E25+DICIEMBRE!E25 -> 7 | F25: =+OCTUBRE!F25+NOVIEMBRE!F25+DICIEMBRE!F25 -> 1 | G25: 210
B26: ¿PUEDEN VISUALIZARSE LAS IMÁGENES DIAGNOSTICADAS ESENCIALES? | C26: =+OCTUBRE!C26+NOVIEMBRE!C26+DICIEMBRE!C26 -> 33 | D26: =+OCTUBRE!D26+NOVIEMBRE!D26+DICIEMBRE!D26 -> 6 | E26: =+OCTUBRE!E26+NOVIEMBRE!E26+DICIEMBRE!E26 -> 15 | F26: =+OCTUBRE!F26+NOVIEMBRE!F26+DICIEMBRE!F26 -> 157 | G26: 211
A27: SALIDA | B27: EL ENFERMERO CONFIRMA VERBALMENTE EL NOMBRE DEL PROCEDIMIENTO | C27: =+OCTUBRE!C27+NOVIEMBRE!C27+DICIEMBRE!C27 -> 211 | D27: =+OCTUBRE!D27+NOVIEMBRE!D27+DICIEMBRE!D27 -> 0 | E27: =+OCTUBRE!E27+NOVIEMBRE!E27+DICIEMBRE!E27 -> 0 | F27: =+OCTUBRE!F27+NOVIEMBRE!F27+DICIEMBRE!F27 -> 0 | G27: 211
B28: EL RECUENTO DE INSTRUMENTOS, GASA Y AGUJAS | C28: =+OCTUBRE!C28+NOVIEMBRE!C28+DICIEMBRE!C28 -> 210 | D28: =+OCTUBRE!D28+NOVIEMBRE!D28+DICIEMBRE!D28 -> 1 | E28: =+OCTUBRE!E28+NOVIEMBRE!E28+DICIEMBRE!E28 -> 0 | F28: =+OCTUBRE!F28+NOVIEMBRE!F28+DICIEMBRE!F28 -> 0 | G28: 211 | I28: =SUM(C27,C28,C29,C30,C31,D32) -> 721 | J28: =I28/$I$30 -> 0.6732026144
B29: EL ETIQUETADO DE LAS MUESTRAS (LECTURA DE LA ETIQUETA EN VOZ ALTA, INCLUIDO EL NOMBRE DEL PACIENTE | C29: =+OCTUBRE!C29+NOVIEMBRE!C29+DICIEMBRE!C29 -> 47 | D29: =+OCTUBRE!D29+NOVIEMBRE!D29+DICIEMBRE!D29 -> 122 | E29: =+OCTUBRE!E29+NOVIEMBRE!E29+DICIEMBRE!E29 -> 9 | F29: =+OCTUBRE!F29+NOVIEMBRE!F29+DICIEMBRE!F29 -> 33 | G29: 211 | I29: =SUM(D27,D28,D29,D30,D31,C32) -> 350 | J29: =I29/$I$30 -> 0.3267973856
B30: SI HAY PROBLEMAS QUE SE RESUELVE RELACIONADOS CON EL INSTRUMENTAL Y LOS EQUIPOS | C30: =+OCTUBRE!C30+NOVIEMBRE!C30+DICIEMBRE!C30 -> 7 | D30: =+OCTUBRE!D30+NOVIEMBRE!D30+DICIEMBRE!D30 -> 196 | E30: =+OCTUBRE!E30+NOVIEMBRE!E30+DICIEMBRE!E30 -> 3 | F30: =+OCTUBRE!F30+NOVIEMBRE!F30+DICIEMBRE!F30 -> 5 | G30: 211 | I30: =SUM(I28:I29) -> 1071
B31: (CIRUJANO, ANESTESIOLOGO, ENFERMERO) CUALES SON LOS ASPECTOS CRITICOS DE LA RECUPERACION Y EL TRAMITE | C31: =+OCTUBRE!C31+NOVIEMBRE!C31+DICIEMBRE!C31 -> 185 | D31: =+OCTUBRE!D31+NOVIEMBRE!D31+DICIEMBRE!D31 -> 15 | E31: =+OCTUBRE!E31+NOVIEMBRE!E31+DICIEMBRE!E31 -> 10 | F31: =+OCTUBRE!F31+NOVIEMBRE!F31+DICIEMBRE!F31 -> 1 | G31: 211
B32: OBSERVACIONES | C32: =+OCTUBRE!C32+NOVIEMBRE!C32+DICIEMBRE!C32 -> 16 | D32: =+OCTUBRE!D32+NOVIEMBRE!D32+DICIEMBRE!D32 -> 61 | E32: =+OCTUBRE!E32+NOVIEMBRE!E32+DICIEMBRE!E32 -> 134 | F32: =+OCTUBRE!F32+NOVIEMBRE!F32+DICIEMBRE!F32 -> 0 | G32: 211
A33: FIRMA | B33: FIRMA DEL CIRUJANO | C33: =+OCTUBRE!C33+NOVIEMBRE!C33+DICIEMBRE!C33 -> 209 | D33: =+OCTUBRE!D33+NOVIEMBRE!D33+DICIEMBRE!D33 -> 2 | E33: =+OCTUBRE!E33+NOVIEMBRE!E33+DICIEMBRE!E33 -> 0 | F33: =+OCTUBRE!F33+NOVIEMBRE!F33+DICIEMBRE!F33 -> 0 | G33: 211
B34: FIRMA DEL ANESTESIOLOGO | C34: =+OCTUBRE!C34+NOVIEMBRE!C34+DICIEMBRE!C34 -> 210 | D34: =+OCTUBRE!D34+NOVIEMBRE!D34+DICIEMBRE!D34 -> 1 | E34: =+OCTUBRE!E34+NOVIEMBRE!E34+DICIEMBRE!E34 -> 0 | F34: =+OCTUBRE!F34+NOVIEMBRE!F34+DICIEMBRE!F34 -> 0 | G34: 211
B35: FIRMA DE LA ENFERMERA | C35: =+OCTUBRE!C35+NOVIEMBRE!C35+DICIEMBRE!C35 -> 211 | D35: =+OCTUBRE!D35+NOVIEMBRE!D35+DICIEMBRE!D35 -> 0 | E35: =+OCTUBRE!E35+NOVIEMBRE!E35+DICIEMBRE!E35 -> 0 | F35: =+OCTUBRE!F35+NOVIEMBRE!F35+DICIEMBRE!F35 -> 0 | G35: 211 | I35: =SUM(C33,C34,C35,C36,C37,C38,C39) -> 1474 | J35: =I35/$I$37 -> 0.9979688558
B36: FIRMA DEL COORDINADOR | C36: =+OCTUBRE!C36+NOVIEMBRE!C36+DICIEMBRE!C36 -> 211 | D36: =+OCTUBRE!D36+NOVIEMBRE!D36+DICIEMBRE!D36 -> 0 | E36: =+OCTUBRE!E36+NOVIEMBRE!E36+DICIEMBRE!E36 -> 0 | F36: =+OCTUBRE!F36+NOVIEMBRE!F36+DICIEMBRE!F36 -> 0 | G36: 211 | I36: =SUM(D33,D34,D35,D36,D37,,D38,D39) -> 3 | J36: =I36/$I$37 -> 0.002031144211
B37: NRO DE HISTORIA CLINICA | C37: =+OCTUBRE!C37+NOVIEMBRE!C37+DICIEMBRE!C37 -> 211 | D37: =+OCTUBRE!D37+NOVIEMBRE!D37+DICIEMBRE!D37 -> 0 | E37: =+OCTUBRE!E37+NOVIEMBRE!E37+DICIEMBRE!E37 -> 0 | F37: =+OCTUBRE!F37+NOVIEMBRE!F37+DICIEMBRE!F37 -> 0 | G37: 211 | I37: =SUM(I35:I36) -> 1477
B38: NOMBRE Y APELLIDOS DEL PACIENTE | C38: =+OCTUBRE!C38+NOVIEMBRE!C38+DICIEMBRE!C38 -> 211 | D38: =+OCTUBRE!D38+NOVIEMBRE!D38+DICIEMBRE!D38 -> 0 | E38: =+OCTUBRE!E38+NOVIEMBRE!E38+DICIEMBRE!E38 -> 0 | F38: =+OCTUBRE!F38+NOVIEMBRE!F38+DICIEMBRE!F38 -> 0 | G38: 211
B39: FECHA | C39: =+OCTUBRE!C39+NOVIEMBRE!C39+DICIEMBRE!C39 -> 211 | D39: =+OCTUBRE!D39+NOVIEMBRE!D39+DICIEMBRE!D39 -> 0 | E39: =+OCTUBRE!E39+NOVIEMBRE!E39+DICIEMBRE!E39 -> 0 | F39: =+OCTUBRE!F39+NOVIEMBRE!F39+DICIEMBRE!F39 -> 0 | G39: 211
B45: PORCENTAJE DE CUMPLIMIENTO DE LA LISTA DE VERIFICACION DE CIRUGIA SEGURA
C51: ENTRADA | D51: (+) | E51: =J8 -> 0.7957051654
D52: (-) | E52: =J9 -> 0.2042948346
C53: PAUSA | D53: (+) | E53: =J19 -> 0.9595800525 | M53: Cumplimiento
D54: (-) | E54: =J20 -> 0.04041994751 | L54: Entrada | M54: =E51 -> 0.7957051654
C55: SALIDA | D55: (+) | E55: =J28 -> 0.6732026144 | L55: Pausa | M55: =E53 -> 0.9595800525
D56: (-) | E56: =J29 -> 0.3267973856 | L56: Salida | M56: =E55 -> 0.6732026144
C57: FIRMA | D57: (+) | E57: =J35 -> 0.9979688558 | L57: Firmas | M57: =E57 -> 0.9979688558
D58: (-) | E58: =J36 -> 0.002031144211 | L58: Cumplimiento | M58: =AVERAGE(M54:M57) -> 0.856614172
C59: CUMPLIMIENTO | E59: =M58 -> 0.856614172

Sheet ANUAL 2023.
B4: REGISTRO DE LA LISTA DE VERIFICACION DE CIRUGIA SEGURA
B5: AÑO: U.E.408 HOSPITAL DE ESPINAR ANUAL 2023. | E5: NO REGISTRA | F5: NO PRECEDE
C6: SI | D6: NO | E6: NR | F6: NP | G6: TOTAL
A7: ENTRADA | B7: PACIENTE CONFIRMA SU IDENTIDAD, EL SITIO QUIRUGICO, EL PROCEDIMIENTO Y CONSENTIMIENTO | C7: =+'I TRIMESTRE 2024'!C7+'II TRIMESTRE 2024'!C7+'III TRIMESTRE 2024'!C7+'IV TRIMESTRE 2023'!C7 -> 817 | D7: =+'I TRIMESTRE 2024'!D7+'II TRIMESTRE 2024'!D7+'III TRIMESTRE 2024'!D7+'IV TRIMESTRE 2023'!D7 -> 1 | E7: =+'I TRIMESTRE 2024'!E7+'II TRIMESTRE 2024'!E7+'III TRIMESTRE 2024'!E7+'IV TRIMESTRE 2023'!E7 -> 4 | F7: =+'I TRIMESTRE 2024'!F7+'II TRIMESTRE 2024'!F7+'III TRIMESTRE 2024'!F7+'IV TRIMESTRE 2023'!F7 -> 2 | G7: =SUM(C7:F7) -> 824
B8: SE HA MARCADO EL SITIO QUIRURGICO | C8: =+'I TRIMESTRE 2024'!C8+'II TRIMESTRE 2024'!C8+'III TRIMESTRE 2024'!C8+'IV TRIMESTRE 2023'!C8 -> 553 | D8: =+'I TRIMESTRE 2024'!D8+'II TRIMESTRE 2024'!D8+'III TRIMESTRE 2024'!D8+'IV TRIMESTRE 2023'!D8 -> 219 | E8: =+'I TRIMESTRE 2024'!E8+'II TRIMESTRE 2024'!E8+'III TRIMESTRE 2024'!E8+'IV TRIMESTRE 2023'!E8 -> 13 | F8: =+'I TRIMESTRE 2024'!F8+'II TRIMESTRE 2024'!F8+'III TRIMESTRE 2024'!F8+'IV TRIMESTRE 2023'!F8 -> 116 | G8: 901 | I8: =SUM(C7,C8,C9,C10,D11,D12,C13,D14,C15) -> 5919 | J8: =I8/$I$10 -> 0.8305037183
B9: SE COMPROBO LA DISPONIBILIDAD DE LOS EQUIPOS DE ANESTESIA Y LA MEDICACION ANESTESICA | C9: =+'I TRIMESTRE 2024'!C9+'II TRIMESTRE 2024'!C9+'III TRIMESTRE 2024'!C9+'IV TRIMESTRE 2023'!C9 -> 892 | D9: =+'I TRIMESTRE 2024'!D9+'II TRIMESTRE 2024'!D9+'III TRIMESTRE 2024'!D9+'IV TRIMESTRE 2023'!D9 -> 3 | E9: =+'I TRIMESTRE 2024'!E9+'II TRIMESTRE 2024'!E9+'III TRIMESTRE 2024'!E9+'IV TRIMESTRE 2023'!E9 -> 6 | F9: =+'I TRIMESTRE 2024'!F9+'II TRIMESTRE 2024'!F9+'III TRIMESTRE 2024'!F9+'IV TRIMESTRE 2023'!F9 -> 0 | G9: 901 | I9: =SUM(D7,D8,D9,D10,C11,C12,D13,C14,D15) -> 1208 | J9: =I9/$I$10 -> 0.1694962817
B10: SE COLOCO EL PULXIOMETRO AL PACIENTE Y FUNCIONA | C10: =+'I TRIMESTRE 2024'!C10+'II TRIMESTRE 2024'!C10+'III TRIMESTRE 2024'!C10+'IV TRIMESTRE 2023'!C10 -> 864 | D10: =+'I TRIMESTRE 2024'!D10+'II TRIMESTRE 2024'!D10+'III TRIMESTRE 2024'!D10+'IV TRIMESTRE 2023'!D10 -> 26 | E10: =+'I TRIMESTRE 2024'!E10+'II TRIMESTRE 2024'!E10+'III TRIMESTRE 2024'!E10+'IV TRIMESTRE 2023'!E10 -> 11 | F10: =+'I TRIMESTRE 2024'!F10+'II TRIMESTRE 2024'!F10+'III TRIMESTRE 2024'!F10+'IV TRIMESTRE 2023'!F10 -> 0 | G10: 901 | I10: =SUM(I8:I9) -> 7127
B11: EL PACIENTE TIENE ALERGIAS | C11: =+'I TRIMESTRE 2024'!C11+'II TRIMESTRE 2024'!C11+'III TRIMESTRE 2024'!C11+'IV TRIMESTRE 2023'!C11 -> 87 | D11: =+'I TRIMESTRE 2024'!D11+'II TRIMESTRE 2024'!D11+'III TRIMESTRE 2024'!D11+'IV TRIMESTRE 2023'!D11 -> 813 | E11: =+'I TRIMESTRE 2024'!E11+'II TRIMESTRE 2024'!E11+'III TRIMESTRE 2024'!E11+'IV TRIMESTRE 2023'!E11 -> 1 | F11: =+'I TRIMESTRE 2024'!F11+'II TRIMESTRE 2024'!F11+'III TRIMESTRE 2024'!F11+'IV TRIMESTRE 2023'!F11 -> 0 | G11: 901
B12: VIA AEREA DIFICIL / RIESGO DE ASPIRACION | C12: =+'I TRIMESTRE 2024'!C12+'II TRIMESTRE 2024'!C12+'III TRIMESTRE 2024'!C12+'IV TRIMESTRE 2023'!C12 -> 77 | D12: =+'I TRIMESTRE 2024'!D12+'II TRIMESTRE 2024'!D12+'III TRIMESTRE 2024'!D12+'IV TRIMESTRE 2023'!D12 -> 805 | E12: =+'I TRIMESTRE 2024'!E12+'II TRIMESTRE 2024'!E12+'III TRIMESTRE 2024'!E12+'IV TRIMESTRE 2023'!E12 -> 19 | F12: =+'I TRIMESTRE 2024'!F12+'II TRIMESTRE 2024'!F12+'III TRIMESTRE 2024'!F12+'IV TRIMESTRE 2023'!F12 -> 0 | G12: 901
B13: HAY INSTRUMENTAL Y EQUIPO DISPONIBLE | C13: =+'I TRIMESTRE 2024'!C13+'II TRIMESTRE 2024'!C13+'III TRIMESTRE 2024'!C13+'IV TRIMESTRE 2023'!C13 -> 241 | D13: =+'I TRIMESTRE 2024'!D13+'II TRIMESTRE 2024'!D13+'III TRIMESTRE 2024'!D13+'IV TRIMESTRE 2023'!D13 -> 306 | E13: =+'I TRIMESTRE 2024'!E13+'II TRIMESTRE 2024'!E13+'III TRIMESTRE 2024'!E13+'IV TRIMESTRE 2023'!E13 -> 354 | F13: =+'I TRIMESTRE 2024'!F13+'II TRIMESTRE 2024'!F13+'III TRIMESTRE 2024'!F13+'IV TRIMESTRE 2023'!F13 -> 0 | G13: 901
B14: RIESGO DE HEMORRAGIA MENOR A 500 ML | C14: =+'I TRIMESTRE 2024'!C14+'II TRIMESTRE 2024'!C14+'III TRIMESTRE 2024'!C14+'IV TRIMESTRE 2023'!C14 -> 157 | D14: =+'I TRIMESTRE 2024'!D14+'II TRIMESTRE 2024'!D14+'III TRIMESTRE 2024'!D14+'IV TRIMESTRE 2023'!D14 -> 705 | E14: =+'I TRIMESTRE 2024'!E14+'II TRIMESTRE 2024'!E14+'III TRIMESTRE 2024'!E14+'IV TRIMESTRE 2023'!E14 -> 39 | F14: =+'I TRIMESTRE 2024'!F14+'II TRIMESTRE 2024'!F14+'III TRIMESTRE 2024'!F14+'IV TRIMESTRE 2023'!F14 -> 0 | G14: 901
B15: SE HA PREVISTO DISPONIBILIDAD DE COMPONENTE SANGUINEO EN BANCO DE SANGRE | C15: =+'I TRIMESTRE 2024'!C15+'II TRIMESTRE 2024'!C15+'III TRIMESTRE 2024'!C15+'IV TRIMESTRE 2023'!C15 -> 229 | D15: =+'I TRIMESTRE 2024'!D15+'II TRIMESTRE 2024'!D15+'III TRIMESTRE 2024'!D15+'IV TRIMESTRE 2023'!D15 -> 332 | E15: =+'I TRIMESTRE 2024'!E15+'II TRIMESTRE 2024'!E15+'III TRIMESTRE 2024'!E15+'IV TRIMESTRE 2023'!E15 -> 340 | F15: =+'I TRIMESTRE 2024'!F15+'II TRIMESTRE 2024'!F15+'III TRIMESTRE 2024'!F15+'IV TRIMESTRE 2023'!F15 -> 0 | G15: 901
A16: PAUSA | B16: CONFIRMAR QUE TODOS LOS MIEMBROS DEL EQUIPO PROGRAMADOS SE HAYAN PRESENTADO POR SU NOMBRE | C16: =+'I TRIMESTRE 2024'!C16+'II TRIMESTRE 2024'!C16+'III TRIMESTRE 2024'!C16+'IV TRIMESTRE 2023'!C16 -> 900 | D16: =+'I TRIMESTRE 2024'!D16+'II TRIMESTRE 2024'!D16+'III TRIMESTRE 2024'!D16+'IV TRIMESTRE 2023'!D16 -> 0 | E16: =+'I TRIMESTRE 2024'!E16+'II TRIMESTRE 2024'!E16+'III TRIMESTRE 2024'!E16+'IV TRIMESTRE 2023'!E16 -> 1 | F16: =+'I TRIMESTRE 2024'!F16+'II TRIMESTRE 2024'!F16+'III TRIMESTRE 2024'!F16+'IV TRIMESTRE 2023'!F16 -> 0 | G16: 901
B17: CONFIRMAR LA IDENTIDAD DEL PACIENTE, EL PROCEDIMIENTO Y EL SITIO QUIRUGICO | C17: =+'I TRIMESTRE 2024'!C17+'II TRIMESTRE 2024'!C17+'III TRIMESTRE 2024'!C17+'IV TRIMESTRE 2023'!C17 -> 896 | D17: =+'I TRIMESTRE 2024'!D17+'II TRIMESTRE 2024'!D17+'III TRIMESTRE 2024'!D17+'IV TRIMESTRE 2023'!D17 -> 2 | E17: =+'I TRIMESTRE 2024'!E17+'II TRIMESTRE 2024'!E17+'III TRIMESTRE 2024'!E17+'IV TRIMESTRE 2023'!E17 -> 3 | F17: =+'I TRIMESTRE 2024'!F17+'II TRIMESTRE 2024'!F17+'III TRIMESTRE 2024'!F17+'IV TRIMESTRE 2023'!F17 -> 0 | G17: 901
B18: CONFIRMAR SI TODOS LOS MIEMBROS DEL EQUIPO HAN CUMPLIDO CORRECTAMENTE CON EL PROTOCOLO DE AS | C18: =+'I TRIMESTRE 2024'!C18+'II TRIMESTRE 2024'!C18+'III TRIMESTRE 2024'!C18+'IV TRIMESTRE 2023'!C18 -> 890 | D18: =+'I TRIMESTRE 2024'!D18+'II TRIMESTRE 2024'!D18+'III TRIMESTRE 2024'!D18+'IV TRIMESTRE 2023'!D18 -> 1 | E18: =+'I TRIMESTRE 2024'!E18+'II TRIMESTRE 2024'!E18+'III TRIMESTRE 2024'!E18+'IV TRIMESTRE 2023'!E18 -> 9 | F18: =+'I TRIMESTRE 2024'!F18+'II TRIMESTRE 2024'!F18+'III TRIMESTRE 2024'!F18+'IV TRIMESTRE 2023'!F18 -> 1 | G18: 901
B19: SE HA ADMINISTRADO PROFILAXIS CON ANTIBIOTICOS EN LOS ULTIMOS 60 MINUTOS | C19: =+'I TRIMESTRE 2024'!C19+'II TRIMESTRE 2024'!C19+'III TRIMESTRE 2024'!C19+'IV TRIMESTRE 2023'!C19 -> 776 | D19: =+'I TRIMESTRE 2024'!D19+'II TRIMESTRE 2024'!D19+'III TRIMESTRE 2024'!D19+'IV TRIMESTRE 2023'!D19 -> 83 | E19: =+'I TRIMESTRE 2024'!E19+'II TRIMESTRE 2024'!E19+'III TRIMESTRE 2024'!E19+'IV TRIMESTRE 2023'!E19 -> 20 | F19: =+'I TRIMESTRE 2024'!F19+'II TRIMESTRE 2024'!F19+'III TRIMESTRE 2024'!F19+'IV TRIMESTRE 2023'!F19 -> 22 | G19: 901 | I19: =SUM(C16,C17,C18,C19,C20,,C22,D23,C24,D25,C26) -> 7676 | J19: =I19/$I$21 -> 0.9349573691
B20: ¿CUALES SON LOS PASOS CRITICOS O INESPERADO? | C20: =+'I TRIMESTRE 2024'!C20+'II TRIMESTRE 2024'!C20+'III TRIMESTRE 2024'!C20+'IV TRIMESTRE 2023'!C20 -> 649 | D20: =+'I TRIMESTRE 2024'!D20+'II TRIMESTRE 2024'!D20+'III TRIMESTRE 2024'!D20+'IV TRIMESTRE 2023'!D20 -> 214 | E20: =+'I TRIMESTRE 2024'!E20+'II TRIMESTRE 2024'!E20+'III TRIMESTRE 2024'!E20+'IV TRIMESTRE 2023'!E20 -> 34 | F20: =+'I TRIMESTRE 2024'!F20+'II TRIMESTRE 2024'!F20+'III TRIMESTRE 2024'!F20+'IV TRIMESTRE 2023'!F20 -> 4 | G20: 901 | I20: =SUM(D16,D17,D18,D19,D20,D21,D22,C23,D24,C25,D26) -> 534 | J20: =I20/$I$21 -> 0.06504263094
B21: ¿CUANTO DURARA LA OPERACIÓN? | C21: =+'I TRIMESTRE 2024'!C21+'II TRIMESTRE 2024'!C21+'III TRIMESTRE 2024'!C21+'IV TRIMESTRE 2023'!C21 -> 886 | D21: =+'I TRIMESTRE 2024'!D21+'II TRIMESTRE 2024'!D21+'III TRIMESTRE 2024'!D21+'IV TRIMESTRE 2023'!D21 -> 4 | E21: =+'I TRIMESTRE 2024'!E21+'II TRIMESTRE 2024'!E21+'III TRIMESTRE 2024'!E21+'IV TRIMESTRE 2023'!E21 -> 11 | F21: =+'I TRIMESTRE 2024'!F21+'II TRIMESTRE 2024'!F21+'III TRIMESTRE 2024'!F21+'IV TRIMESTRE 2023'!F21 -> 0 | G21: 901 | I21: =SUM(I19:I20) -> 8210
B22: ¿CUANTO ES LA PERDIDA DE SALGRE PREVISTA? | C22: =+'I TRIMESTRE 2024'!C22+'II TRIMESTRE 2024'!C22+'III TRIMESTRE 2024'!C22+'IV TRIMESTRE 2023'!C22 -> 852 | D22: =+'I TRIMESTRE 2024'!D22+'II TRIMESTRE 2024'!D22+'III TRIMESTRE 2024'!D22+'IV TRIMESTRE 2023'!D22 -> 26 | E22: =+'I TRIMESTRE 2024'!E22+'II TRIMESTRE 2024'!E22+'III TRIMESTRE 2024'!E22+'IV TRIMESTRE 2023'!E22 -> 23 | F22: =+'I TRIMESTRE 2024'!F22+'II TRIMESTRE 2024'!F22+'III TRIMESTRE 2024'!F22+'IV TRIMESTRE 2023'!F22 -> 0 | G22: 901
B23: ¿PRESENTA EL PACIENTE ALGUN PROBLEMA ESPECIFICO? | C23: =+'I TRIMESTRE 2024'!C23+'II TRIMESTRE 2024'!C23+'III TRIMESTRE 2024'!C23+'IV TRIMESTRE 2023'!C23 -> 91 | D23: =+'I TRIMESTRE 2024'!D23+'II TRIMESTRE 2024'!D23+'III TRIMESTRE 2024'!D23+'IV TRIMESTRE 2023'!D23 -> 789 | E23: =+'I TRIMESTRE 2024'!E23+'II TRIMESTRE 2024'!E23+'III TRIMESTRE 2024'!E23+'IV TRIMESTRE 2023'!E23 -> 26 | F23: =+'I TRIMESTRE 2024'!F23+'II TRIMESTRE 2024'!F23+'III TRIMESTRE 2024'!F23+'IV TRIMESTRE 2023'!F23 -> 0 | G23: 906
B24: ¿SE HA CONFIRMADO LA ESTERILIDAD DE ROPA, INSTRUMENTAL Y EQUIPOS? | C24: =+'I TRIMESTRE 2024'!C24+'II TRIMESTRE 2024'!C24+'III TRIMESTRE 2024'!C24+'IV TRIMESTRE 2023'!C24 -> 844 | D24: =+'I TRIMESTRE 2024'!D24+'II TRIMESTRE 2024'!D24+'III TRIMESTRE 2024'!D24+'IV TRIMESTRE 2023'!D24 -> 46 | E24: =+'I TRIMESTRE 2024'!E24+'II TRIMESTRE 2024'!E24+'III TRIMESTRE 2024'!E24+'IV TRIMESTRE 2023'!E24 -> 9 | F24: =+'I TRIMESTRE 2024'!F24+'II TRIMESTRE 2024'!F24+'III TRIMESTRE 2024'!F24+'IV TRIMESTRE 2023'!F24 -> 2 | G24: 901
B25: ¿HAY DUDAS O PROBLEMAS RELACIONADOS CON ELLOS? | C25: =+'I TRIMESTRE 2024'!C25+'II TRIMESTRE 2024'!C25+'III TRIMESTRE 2024'!C25+'IV TRIMESTRE 2023'!C25 -> 27 | D25: =+'I TRIMESTRE 2024'!D25+'II TRIMESTRE 2024'!D25+'III TRIMESTRE 2024'!D25+'IV TRIMESTRE 2023'!D25 -> 840 | E25: =+'I TRIMESTRE 2024'!E25+'II TRIMESTRE 2024'!E25+'III TRIMESTRE 2024'!E25+'IV TRIMESTRE 2023'!E25 -> 31 | F25: =+'I TRIMESTRE 2024'!F25+'II TRIMESTRE 2024'!F25+'III TRIMESTRE 2024'!F25+'IV TRIMESTRE 2023'!F25 -> 2 | G25: 900
B26: ¿PUEDEN VISUALIZARSE LAS IMÁGENES DIAGNOSTICADAS ESENCIALES? | C26: =+'I TRIMESTRE 2024'!C26+'II TRIMESTRE 2024'!C26+'III TRIMESTRE 2024'!C26+'IV TRIMESTRE 2023'!C26 -> 240 | D26: =+'I TRIMESTRE 2024'!D26+'II TRIMESTRE 2024'!D26+'III TRIMESTRE 2024'!D26+'IV TRIMESTRE 2023'!D26 -> 40 | E26: =+'I TRIMESTRE 2024'!E26+'II TRIMESTRE 2024'!E26+'III TRIMESTRE 2024'!E26+'IV TRIMESTRE 2023'!E26 -> 114 | F26: =+'I TRIMESTRE 2024'!F26+'II TRIMESTRE 2024'!F26+'III TRIMESTRE 2024'!F26+'IV TRIMESTRE 2023'!F26 -> 507 | G26: 901
A27: SALIDA | B27: EL ENFERMERO CONFIRMA VERBALMENTE EL NOMBRE DEL PROCEDIMIENTO | C27: =+'I TRIMESTRE 2024'!C27+'II TRIMESTRE 2024'!C27+'III TRIMESTRE 2024'!C27+'IV TRIMESTRE 2023'!C27 -> 892 | D27: =+'I TRIMESTRE 2024'!D27+'II TRIMESTRE 2024'!D27+'III TRIMESTRE 2024'!D27+'IV TRIMESTRE 2023'!D27 -> 0 | E27: =+'I TRIMESTRE 2024'!E27+'II TRIMESTRE 2024'!E27+'III TRIMESTRE 2024'!E27+'IV TRIMESTRE 2023'!E27 -> 9 | F27: =+'I TRIMESTRE 2024'!F27+'II TRIMESTRE 2024'!F27+'III TRIMESTRE 2024'!F27+'IV TRIMESTRE 2023'!F27 -> 0 | G27: 901
B28: EL RECUENTO DE INSTRUMENTOS, GASA Y AGUJAS | C28: =+'I TRIMESTRE 2024'!C28+'II TRIMESTRE 2024'!C28+'III TRIMESTRE 2024'!C28+'IV TRIMESTRE 2023'!C28 -> 883 | D28: =+'I TRIMESTRE 2024'!D28+'II TRIMESTRE 2024'!D28+'III TRIMESTRE 2024'!D28+'IV TRIMESTRE 2023'!D28 -> 4 | E28: =+'I TRIMESTRE 2024'!E28+'II TRIMESTRE 2024'!E28+'III TRIMESTRE 2024'!E28+'IV TRIMESTRE 2023'!E28 -> 13 | F28: =+'I TRIMESTRE 2024'!F28+'II TRIMESTRE 2024'!F28+'III TRIMESTRE 2024'!F28+'IV TRIMESTRE 2023'!F28 -> 0 | G28: 900 | I28: =SUM(C27,C28,C29,C30,C31,D32) -> 2891 | J28: =I28/$I$30 -> 0.6658222018
B29: EL ETIQUETADO DE LAS MUESTRAS (LECTURA DE LA ETIQUETA EN VOZ ALTA, INCLUIDO EL NOMBRE DEL PACIENTE | C29: =+'I TRIMESTRE 2024'!C29+'II TRIMESTRE 2024'!C29+'III TRIMESTRE 2024'!C29+'IV TRIMESTRE 2023'!C29 -> 195 | D29: =+'I TRIMESTRE 2024'!D29+'II TRIMESTRE 2024'!D29+'III TRIMESTRE 2024'!D29+'IV TRIMESTRE 2023'!D29 -> 419 | E29: =+'I TRIMESTRE 2024'!E29+'II TRIMESTRE 2024'!E29+'III TRIMESTRE 2024'!E29+'IV TRIMESTRE 2023'!E29 -> 35 | F29: =+'I TRIMESTRE 2024'!F29+'II TRIMESTRE 2024'!F29+'III TRIMESTRE 2024'!F29+'IV TRIMESTRE 2023'!F29 -> 239 | G29: 888 | I29: =SUM(D27,D28,D29,D30,D31,C32) -> 1451 | J29: =I29/$I$30 -> 0.3341777982
B30: SI HAY PROBLEMAS QUE SE RESUELVE RELACIONADOS CON EL INSTRUMENTAL Y LOS EQUIPOS | C30: =+'I TRIMESTRE 2024'!C30+'II TRIMESTRE 2024'!C30+'III TRIMESTRE 2024'!C30+'IV TRIMESTRE 2023'!C30 -> 34 | D30: =+'I TRIMESTRE 2024'!D30+'II TRIMESTRE 2024'!D30+'III TRIMESTRE 2024'!D30+'IV TRIMESTRE 2023'!D30 -> 850 | E30: =+'I TRIMESTRE 2024'!E30+'II TRIMESTRE 2024'!E30+'III TRIMESTRE 2024'!E30+'IV TRIMESTRE 2023'!E30 -> 11 | F30: =+'I TRIMESTRE 2024'!F30+'II TRIMESTRE 2024'!F30+'III TRIMESTRE 2024'!F30+'IV TRIMESTRE 2023'!F30 -> 6 | G30: 901 | I30: =SUM(I28:I29) -> 4342
B31: (CIRUJANO, ANESTESIOLOGO, ENFERMERO) CUALES SON LOS ASPECTOS CRITICOS DE LA RECUPERACION Y EL TRAMITE | C31: =+'I TRIMESTRE 2024'!C31+'II TRIMESTRE 2024'!C31+'III TRIMESTRE 2024'!C31+'IV TRIMESTRE 2023'!C31 -> 727 | D31: =+'I TRIMESTRE 2024'!D31+'II TRIMESTRE 2024'!D31+'III TRIMESTRE 2024'!D31+'IV TRIMESTRE 2023'!D31 -> 139 | E31: =+'I TRIMESTRE 2024'!E31+'II TRIMESTRE 2024'!E31+'III TRIMESTRE 2024'!E31+'IV TRIMESTRE 2023'!E31 -> 33 | F31: =+'I TRIMESTRE 2024'!F31+'II TRIMESTRE 2024'!F31+'III TRIMESTRE 2024'!F31+'IV TRIMESTRE 2023'!F31 -> 2 | G31: 901
B32: OBSERVACIONES | C32: =+'I TRIMESTRE 2024'!C32+'II TRIMESTRE 2024'!C32+'III TRIMESTRE 2024'!C32+'IV TRIMESTRE 2023'!C32 -> 39 | D32: =+'I TRIMESTRE 2024'!D32+'II TRIMESTRE 2024'!D32+'III TRIMESTRE 2024'!D32+'IV TRIMESTRE 2023'!D32 -> 160 | E32: =+'I TRIMESTRE 2024'!E32+'II TRIMESTRE 2024'!E32+'III TRIMESTRE 2024'!E32+'IV TRIMESTRE 2023'!E32 -> 701 | F32: =+'I TRIMESTRE 2024'!F32+'II TRIMESTRE 2024'!F32+'III TRIMESTRE 2024'!F32+'IV TRIMESTRE 2023'!F32 -> 0 | G32: 900
A33: FIRMA | B33: FIRMA DEL CIRUJANO | C33: =+'I TRIMESTRE 2024'!C33+'II TRIMESTRE 2024'!C33+'III TRIMESTRE 2024'!C33+'IV TRIMESTRE 2023'!C33 -> 897 | D33: =+'I TRIMESTRE 2024'!D33+'II TRIMESTRE 2024'!D33+'III TRIMESTRE 2024'!D33+'IV TRIMESTRE 2023'!D33 -> 4 | E33: =+'I TRIMESTRE 2024'!E33+'II TRIMESTRE 2024'!E33+'III TRIMESTRE 2024'!E33+'IV TRIMESTRE 2023'!E33 -> 0 | F33: =+'I TRIMESTRE 2024'!F33+'II TRIMESTRE 2024'!F33+'III TRIMESTRE 2024'!F33+'IV TRIMESTRE 2023'!F33 -> 0 | G33: 901
B34: FIRMA DEL ANESTESIOLOGO | C34: =+'I TRIMESTRE 2024'!C34+'II TRIMESTRE 2024'!C34+'III TRIMESTRE 2024'!C34+'IV TRIMESTRE 2023'!C34 -> 895 | D34: =+'I TRIMESTRE 2024'!D34+'II TRIMESTRE 2024'!D34+'III TRIMESTRE 2024'!D34+'IV TRIMESTRE 2023'!D34 -> 4 | E34: =+'I TRIMESTRE 2024'!E34+'II TRIMESTRE 2024'!E34+'III TRIMESTRE 2024'!E34+'IV TRIMESTRE 2023'!E34 -> 2 | F34: =+'I TRIMESTRE 2024'!F34+'II TRIMESTRE 2024'!F34+'III TRIMESTRE 2024'!F34+'IV TRIMESTRE 2023'!F34 -> 0 | G34: 901
B35: FIRMA DE LA ENFERMERA | C35: =+'I TRIMESTRE 2024'!C35+'II TRIMESTRE 2024'!C35+'III TRIMESTRE 2024'!C35+'IV TRIMESTRE 2023'!C35 -> 895 | D35: =+'I TRIMESTRE 2024'!D35+'II TRIMESTRE 2024'!D35+'III TRIMESTRE 2024'!D35+'IV TRIMESTRE 2023'!D35 -> 5 | E35: =+'I TRIMESTRE 2024'!E35+'II TRIMESTRE 2024'!E35+'III TRIMESTRE 2024'!E35+'IV TRIMESTRE 2023'!E35 -> 1 | F35: =+'I TRIMESTRE 2024'!F35+'II TRIMESTRE 2024'!F35+'III TRIMESTRE 2024'!F35+'IV TRIMESTRE 2023'!F35 -> 0 | G35: 901 | I35: =SUM(C33,C34,C35,C36,C37,C38,C39) -> 6249 | J35: =I35/$I$37 -> 0.9942720764
B36: FIRMA DEL COORDINADOR | C36: =+'I TRIMESTRE 2024'!C36+'II TRIMESTRE 2024'!C36+'III TRIMESTRE 2024'!C36+'IV TRIMESTRE 2023'!C36 -> 892 | D36: =+'I TRIMESTRE 2024'!D36+'II TRIMESTRE 2024'!D36+'III TRIMESTRE 2024'!D36+'IV TRIMESTRE 2023'!D36 -> 6 | E36: =+'I TRIMESTRE 2024'!E36+'II TRIMESTRE 2024'!E36+'III TRIMESTRE 2024'!E36+'IV TRIMESTRE 2023'!E36 -> 3 | F36: =+'I TRIMESTRE 2024'!F36+'II TRIMESTRE 2024'!F36+'III TRIMESTRE 2024'!F36+'IV TRIMESTRE 2023'!F36 -> 0 | G36: 901 | I36: =SUM(D33,D34,D35,D36,D37,,D38,D39) -> 36 | J36: =I36/$I$37 -> 0.005727923628
B37: NRO DE HISTORIA CLINICA | C37: =+'I TRIMESTRE 2024'!C37+'II TRIMESTRE 2024'!C37+'III TRIMESTRE 2024'!C37+'IV TRIMESTRE 2023'!C37 -> 877 | D37: =+'I TRIMESTRE 2024'!D37+'II TRIMESTRE 2024'!D37+'III TRIMESTRE 2024'!D37+'IV TRIMESTRE 2023'!D37 -> 11 | E37: =+'I TRIMESTRE 2024'!E37+'II TRIMESTRE 2024'!E37+'III TRIMESTRE 2024'!E37+'IV TRIMESTRE 2023'!E37 -> 13 | F37: =+'I TRIMESTRE 2024'!F37+'II TRIMESTRE 2024'!F37+'III TRIMESTRE 2024'!F37+'IV TRIMESTRE 2023'!F37 -> 0 | G37: 901 | I37: =SUM(I35:I36) -> 6285
B38: NOMBRE Y APELLIDOS DEL PACIENTE | C38: =+'I TRIMESTRE 2024'!C38+'II TRIMESTRE 2024'!C38+'III TRIMESTRE 2024'!C38+'IV TRIMESTRE 2023'!C38 -> 896 | D38: =+'I TRIMESTRE 2024'!D38+'II TRIMESTRE 2024'!D38+'III TRIMESTRE 2024'!D38+'IV TRIMESTRE 2023'!D38 -> 3 | E38: =+'I TRIMESTRE 2024'!E38+'II TRIMESTRE 2024'!E38+'III TRIMESTRE 2024'!E38+'IV TRIMESTRE 2023'!E38 -> 2 | F38: =+'I TRIMESTRE 2024'!F38+'II TRIMESTRE 2024'!F38+'III TRIMESTRE 2024'!F38+'IV TRIMESTRE 2023'!F38 -> 0 | G38: 901
B39: FECHA | C39: =+'I TRIMESTRE 2024'!C39+'II TRIMESTRE 2024'!C39+'III TRIMESTRE 2024'!C39+'IV TRIMESTRE 2023'!C39 -> 897 | D39: =+'I TRIMESTRE 2024'!D39+'II TRIMESTRE 2024'!D39+'III TRIMESTRE 2024'!D39+'IV TRIMESTRE 2023'!D39 -> 3 | E39: =+'I TRIMESTRE 2024'!E39+'II TRIMESTRE 2024'!E39+'III TRIMESTRE 2024'!E39+'IV TRIMESTRE 2023'!E39 -> 1 | F39: =+'I TRIMESTRE 2024'!F39+'II TRIMESTRE 2024'!F39+'III TRIMESTRE 2024'!F39+'IV TRIMESTRE 2023'!F39 -> 0 | G39: 901
B45: PORCENTAJE DE CUMPLIMIENTO DE LA LISTA DE VERIFICACION DE CIRUGIA SEGURA
C51: ENTRADA | D51: (+) | E51: =J8 -> 0.8305037183
D52: (-) | E52: =J9 -> 0.1694962817
C53: PAUSA | D53: (+) | E53: =J19 -> 0.9349573691 | M53: Cumplimiento
D54: (-) | E54: =J20 -> 0.06504263094 | L54: Entrada | M54: =E51 -> 0.8305037183
C55: SALIDA | D55: (+) | E55: =J28 -> 0.6658222018 | L55: Pausa | M55: =E53 -> 0.9349573691
D56: (-) | E56: =J29 -> 0.3341777982 | L56: Salida | M56: =E55 -> 0.6658222018
C57: FIRMA | D57: (+) | E57: =J35 -> 0.9942720764 | L57: Firmas | M57: =E57 -> 0.9942720764
D58: (-) | E58: =J36 -> 0.005727923628 | L58: Cumplimiento | M58: =AVERAGE(M54:M57) -> 0.8563888414
C59: CUMPLIMIENTO | E59: =M58 -> 0.8563888414
